Workbook

Sheet Intro
D11: Costing Monitoring Equipment for a Longitudinal Energy Survey:
D12: Cost Calculator
D16: Worksheets | F16: Overview
D17: User guide | F17: Instructions on using the Cost Calculator | L17: This tool was put together by Cambridge Architectural Research and Loughborough University under contract to DECC, the Department of Energy and Climate Change. It allows you to choose packages of monitoring equipment for a longitudinal energy survey.
D18: Packages | F18: Choose packages suitable for the variables you want to monitor
D19: Report Packages | F19: Examine the recommended packages we put forward in our Report
D20: Data | F20: See information about all the monitoring devices we included

Sheet User Guide
B1: Cost Calculator: User guide
B3: The Cost Calculator was designed by Cambridge Architectural Research and Loughborough University as part of DECC's work in support of a possible longitudinal UK energy survey.
B6: Packages worksheet
B7: To view the packages that meet your needs, simply follow these six steps:
C9: 1
D10: Select how many homes you want to include in the survey, and how long you plan to run the survey. (Green cells and buttons are for users to change. It's best not to change other cells.)
C12: 2
D13: Choose whether your homes all have internet access, or if you need another way to draw data from homes.
C15: 3
D16: Choose the variables you need to include in your survey from the drop-down list.
C18: 4
D19: Choose 'Use Smart Meters' if you want to take advantage of smart meters that have been installed as part of your survey.
C21: 5
D22: Hit 'Generate packages' to see all combinations of devices that would meet your needs, with costs and technical details in the table from Row 25.
C24: 6
D25: The 'number per home' column is generated automatically based on your choices. If you want to monitor temperature in two rooms, choose 'temperature' twice in the variables list.
C27: 7
D28: You can delete packages either by deleting your choice of variables, or by choosing new variables to monitor.
B30: Report Packages worksheet
B31: To examine the recommended packages we proposed in the Report accompanying this Calculator:
C33: 1
D34: Simply scroll up or down through the four recommended packages.
C36: 2
D37: Click the '+' at the top-right of the sheet, above Column AO, to view more information about the devices.
B40: Data worksheet
B41: To examine all the devices we selected:
C43: 1
D44: If you wish to see the raw data, with descriptions and costs for all devices, you may do this in the 'Data' sheet.
C46: 2
D47: If you wish to add data to the sheet, you can do so using the 'Add new row' button. Please be sure to complete Column AN onwards so the 'Packages' sheet still works.
C49: 3
D50: If you wish to delete data from the sheet, you can use the 'Delete row' button in the same way.

Sheet Packages
B2: MONITORING DETAILS | G2: PROJECT DETAILS
B3: Select up to 12 variables to be monitored in each home, using the drop down boxes below. | G3: Enter the size and duration of your project in the green cells below.
B4: Variables can be added multiple times, where several rooms will be monitored in each home.
B5: =IF(SUM(Data!AV6:DK6)>6,"Note: Check that the data logger(s) can cope with the number of sensors","") ->  | G5: No. of Homes Monitored | H5: 1000
B6: Temperature | G6: Monitoring Period (yrs) | H6: 2
B7: Temperature | G7: Internet Available? | H7: No
B8: Temperature | G8: Use Smart Meters? | H8: No
B9: Electricity
B10: gas
B12: Electricity
B13: Gas
B14: Individual Appliance | J14: 0
B15: Multiple Appliances
B16: PV | J16: 100000
B17: Temperature
B18: Humidity
B19: Light
B20: Noise
B21: Ventilation
B22: Occupancy
B23: CO2
B24: =IF(AND(Data!BC8>0,Data!AV8=0),"Note: Electrical metering is required if 'Multiple Appliances' are selected","") -> 
B25: PACKAGE | E25: PRODUCT | G25: SENSOR | I25: NUMBER | J25: PREREQUISITES | K25: COSTS | P25: CONNECTIONS | R25: DATA STORAGE | T25: MISC | W25: POWER | Z25: DATA COLLECTION | AF25: INSTALLATION | AJ25: MAINTENANCE | AM25: NOTES
B26: YEAR 1 COST (equipment +installation) | C26: ONGOING ANNUAL COST (maintenance +replacement) | D26: TOTAL COST (over whole study) | E26: FAMILY | F26: NAME | G26: TYPE | H26: DETAIL | I26: PER HOME | K26: CAPITAL COST | O26: ANNUAL | P26: WAN | Q26: LAN | R26: LOCAL STORAGE | S26: METHOD OF DATA EXTRACT | T26: DIMENSIONS | U26: FIXING | V26: COMMUNICATION WITH SMART METERS | W26: TYPE | X26: CLAIMED BATTERY LIFE | Y26: REMOTE BATTERY LOW LEVEL INDICATOR | Z26: REPORTING INTERVAL | AA26: TEMP ACCURACY | AB26: TEMP RANGE | AC26: TEMP RESOLUTION | AD26: HUMIDITY ACCURACY | AE26: CO2 ACCURACY | AF26: INSTALLATION ISSUES | AG26: INSTALL TIME RESEARCHER | AH26: INSTALL AND COMMISSION TIME GAS | AI26: INSTALL TIME ELECTRICIAN | AJ26: MAINTENANCE CHECK TIME | AK26: BATTERY CHANGE TIME | AL26: ANNUAL REPLACEMENT RATE
K27: INDIVIDUAL | L27: BULK 1000 UNITS | M27: BULK 5000 UNITS | N27: BULK 10,000 UNITS
B28: £/home | C28: £/home per yr | D28: £/home | K28: £/unit | L28: £/unit | M28: £/unit | N28: £/unit | O28: £/unit per yr | T28: mm
B29: - | C29: - | E29: - | F29: - | G29: - | H29: - | I29: - | J29: - | K29: - | L29: - | M29: - | N29: - | O29: - | P29: - | Q29: - | R29: - | S29: - | T29: - | U29: - | V29: - | W29: - | X29: - | Y29: - | Z29: - | AA29: - | AB29: - | AC29: - | AD29: - | AE29: - | AF29: - | AG29: - | AH29: - | AI29: - | AJ29: - | AK29: - | AL29: - | AM29: -
B33: PACKAGE 1
B34: 683.67 | C34: 119.775 | D34: 803.45
B35: 40 | C35: 40 | D35: 80 | E35: Smart Monitoring Systems | F35: AMR | G35: All-in-one | H35: Gas (pulse) | I35: 1 | J35: none | K35: No charge for device, which still belongs to Smart Monitoring Systems | L35: No charge for device, which still belongs to Smart Monitoring Systems | M35: No charge for device, which still belongs to Smart Monitoring Systems | N35: No charge for device, which still belongs to Smart Monitoring Systems | O35: 40 | P35: GPRS | Q35: n/a | R35: n/a | S35: 3rd party email | T35: n/a | U35: Replacement meter | W35: Not found | X35: Not found | Y35: Not found | Z35: 30 mins | AA35: n/a | AB35: n/a | AC35: n/a | AD35: n/a | AE35: n/a | AF35: Carried out by Smart metering company charge £40 per year this includes installation cost | AG35: 0 | AH35: 0 | AI35: 0 | AJ35: 0 | AK35: n/a | AL35: 0.1 | AM35: Fitted own meters
B36: 142.2 | C36: 12 | D36: 154.2 | E36: Zigbee HA | F36: ZigBee HA Single Phase Power Clamp | G36: Sensor | H36: Electricity (clamp) | I36: 1 | J36: Zigbee HA Gateway | K36: 120 | L36: Not found | M36: Not found | N36: Not found | P36: n/a | Q36: Zigbee | R36: n/a | S36: n/a | T36: Not found | U36: Not found | W36: din rail | X36: Not found | Y36: Not found | Z36: Not found | AA36: n/a | AB36: n/a | AC36: n/a | AD36: n/a | AE36: n/a | AG36: 5 | AH36: - | AI36: 15 | AJ36: - | AK36: - | AL36: 0.1
B37: 225.3 | C37: 19.2 | D37: 244.5 | E37: Zigbee HA | F37: ZigBee multisensor ZHOT101 | G37: Sensor | H37: Occupancy, Temperature & Light Sensor | I37: 3 | J37: Zigbee HA Gateway | K37: 64 | L37: Not found | M37: Not found | N37: Not found | O37: n/a | P37: n/a | Q37: Zigbee | R37: n/a | S37: n/a | T37: 106 x 61 x 54 | U37: free standing or use self adhesive pads? | W37: Battery CR123 | X37: 5 yrs hourly reporting | Y37: Not found | Z37: Not found | AA37: ± 0.5°C | AB37: 0 to +50°C | AC37: 0.1°C | AD37: n/a | AE37: n/a | AG37: 10 | AH37: - | AI37: - | AJ37: - | AK37: - | AL37: 0.1
B38: 276.17 | C38: 48.575 | D38: 324.74 | E38: Zigbee HA | F38: Greenbox zigbee data logger ZC-GB-EM-UK | G38: Logger | H38: logger only | I38: 1 | J38: Ethernet or sim card for GPRS | K38: 485.75 | L38: 242.87 | M38: 194.28 | N38: 145.71 | O38: n/a | P38: Ethernet & GPRS | Q38: Zigbee | R38: 4Gb | S38: FTP/EMAIL CSV | T38: 152 x 128 x 40 | U38: Din Rail | Y38: Not found | Z38: min every 5 minutes | AA38: n/a | AB38: n/a | AC38: n/a | AD38: n/a | AE38: n/a | AG38: 30 | AH38: - | AI38: - | AJ38: - | AK38: - | AL38: 0.1
B39: PACKAGE 2
B40: 680.22 | C40: 129.975 | D40: 810.2
B41: 40 | C41: 40 | D41: 80 | E41: Smart Monitoring Systems | F41: AMR | G41: All-in-one | H41: Gas (pulse) | I41: 1 | J41: none | K41: No charge for device, which still belongs to Smart Monitoring Systems | L41: No charge for device, which still belongs to Smart Monitoring Systems | M41: No charge for device, which still belongs to Smart Monitoring Systems | N41: No charge for device, which still belongs to Smart Monitoring Systems | O41: 40 | P41: GPRS | Q41: n/a | R41: n/a | S41: 3rd party email | T41: n/a | U41: Replacement meter | W41: Not found | X41: Not found | Y41: Not found | Z41: 30 mins | AA41: n/a | AB41: n/a | AC41: n/a | AD41: n/a | AE41: n/a | AF41: Carried out by Smart metering company charge £40 per year this includes installation cost | AG41: 0 | AH41: 0 | AI41: 0 | AJ41: 0 | AK41: n/a | AL41: 0.1 | AM41: Fitted own meters
B42: 142.2 | C42: 12 | D42: 154.2 | E42: Zigbee HA | F42: ZigBee HA Single Phase Power Clamp | G42: Sensor | H42: Electricity (clamp) | I42: 1 | J42: Zigbee HA Gateway | K42: 120 | L42: Not found | M42: Not found | N42: Not found | P42: n/a | Q42: Zigbee | R42: n/a | S42: n/a | T42: Not found | U42: Not found | W42: din rail | X42: Not found | Y42: Not found | Z42: Not found | AA42: n/a | AB42: n/a | AC42: n/a | AD42: n/a | AE42: n/a | AG42: 5 | AH42: - | AI42: 15 | AJ42: - | AK42: - | AL42: 0.1
B43: 71.65 | C43: 16.6 | D43: 88.25 | E43: Zigbee HA | F43: ZigBee magnetic sensor ZHMS101 | G43: Sensor | H43: Open close doors and windows Temperature | I43: 1 | J43: Zigbee HA Gateway | K43: 55 | L43: Not found | M43: Not found | N43: Not found | O43: n/a | P43: n/a | Q43: Zigbee | R43: n/a | S43: n/a | T43: 65 x 25 x 17 sensor 65 x 17 x 17 magnet | U43: screws or self adhesive pads | W43: Battery 2 x AAA | X43: 2 years reporting every 2 mins | Y43: Not found | Z43: Not found | AA43: Not found | AB43: 0 to +50°C | AC43: 0.1°C | AD43: n/a | AE43: n/a | AG43: 15 | AH43: - | AI43: - | AJ43: - | AK43: 10 | AL43: 0.1
B44: 150.2 | C44: 12.8 | D44: 163 | E44: Zigbee HA | F44: ZigBee multisensor ZHOT101 | G44: Sensor | H44: Occupancy, Temperature & Light Sensor | I44: 2 | J44: Zigbee HA Gateway | K44: 64 | L44: Not found | M44: Not found | N44: Not found | O44: n/a | P44: n/a | Q44: Zigbee | R44: n/a | S44: n/a | T44: 106 x 61 x 54 | U44: free standing or use self adhesive pads? | W44: Battery CR123 | X44: 5 yrs hourly reporting | Y44: Not found | Z44: Not found | AA44: ± 0.5°C | AB44: 0 to +50°C | AC44: 0.1°C | AD44: n/a | AE44: n/a | AG44: 10 | AH44: - | AI44: - | AJ44: - | AK44: - | AL44: 0.1
B45: 276.17 | C45: 48.575 | D45: 324.74 | E45: Zigbee HA | F45: Greenbox zigbee data logger ZC-GB-EM-UK | G45: Logger | H45: logger only | I45: 1 | J45: Ethernet or sim card for GPRS | K45: 485.75 | L45: 242.87 | M45: 194.28 | N45: 145.71 | O45: n/a | P45: Ethernet & GPRS | Q45: Zigbee | R45: 4Gb | S45: FTP/EMAIL CSV | T45: 152 x 128 x 40 | U45: Din Rail | Y45: Not found | Z45: min every 5 minutes | AA45: n/a | AB45: n/a | AC45: n/a | AD45: n/a | AE45: n/a | AG45: 30 | AH45: - | AI45: - | AJ45: - | AK45: - | AL45: 0.1
B46: PACKAGE 3
B47: 679.62 | C47: 161.925 | D47: 841.55
B48: 158.25 | C48: 61.35 | D48: 219.6 | E48: HOBO | F48: HOBO UA001 08 | G48: Sensor | H48: External Temperature (Waterproof) | I48: 3 | J48: A HOBOware Software Starter Kit, HOBO BASE-U-1 Optic Base Station (£63) and Coupler | K48: 38 | L48: 36.1 | M48: 34.2 | N48: 32.3 | O48: n/a | P48: n/a | Q48: n/a | R48: 8K memory 6.5K readings | S48: Data download via Optic USB (IR) Base Station and Pendant Coupler | T48: 58 x 33 x 23 | U48: Integral eyelet (3mm hole) for easy mounting & securing | W48: Battery | X48: 1 year | Y48: Not found | Z48: 32 sec to 4 hours | AA48: 0.47ºC at 25ºC | AB48: -20° to 70°C | AC48: 0.1°C | AD48: n/a | AE48: n/a | AG48: 15 | AH48: - | AI48: - | AJ48: 5 | AK48: 10 | AL48: 0.1 | AM48: Programmable Start time/date or Trigger Start onsite with magnet
B49: 40 | C49: 40 | D49: 80 | E49: Smart Monitoring Systems | F49: AMR | G49: All-in-one | H49: Gas (pulse) | I49: 1 | J49: none | K49: No charge for device, which still belongs to Smart Monitoring Systems | L49: No charge for device, which still belongs to Smart Monitoring Systems | M49: No charge for device, which still belongs to Smart Monitoring Systems | N49: No charge for device, which still belongs to Smart Monitoring Systems | O49: 40 | P49: GPRS | Q49: n/a | R49: n/a | S49: 3rd party email | T49: n/a | U49: Replacement meter | W49: Not found | X49: Not found | Y49: Not found | Z49: 30 mins | AA49: n/a | AB49: n/a | AC49: n/a | AD49: n/a | AE49: n/a | AF49: Carried out by Smart metering company charge £40 per year this includes installation cost | AG49: 0 | AH49: 0 | AI49: 0 | AJ49: 0 | AK49: n/a | AL49: 0.1 | AM49: Fitted own meters
B50: 142.2 | C50: 12 | D50: 154.2 | E50: Zigbee HA | F50: ZigBee HA Single Phase Power Clamp | G50: Sensor | H50: Electricity (clamp) | I50: 1 | J50: Zigbee HA Gateway | K50: 120 | L50: Not found | M50: Not found | N50: Not found | P50: n/a | Q50: Zigbee | R50: n/a | S50: n/a | T50: Not found | U50: Not found | W50: din rail | X50: Not found | Y50: Not found | Z50: Not found | AA50: n/a | AB50: n/a | AC50: n/a | AD50: n/a | AE50: n/a | AG50: 5 | AH50: - | AI50: 15 | AJ50: - | AK50: - | AL50: 0.1
B51: 276.17 | C51: 48.575 | D51: 324.74 | E51: Zigbee HA | F51: Greenbox zigbee data logger ZC-GB-EM-UK | G51: Logger | H51: logger only | I51: 1 | J51: Ethernet or sim card for GPRS | K51: 485.75 | L51: 242.87 | M51: 194.28 | N51: 145.71 | O51: n/a | P51: Ethernet & GPRS | Q51: Zigbee | R51: 4Gb | S51: FTP/EMAIL CSV | T51: 152 x 128 x 40 | U51: Din Rail | Y51: Not found | Z51: min every 5 minutes | AA51: n/a | AB51: n/a | AC51: n/a | AD51: n/a | AE51: n/a | AG51: 30 | AH51: - | AI51: - | AJ51: - | AK51: - | AL51: 0.1
B52: 63 | C52: 0 | D52: 63 | E52: HOBO | F52: A HOBOware Software Starter Kit, HOBO BASE-U-1 Optic Base Station (£63) and Coupler | G52: Logger | I52: 1 | J52: HOBO sensors | K52: 63 | L52: Not found | M52: Not found | N52: Not found
B53: PACKAGE 4
B54: 699.27 | C54: 153.975 | D54: 853.25
B55: 240.9 | C55: 53.4 | D55: 294.3 | E55: HOBO | F55: HOBO UX100-001 | G55: All-in-one | H55: Room Temperature | I55: 3 | J55: HOBOware (PC software) | K55: 67 | L55: 63.65 | M55: 60.3 | N55: 56.95 | O55: n/a | P55: n/a | Q55: n/a | R55: 128 KB 84,650 measurements | S55: PC software and usb connector | T55: 36.6 x 59.4 x 15.2 | U55: Built-in magnets Command strip Double sided tape Hook and Loop strap to mount to curved surface | W55: Battery | X55: 1 year @ log rate of 1 min and sampling interval of 15secs or > | Y55: Not found | Z55: 1 sec to 18 hours | AA55: ±0.21°C from 0° to 50°C | AB55: -20° to 70°C | AC55: 0.024°C | AD55: n/a | AE55: n/a | AF55: - | AG55: 15 | AH55: - | AI55: - | AJ55: 5 | AK55: 5 | AL55: 0.1 | AM55: Reported monitioring interval drift, 5min interval can drift from 3 to 7 mins Software Pro £88 Software Lite £40
B56: 40 | C56: 40 | D56: 80 | E56: Smart Monitoring Systems | F56: AMR | G56: All-in-one | H56: Gas (pulse) | I56: 1 | J56: none | K56: No charge for device, which still belongs to Smart Monitoring Systems | L56: No charge for device, which still belongs to Smart Monitoring Systems | M56: No charge for device, which still belongs to Smart Monitoring Systems | N56: No charge for device, which still belongs to Smart Monitoring Systems | O56: 40 | P56: GPRS | Q56: n/a | R56: n/a | S56: 3rd party email | T56: n/a | U56: Replacement meter | W56: Not found | X56: Not found | Y56: Not found | Z56: 30 mins | AA56: n/a | AB56: n/a | AC56: n/a | AD56: n/a | AE56: n/a | AF56: Carried out by Smart metering company charge £40 per year this includes installation cost | AG56: 0 | AH56: 0 | AI56: 0 | AJ56: 0 | AK56: n/a | AL56: 0.1 | AM56: Fitted own meters
B57: 142.2 | C57: 12 | D57: 154.2 | E57: Zigbee HA | F57: ZigBee HA Single Phase Power Clamp | G57: Sensor | H57: Electricity (clamp) | I57: 1 | J57: Zigbee HA Gateway | K57: 120 | L57: Not found | M57: Not found | N57: Not found | P57: n/a | Q57: Zigbee | R57: n/a | S57: n/a | T57: Not found | U57: Not found | W57: din rail | X57: Not found | Y57: Not found | Z57: Not found | AA57: n/a | AB57: n/a | AC57: n/a | AD57: n/a | AE57: n/a | AG57: 5 | AH57: - | AI57: 15 | AJ57: - | AK57: - | AL57: 0.1
B58: 276.17 | C58: 48.575 | D58: 324.74 | E58: Zigbee HA | F58: Greenbox zigbee data logger ZC-GB-EM-UK | G58: Logger | H58: logger only | I58: 1 | J58: Ethernet or sim card for GPRS | K58: 485.75 | L58: 242.87 | M58: 194.28 | N58: 145.71 | O58: n/a | P58: Ethernet & GPRS | Q58: Zigbee | R58: 4Gb | S58: FTP/EMAIL CSV | T58: 152 x 128 x 40 | U58: Din Rail | Y58: Not found | Z58: min every 5 minutes | AA58: n/a | AB58: n/a | AC58: n/a | AD58: n/a | AE58: n/a | AG58: 30 | AH58: - | AI58: - | AJ58: - | AK58: - | AL58: 0.1
B59: PACKAGE 5
B60: 680.95 | C60: 174.05 | D60: 855
B61: 62.2 | C61: 24.55 | D61: 86.75 | E61: Eltek | F61: Eltek GC62 Pulse Counter | G61: Sensor | H61: Pulse counter transmitter from elec or gas but does not have approval for Zone 2 Atex | I61: 1 | J61: PR01 + RX250AL Logger | K61: 190 | L61: 40 | M61: 30 | N61: 25 | O61: n/a | P61: n/a | Q61: Prop. (433 MHz) | R61: n/a | S61: n/a | T61: 78 x 41 footprint | U61: Bracket to hold to wall and tamper proof | W61: Plug 6v-9v DC or Battery | X61: logging interval > 5 mins then 2 years 4 x LR6 AA | Y61: Not found | Z61: 1 sec to 4 hours 250 pulses per second max 65,000 pulses per logging interval | AA61: n/a | AB61: n/a | AC61: n/a | AD61: n/a | AE61: n/a | AF61: Not atex zone 2 approved | AG61: 10 | AH61: 10 | AI61: - | AJ61: - | AK61: 5 | AL61: 0.1 | AM61: Max 65,000 pulses per logging interval
B62: 68.85 | C62: 3 | D62: 71.85 | E62: Eltek | F62: PRO1 (alernative would be the elsetr, which you add in series and has 2 pulse out options) | G62: Sensor | H62: Circuited based - Energy pulse electric meter | I62: 1 | J62: Eltek GC62 and RX250AL logger | K62: 30 | L62: 30 | M62: 20 | N62: 15 | O62: n/a | P62: n/a | Q62: Prop. (433 MHz) | R62: n/a | S62: n/a | T62: 1 unit wide din rail device | U62: Fastened to exisiting unit inside or would have to add additional unit | W62: n/a | X62: n/a | Y62: Not found | AA62: n/a | AB62: n/a | AC62: n/a | AD62: n/a | AE62: n/a | AF62: Must be installed by qualified electrical engineer requires technical understanding for set up eg set = Maximum (32500) = Value per pulse (0.5Wh) | AG62: 5 | AH62: - | AI62: 30 | AJ62: - | AK62: - | AL62: 0.1
B63: 216.6 | C63: 61.5 | D63: 278.1 | E63: Eltek | F63: EltekGC10 without display | G63: Sensor | H63: Temperature, humidity | I63: 3 | J63: RX250AL Logger | K63: 205 | L63: 50 | M63: 32 | N63: 27 | O63: n/a | P63: n/a | Q63: Prop. (433 MHz) | R63: n/a | S63: n/a | T63: 78 x 41 footprint | U63: Bracket to hold to wall and tamper proof | W63: Battery | X63: 5 years | Y63: Not found | Z63: 30 sec to 4 hours | AA63: ±0.4°C (+5 to +40°C) ±1.0°C (-20 to +80°C) | AB63: -30 to 65°C | AC63: 0.1°C | AD63: ±2% (10 to 90%RH) ±4% (0 to 100%RH) | AE63: n/a | AF63: Large case | AG63: 20 | AH63: - | AI63: - | AJ63: - | AK63: - | AL63: 0.1 | AM63: Choose of white or metal colour
B64: 333.3 | C64: 85 | D64: 418.3 | E64: Eltek | F64: RX250AL logger | G64: Logger | H64: Logger only | I64: 1 | J64: Darca software | K64: 850 | L64: 300 | M64: 120 | N64: 100 | O64: n/a | P64: 3g modem with SIM built in to logger /GSM/to PC via serial | Q64: Prop. (433 MHz) | R64: 250,000 readings | S64: 3rd party website or database set up specifically by Eltek (cost to this) | T64: 180 x 120 x 60 | U64: metal bracket that screws on to the wall and holds the logger - Eltek can make more screw | W64: plug | X64: Backup battery 24 hours | Y64: Not found | Z64: 30 sec to 4 hours | AA64: n/a | AB64: n/a | AC64: n/a | AD64: n/a | AE64: n/a | AG64: 30 | AH64: - | AI64: - | AJ64: - | AK64: - | AL64: 0.1
B65: PACKAGE 6
B66: 693.87 | C66: 163.425 | D66: 857.3
B67: 105.5 | C67: 40.9 | D67: 146.4 | E67: HOBO | F67: HOBO UA001 08 | G67: Sensor | H67: External Temperature (Waterproof) | I67: 2 | J67: A HOBOware Software Starter Kit, HOBO BASE-U-1 Optic Base Station (£63) and Coupler | K67: 38 | L67: 36.1 | M67: 34.2 | N67: 32.3 | O67: n/a | P67: n/a | Q67: n/a | R67: 8K memory 6.5K readings | S67: Data download via Optic USB (IR) Base Station and Pendant Coupler | T67: 58 x 33 x 23 | U67: Integral eyelet (3mm hole) for easy mounting & securing | W67: Battery | X67: 1 year | Y67: Not found | Z67: 32 sec to 4 hours | AA67: 0.47ºC at 25ºC | AB67: -20° to 70°C | AC67: 0.1°C | AD67: n/a | AE67: n/a | AG67: 15 | AH67: - | AI67: - | AJ67: 5 | AK67: 10 | AL67: 0.1 | AM67: Programmable Start time/date or Trigger Start onsite with magnet
B68: 67 | C68: 21.95 | D68: 88.95 | E68: HOBO | F68: HOBO UA001 64 | G68: Sensor | H68: External Temperature (Waterproof) | I68: 1 | J68: A HOBOware Software Starter Kit, HOBO BASE-U-1 Optic Base Station (£63) and Coupler | K68: 53 | L68: 50.35 | M68: 47.7 | N68: 45.05 | O68: n/a | P68: n/a | Q68: n/a | R68: 64K memory 52K readings | S68: Data download via Optic USB (IR) Base Station and Pendant Coupler | T68: 58 x 33 x 23 | U68: Integral eyelet (3mm hole) for easy mounting & securing | W68: Battery | X68: 1 year | Y68: Not found | Z68: 33 sec to 4 hours | AA68: 0.47ºC at 25ºC | AB68: -20° to 70°C | AC68: 0.1°C | AD68: n/a | AE68: n/a | AG68: 15 | AH68: - | AI68: - | AJ68: 5 | AK68: 10 | AL68: 0.1 | AM68: Programmable Start time/date or Trigger Start onsite with magnet
B69: 40 | C69: 40 | D69: 80 | E69: Smart Monitoring Systems | F69: AMR | G69: All-in-one | H69: Gas (pulse) | I69: 1 | J69: none | K69: No charge for device, which still belongs to Smart Monitoring Systems | L69: No charge for device, which still belongs to Smart Monitoring Systems | M69: No charge for device, which still belongs to Smart Monitoring Systems | N69: No charge for device, which still belongs to Smart Monitoring Systems | O69: 40 | P69: GPRS | Q69: n/a | R69: n/a | S69: 3rd party email | T69: n/a | U69: Replacement meter | W69: Not found | X69: Not found | Y69: Not found | Z69: 30 mins | AA69: n/a | AB69: n/a | AC69: n/a | AD69: n/a | AE69: n/a | AF69: Carried out by Smart metering company charge £40 per year this includes installation cost | AG69: 0 | AH69: 0 | AI69: 0 | AJ69: 0 | AK69: n/a | AL69: 0.1 | AM69: Fitted own meters
B70: 142.2 | C70: 12 | D70: 154.2 | E70: Zigbee HA | F70: ZigBee HA Single Phase Power Clamp | G70: Sensor | H70: Electricity (clamp) | I70: 1 | J70: Zigbee HA Gateway | K70: 120 | L70: Not found | M70: Not found | N70: Not found | P70: n/a | Q70: Zigbee | R70: n/a | S70: n/a | T70: Not found | U70: Not found | W70: din rail | X70: Not found | Y70: Not found | Z70: Not found | AA70: n/a | AB70: n/a | AC70: n/a | AD70: n/a | AE70: n/a | AG70: 5 | AH70: - | AI70: 15 | AJ70: - | AK70: - | AL70: 0.1
B71: 276.17 | C71: 48.575 | D71: 324.74 | E71: Zigbee HA | F71: Greenbox zigbee data logger ZC-GB-EM-UK | G71: Logger | H71: logger only | I71: 1 | J71: Ethernet or sim card for GPRS | K71: 485.75 | L71: 242.87 | M71: 194.28 | N71: 145.71 | O71: n/a | P71: Ethernet & GPRS | Q71: Zigbee | R71: 4Gb | S71: FTP/EMAIL CSV | T71: 152 x 128 x 40 | U71: Din Rail | Y71: Not found | Z71: min every 5 minutes | AA71: n/a | AB71: n/a | AC71: n/a | AD71: n/a | AE71: n/a | AG71: 30 | AH71: - | AI71: - | AJ71: - | AK71: - | AL71: 0.1
B72: 63 | C72: 0 | D72: 63 | E72: HOBO | F72: A HOBOware Software Starter Kit, HOBO BASE-U-1 Optic Base Station (£63) and Coupler | G72: Logger | I72: 1 | J72: HOBO sensors | K72: 63 | L72: Not found | M72: Not found | N72: Not found
B73: PACKAGE 7
B74: 685.95 | C74: 175.55 | D74: 861.5
B75: 62.2 | C75: 24.55 | D75: 86.75 | E75: Eltek | F75: Eltek GC62 Pulse Counter | G75: Sensor | H75: Pulse counter transmitter from elec or gas but does not have approval for Zone 2 Atex | I75: 1 | J75: PR01 + RX250AL Logger | K75: 190 | L75: 40 | M75: 30 | N75: 25 | O75: n/a | P75: n/a | Q75: Prop. (433 MHz) | R75: n/a | S75: n/a | T75: 78 x 41 footprint | U75: Bracket to hold to wall and tamper proof | W75: Plug 6v-9v DC or Battery | X75: logging interval > 5 mins then 2 years 4 x LR6 AA | Y75: Not found | Z75: 1 sec to 4 hours 250 pulses per second max 65,000 pulses per logging interval | AA75: n/a | AB75: n/a | AC75: n/a | AD75: n/a | AE75: n/a | AF75: Not atex zone 2 approved | AG75: 10 | AH75: 10 | AI75: - | AJ75: - | AK75: 5 | AL75: 0.1 | AM75: Max 65,000 pulses per logging interval
B76: 68.85 | C76: 3 | D76: 71.85 | E76: Eltek | F76: PRO1 (alernative would be the elsetr, which you add in series and has 2 pulse out options) | G76: Sensor | H76: Circuited based - Energy pulse electric meter | I76: 1 | J76: Eltek GC62 and RX250AL logger | K76: 30 | L76: 30 | M76: 20 | N76: 15 | O76: n/a | P76: n/a | Q76: Prop. (433 MHz) | R76: n/a | S76: n/a | T76: 1 unit wide din rail device | U76: Fastened to exisiting unit inside or would have to add additional unit | W76: n/a | X76: n/a | Y76: Not found | AA76: n/a | AB76: n/a | AC76: n/a | AD76: n/a | AE76: n/a | AF76: Must be installed by qualified electrical engineer requires technical understanding for set up eg set = Maximum (32500) = Value per pulse (0.5Wh) | AG76: 5 | AH76: - | AI76: 30 | AJ76: - | AK76: - | AL76: 0.1
B77: 77.2 | C77: 22 | D77: 99.2 | E77: Eltek | F77: Eltek GD10 (with display) | G77: Sensor | H77: Temperature, humidity | I77: 1 | J77: RX250AL Logger | K77: 220 | L77: 55 | M77: 35 | N77: 30 | O77: n/a | P77: n/a | Q77: Prop. (433 MHz) | R77: n/a | S77: n/a | T77: 78 x 41 footprint | U77: Bracket to hold to wall and tamper proof | W77: Battery | X77: 5 years | Y77: Not found | Z77: 30 sec to 4 hours | AA77: ±0.4°C (+5 to +40°C) ±1.0°C (-20 to +80°C) | AB77: -30 to 65°C | AC77: 0.1°C | AD77: ±2% (10 to 90%RH) ±4% (0 to 100%RH) | AE77: n/a | AF77: Large case | AG77: 20 | AH77: - | AI77: - | AJ77: - | AK77: - | AL77: 0.1 | AM77: Choose of white or metal colour
B78: 144.4 | C78: 41 | D78: 185.4 | E78: Eltek | F78: EltekGC10 without display | G78: Sensor | H78: Temperature, humidity | I78: 2 | J78: RX250AL Logger | K78: 205 | L78: 50 | M78: 32 | N78: 27 | O78: n/a | P78: n/a | Q78: Prop. (433 MHz) | R78: n/a | S78: n/a | T78: 78 x 41 footprint | U78: Bracket to hold to wall and tamper proof | W78: Battery | X78: 5 years | Y78: Not found | Z78: 30 sec to 4 hours | AA78: ±0.4°C (+5 to +40°C) ±1.0°C (-20 to +80°C) | AB78: -30 to 65°C | AC78: 0.1°C | AD78: ±2% (10 to 90%RH) ±4% (0 to 100%RH) | AE78: n/a | AF78: Large case | AG78: 20 | AH78: - | AI78: - | AJ78: - | AK78: - | AL78: 0.1 | AM78: Choose of white or metal colour
B79: 333.3 | C79: 85 | D79: 418.3 | E79: Eltek | F79: RX250AL logger | G79: Logger | H79: Logger only | I79: 1 | J79: Darca software | K79: 850 | L79: 300 | M79: 120 | N79: 100 | O79: n/a | P79: 3g modem with SIM built in to logger /GSM/to PC via serial | Q79: Prop. (433 MHz) | R79: 250,000 readings | S79: 3rd party website or database set up specifically by Eltek (cost to this) | T79: 180 x 120 x 60 | U79: metal bracket that screws on to the wall and holds the logger - Eltek can make more screw | W79: plug | X79: Backup battery 24 hours | Y79: Not found | Z79: 30 sec to 4 hours | AA79: n/a | AB79: n/a | AC79: n/a | AD79: n/a | AE79: n/a | AG79: 30 | AH79: - | AI79: - | AJ79: - | AK79: - | AL79: 0.1
B80: PACKAGE 8
B81: 710.67 | C81: 155.175 | D81: 865.85
B82: 160.6 | C82: 35.6 | D82: 196.2 | E82: HOBO | F82: HOBO UX100-001 | G82: All-in-one | H82: Room Temperature | I82: 2 | J82: HOBOware (PC software) | K82: 67 | L82: 63.65 | M82: 60.3 | N82: 56.95 | O82: n/a | P82: n/a | Q82: n/a | R82: 128 KB 84,650 measurements | S82: PC software and usb connector | T82: 36.6 x 59.4 x 15.2 | U82: Built-in magnets Command strip Double sided tape Hook and Loop strap to mount to curved surface | W82: Battery | X82: 1 year @ log rate of 1 min and sampling interval of 15secs or > | Y82: Not found | Z82: 1 sec to 18 hours | AA82: ±0.21°C from 0° to 50°C | AB82: -20° to 70°C | AC82: 0.024°C | AD82: n/a | AE82: n/a | AF82: - | AG82: 15 | AH82: - | AI82: - | AJ82: 5 | AK82: 5 | AL82: 0.1 | AM82: Reported monitioring interval drift, 5min interval can drift from 3 to 7 mins Software Pro £88 Software Lite £40
B83: 91.7 | C83: 19 | D83: 110.7 | E83: HOBO | F83: HOBO UX100-003 | G83: All-in-one | H83: Room Temperature, Humidity | I83: 1 | J83: HOBOware (PC software) | K83: 79 | L83: 75.05 | M83: 71.1 | N83: 67.15 | O83: n/a | P83: n/a | Q83: n/a | R83: 128 KB 84,650 measurements | S83: PC software and usb connector | T83: 36.6 x 84.8 x 15.2 | U83: Built-in magnets Command strip Double sided tape Hook and Loop strap to mount to curved surface | W83: Battery | X83: 1 year @ log rate of 1 min and sampling interval of 15secs or > | Y83: Not found | Z83: 1 sec to 18 hours | AA83: ±0.21°C from 0° to 50°C | AB83: -20° to 70°C | AC83: 0.024°C | AD83: ±3.5% from 25% to 85% | AE83: n/a | AF83: - | AG83: 15 | AH83: - | AI83: - | AJ83: 5 | AK83: 5 | AL83: 0.1 | AM83: Reported monitoring interval drift, 5min interval can drift from 3 to 7 mins Software Pro £88 Software Lite £40
B84: 40 | C84: 40 | D84: 80 | E84: Smart Monitoring Systems | F84: AMR | G84: All-in-one | H84: Gas (pulse) | I84: 1 | J84: none | K84: No charge for device, which still belongs to Smart Monitoring Systems | L84: No charge for device, which still belongs to Smart Monitoring Systems | M84: No charge for device, which still belongs to Smart Monitoring Systems | N84: No charge for device, which still belongs to Smart Monitoring Systems | O84: 40 | P84: GPRS | Q84: n/a | R84: n/a | S84: 3rd party email | T84: n/a | U84: Replacement meter | W84: Not found | X84: Not found | Y84: Not found | Z84: 30 mins | AA84: n/a | AB84: n/a | AC84: n/a | AD84: n/a | AE84: n/a | AF84: Carried out by Smart metering company charge £40 per year this includes installation cost | AG84: 0 | AH84: 0 | AI84: 0 | AJ84: 0 | AK84: n/a | AL84: 0.1 | AM84: Fitted own meters
B85: 142.2 | C85: 12 | D85: 154.2 | E85: Zigbee HA | F85: ZigBee HA Single Phase Power Clamp | G85: Sensor | H85: Electricity (clamp) | I85: 1 | J85: Zigbee HA Gateway | K85: 120 | L85: Not found | M85: Not found | N85: Not found | P85: n/a | Q85: Zigbee | R85: n/a | S85: n/a | T85: Not found | U85: Not found | W85: din rail | X85: Not found | Y85: Not found | Z85: Not found | AA85: n/a | AB85: n/a | AC85: n/a | AD85: n/a | AE85: n/a | AG85: 5 | AH85: - | AI85: 15 | AJ85: - | AK85: - | AL85: 0.1
B86: 276.17 | C86: 48.575 | D86: 324.74 | E86: Zigbee HA | F86: Greenbox zigbee data logger ZC-GB-EM-UK | G86: Logger | H86: logger only | I86: 1 | J86: Ethernet or sim card for GPRS | K86: 485.75 | L86: 242.87 | M86: 194.28 | N86: 145.71 | O86: n/a | P86: Ethernet & GPRS | Q86: Zigbee | R86: 4Gb | S86: FTP/EMAIL CSV | T86: 152 x 128 x 40 | U86: Din Rail | Y86: Not found | Z86: min every 5 minutes | AA86: n/a | AB86: n/a | AC86: n/a | AD86: n/a | AE86: n/a | AG86: 30 | AH86: - | AI86: - | AJ86: - | AK86: - | AL86: 0.1
B87: PACKAGE 9
B88: 712.05 | C88: 183.05 | D88: 895.1
B89: 68.85 | C89: 3 | D89: 71.85 | E89: Eltek | F89: PRO1 (alernative would be the elsetr, which you add in series and has 2 pulse out options) | G89: Sensor | H89: Circuited based - Energy pulse electric meter | I89: 1 | J89: Eltek GC62 and RX250AL logger | K89: 30 | L89: 30 | M89: 20 | N89: 15 | O89: n/a | P89: n/a | Q89: Prop. (433 MHz) | R89: n/a | S89: n/a | T89: 1 unit wide din rail device | U89: Fastened to exisiting unit inside or would have to add additional unit | W89: n/a | X89: n/a | Y89: Not found | AA89: n/a | AB89: n/a | AC89: n/a | AD89: n/a | AE89: n/a | AF89: Must be installed by qualified electrical engineer requires technical understanding for set up eg set = Maximum (32500) = Value per pulse (0.5Wh) | AG89: 5 | AH89: - | AI89: 30 | AJ89: - | AK89: - | AL89: 0.1
B90: 93.3 | C90: 33.55 | D90: 126.85 | E90: Eltek | F90: Eltek GC62EX pulse counter | G90: Sensor | H90: Energy pulse for gas and electricity meters | I90: 1 | J90: Electricity monitoring requires a PR01 monitor to connect to the gas meter part of this transmitter AND a RX250AL Logger | K90: 280 | L90: 60 | M90: 40 | N90: 35 | O90: n/a | P90: n/a | Q90: Prop. (433 MHz) | R90: n/a | S90: n/a | T90: 78 x 41 footprint | U90: Bracket to hold to wall and tamper proof | W90: Battery lithuim | X90: 1 year logging every 5 mins could be greater if longer logging interval Replace only with Eltek battery | Y90: Not found | Z90: 250 pulses per second max 65,000 pulses per logging interval | AA90: n/a | AB90: n/a | AC90: n/a | AD90: n/a | AE90: n/a | AG90: 10 | AH90: uncertain | AI90: 20 | AJ90: - | AK90: 5 | AL90: 0.1 | AM90: Self-certified to Atex zone 2 requirement of IGEM /7A communication 1731. Can be installed by enginner, was used by Eon, who accepted this. Best to confirm with IGEM if electricity and gas can be relayed using one transmitter.
B91: 216.6 | C91: 61.5 | D91: 278.1 | E91: Eltek | F91: EltekGC10 without display | G91: Sensor | H91: Temperature, humidity | I91: 3 | J91: RX250AL Logger | K91: 205 | L91: 50 | M91: 32 | N91: 27 | O91: n/a | P91: n/a | Q91: Prop. (433 MHz) | R91: n/a | S91: n/a | T91: 78 x 41 footprint | U91: Bracket to hold to wall and tamper proof | W91: Battery | X91: 5 years | Y91: Not found | Z91: 30 sec to 4 hours | AA91: ±0.4°C (+5 to +40°C) ±1.0°C (-20 to +80°C) | AB91: -30 to 65°C | AC91: 0.1°C | AD91: ±2% (10 to 90%RH) ±4% (0 to 100%RH) | AE91: n/a | AF91: Large case | AG91: 20 | AH91: - | AI91: - | AJ91: - | AK91: - | AL91: 0.1 | AM91: Choose of white or metal colour
B92: 333.3 | C92: 85 | D92: 418.3 | E92: Eltek | F92: RX250AL logger | G92: Logger | H92: Logger only | I92: 1 | J92: Darca software | K92: 850 | L92: 300 | M92: 120 | N92: 100 | O92: n/a | P92: 3g modem with SIM built in to logger /GSM/to PC via serial | Q92: Prop. (433 MHz) | R92: 250,000 readings | S92: 3rd party website or database set up specifically by Eltek (cost to this) | T92: 180 x 120 x 60 | U92: metal bracket that screws on to the wall and holds the logger - Eltek can make more screw | W92: plug | X92: Backup battery 24 hours | Y92: Not found | Z92: 30 sec to 4 hours | AA92: n/a | AB92: n/a | AC92: n/a | AD92: n/a | AE92: n/a | AG92: 30 | AH92: - | AI92: - | AJ92: - | AK92: - | AL92: 0.1
B93: PACKAGE 10
B94: 741.07 | C94: 158.375 | D94: 899.45
B95: 160.6 | C95: 35.6 | D95: 196.2 | E95: HOBO | F95: HOBO UX100-001 | G95: All-in-one | H95: Room Temperature | I95: 2 | J95: HOBOware (PC software) | K95: 67 | L95: 63.65 | M95: 60.3 | N95: 56.95 | O95: n/a | P95: n/a | Q95: n/a | R95: 128 KB 84,650 measurements | S95: PC software and usb connector | T95: 36.6 x 59.4 x 15.2 | U95: Built-in magnets Command strip Double sided tape Hook and Loop strap to mount to curved surface | W95: Battery | X95: 1 year @ log rate of 1 min and sampling interval of 15secs or > | Y95: Not found | Z95: 1 sec to 18 hours | AA95: ±0.21°C from 0° to 50°C | AB95: -20° to 70°C | AC95: 0.024°C | AD95: n/a | AE95: n/a | AF95: - | AG95: 15 | AH95: - | AI95: - | AJ95: 5 | AK95: 5 | AL95: 0.1 | AM95: Reported monitioring interval drift, 5min interval can drift from 3 to 7 mins Software Pro £88 Software Lite £40
B96: 122.1 | C96: 22.2 | D96: 144.3 | E96: HOBO | F96: HOBO UX100-011 | G96: All-in-one | H96: Room Temperature, Humidity | I96: 1 | J96: HOBOware (PC software) | K96: 111 | L96: 105.45 | M96: 99.9 | N96: 94.35 | O96: n/a | P96: n/a | Q96: n/a | R96: 128 KB 84,650 measurements | S96: PC software and usb connector | T96: 36.6 x 84.8 x 15.2 | U96: Built-in magnets Command strip Double sided tape Hook and Loop strap to mount to curved surface | W96: Battery | X96: 1 year @ log rate of 1 min and sampling interval of 15secs or > | Y96: Not found | Z96: n/a | AA96: ±0.21°C from 0° to 50°C | AB96: -20° to 70°C | AC96: 0.024°C | AD96: ±2.5% from 10% to 90% | AE96: n/a | AF96: - | AG96: 15 | AH96: - | AI96: - | AJ96: 5 | AK96: 5 | AL96: 0.1 | AM96: Software Pro £88 Software Lite £40
B97: 40 | C97: 40 | D97: 80 | E97: Smart Monitoring Systems | F97: AMR | G97: All-in-one | H97: Gas (pulse) | I97: 1 | J97: none | K97: No charge for device, which still belongs to Smart Monitoring Systems | L97: No charge for device, which still belongs to Smart Monitoring Systems | M97: No charge for device, which still belongs to Smart Monitoring Systems | N97: No charge for device, which still belongs to Smart Monitoring Systems | O97: 40 | P97: GPRS | Q97: n/a | R97: n/a | S97: 3rd party email | T97: n/a | U97: Replacement meter | W97: Not found | X97: Not found | Y97: Not found | Z97: 30 mins | AA97: n/a | AB97: n/a | AC97: n/a | AD97: n/a | AE97: n/a | AF97: Carried out by Smart metering company charge £40 per year this includes installation cost | AG97: 0 | AH97: 0 | AI97: 0 | AJ97: 0 | AK97: n/a | AL97: 0.1 | AM97: Fitted own meters
B98: 142.2 | C98: 12 | D98: 154.2 | E98: Zigbee HA | F98: ZigBee HA Single Phase Power Clamp | G98: Sensor | H98: Electricity (clamp) | I98: 1 | J98: Zigbee HA Gateway | K98: 120 | L98: Not found | M98: Not found | N98: Not found | P98: n/a | Q98: Zigbee | R98: n/a | S98: n/a | T98: Not found | U98: Not found | W98: din rail | X98: Not found | Y98: Not found | Z98: Not found | AA98: n/a | AB98: n/a | AC98: n/a | AD98: n/a | AE98: n/a | AG98: 5 | AH98: - | AI98: 15 | AJ98: - | AK98: - | AL98: 0.1
B99: 276.17 | C99: 48.575 | D99: 324.74 | E99: Zigbee HA | F99: Greenbox zigbee data logger ZC-GB-EM-UK | G99: Logger | H99: logger only | I99: 1 | J99: Ethernet or sim card for GPRS | K99: 485.75 | L99: 242.87 | M99: 194.28 | N99: 145.71 | O99: n/a | P99: Ethernet & GPRS | Q99: Zigbee | R99: 4Gb | S99: FTP/EMAIL CSV | T99: 152 x 128 x 40 | U99: Din Rail | Y99: Not found | Z99: min every 5 minutes | AA99: n/a | AB99: n/a | AC99: n/a | AD99: n/a | AE99: n/a | AG99: 30 | AH99: - | AI99: - | AJ99: - | AK99: - | AL99: 0.1
B100: PACKAGE 11
B101: 821.9 | C101: 125.625 | D101: 947.53
B102: 52.65 | C102: 4.5 | D102: 57.15 | E102: Radio-tech | F102: Radio-tech ecochirp | G102: Sensor | H102: Electricity (pulse) | I102: 1 | J102: Radio-tech Wi5 | K102: 45 | L102: 36 | M102: 32.4 | N102: 30.78 | O102: n/a | P102: n/a | Q102: 434MHz, | R102: n/a | S102: n/a | T102: 55 x 67 x 180 | U102: Clamp - Mounting bracket | V102: ASL Holdings system company have a CAD and do bespoke systems | W102: Battery | X102: 5 years | Y102: Reports battery levels via gateway | Z102: 1 min to 24 hours | AA102: n/a | AB102: n/a | AC102: n/a | AD102: n/a | AE102: n/a | AF102: plug and play with some wifi setup programming | AG102: 15 | AH102: n/a | AI102: n/a | AJ102: 0 | AK102: Return to HMW for change | AL102: 0.1 | AM102: Strict on battery life so expect to give what it says
B103: 250.95 | C103: 23.625 | D103: 274.56 | E103: Radio-tech | F103: Radio-tech ecosense surface | G103: Sensor | H103: Wall Temperature | I103: 3 | J103: Radio-tech Wi5 | K103: 78.75 | L103: 67 | M103: 63 | N103: 59 | O103: n/a | P103: n/a | Q103: 434MHz, | R103: n/a | S103: n/a | T103: Not found | V103: ASL Holdings system company have a CAD and do bespoke systems | W103: Battery | X103: 5 years | Y103: Reports battery levels via gateway | Z103: 1 min to 24 hours | AA103: 0.3C | AB103: Not found | AC103: Not found | AD103: n/a | AE103: n/a | AF103: plug and play with some wifi setup programming | AG103: 15 | AH103: n/a | AI103: n/a | AJ103: 0 | AK103: Return to HMW for change | AL103: 0.1 | AM103: Strict on battery life so expect to give what it says
B104: 478.3 | C104: 57.5 | D104: 535.8 | E104: Radio-tech | F104: Radio-tech Wi5 | G104: Logger | H104: Central data concentrator logger and transmitter | I104: 1 | J104: Third party FTP (sim card) | K104: 575 | L104: 445 | M104: 400 | N104: 380 | O104: n/a | P104: ethernet or GPRS | Q104: 434MHz, | R104: 2GB | S104: Configurable to 3rd party website by the the company, have own front end Portal for viewing the data and can export from this. Can store and make accessible. | T104: 220 x 200 x 45 | U104: Wall mountable | V104: No | W104: Plug | X104: back up battery 24 hours for logging only, need mains for transmission. | Y104: Reports battery levels via gateway | Z104: 1 min to 24 hours | AA104: n/a | AB104: n/a | AC104: n/a | AD104: n/a | AE104: n/a | AF104: plug and play with some wifi setup programming | AG104: 30 | AH104: n/a | AI104: n/a | AJ104: 0 | AK104: n/a | AL104: 0.1 | AM104: GPRS sim card cost of the SIM tariff, bulk of 2 or 5 years
B105: 40 | C105: 40 | D105: 80 | E105: Smart Monitoring Systems | F105: AMR | G105: All-in-one | H105: Gas (pulse) | I105: 1 | J105: none | K105: No charge for device, which still belongs to Smart Monitoring Systems | L105: No charge for device, which still belongs to Smart Monitoring Systems | M105: No charge for device, which still belongs to Smart Monitoring Systems | N105: No charge for device, which still belongs to Smart Monitoring Systems | O105: 40 | P105: GPRS | Q105: n/a | R105: n/a | S105: 3rd party email | T105: n/a | U105: Replacement meter | W105: Not found | X105: Not found | Y105: Not found | Z105: 30 mins | AA105: n/a | AB105: n/a | AC105: n/a | AD105: n/a | AE105: n/a | AF105: Carried out by Smart metering company charge £40 per year this includes installation cost | AG105: 0 | AH105: 0 | AI105: 0 | AJ105: 0 | AK105: n/a | AL105: 0.1 | AM105: Fitted own meters
B106: PACKAGE 12
B107: 780.95 | C107: 201.05 | D107: 982
B108: 62.2 | C108: 24.55 | D108: 86.75 | E108: Eltek | F108: Eltek GC62 Pulse Counter | G108: Sensor | H108: Pulse counter transmitter from elec or gas but does not have approval for Zone 2 Atex | I108: 1 | J108: PR01 + RX250AL Logger | K108: 190 | L108: 40 | M108: 30 | N108: 25 | O108: n/a | P108: n/a | Q108: Prop. (433 MHz) | R108: n/a | S108: n/a | T108: 78 x 41 footprint | U108: Bracket to hold to wall and tamper proof | W108: Plug 6v-9v DC or Battery | X108: logging interval > 5 mins then 2 years 4 x LR6 AA | Y108: Not found | Z108: 1 sec to 4 hours 250 pulses per second max 65,000 pulses per logging interval | AA108: n/a | AB108: n/a | AC108: n/a | AD108: n/a | AE108: n/a | AF108: Not atex zone 2 approved | AG108: 10 | AH108: 10 | AI108: - | AJ108: - | AK108: 5 | AL108: 0.1 | AM108: Max 65,000 pulses per logging interval
B109: 68.85 | C109: 3 | D109: 71.85 | E109: Eltek | F109: PRO1 (alernative would be the elsetr, which you add in series and has 2 pulse out options) | G109: Sensor | H109: Circuited based - Energy pulse electric meter | I109: 1 | J109: Eltek GC62 and RX250AL logger | K109: 30 | L109: 30 | M109: 20 | N109: 15 | O109: n/a | P109: n/a | Q109: Prop. (433 MHz) | R109: n/a | S109: n/a | T109: 1 unit wide din rail device | U109: Fastened to exisiting unit inside or would have to add additional unit | W109: n/a | X109: n/a | Y109: Not found | AA109: n/a | AB109: n/a | AC109: n/a | AD109: n/a | AE109: n/a | AF109: Must be installed by qualified electrical engineer requires technical understanding for set up eg set = Maximum (32500) = Value per pulse (0.5Wh) | AG109: 5 | AH109: - | AI109: 30 | AJ109: - | AK109: - | AL109: 0.1
B110: 144.4 | C110: 41 | D110: 185.4 | E110: Eltek | F110: EltekGC10 without display | G110: Sensor | H110: Temperature, humidity | I110: 2 | J110: RX250AL Logger | K110: 205 | L110: 50 | M110: 32 | N110: 27 | O110: n/a | P110: n/a | Q110: Prop. (433 MHz) | R110: n/a | S110: n/a | T110: 78 x 41 footprint | U110: Bracket to hold to wall and tamper proof | W110: Battery | X110: 5 years | Y110: Not found | Z110: 30 sec to 4 hours | AA110: ±0.4°C (+5 to +40°C) ±1.0°C (-20 to +80°C) | AB110: -30 to 65°C | AC110: 0.1°C | AD110: ±2% (10 to 90%RH) ±4% (0 to 100%RH) | AE110: n/a | AF110: Large case | AG110: 20 | AH110: - | AI110: - | AJ110: - | AK110: - | AL110: 0.1 | AM110: Choose of white or metal colour
B111: 172.2 | C111: 47.5 | D111: 219.7 | E111: Eltek | F111: Eltek GW47 CO2 sensor | G111: Sensor | H111: CO2, Temperature, Humdity | I111: 1 | J111: RX250AL Logger | K111: 475 | L111: 150 | M111: 100 | N111: 90 | O111: n/a | P111: n/a | Q111: Prop. (433 MHz) | R111: n/a | S111: n/a | T111: 78 x 41 footprint | U111: Wall mounting screw on a backplate | W111: plug | X111: Backup battery 100 hours | Y111: Not found | Z111: 30 sec to 4 hours | AA111: ±0.4°C (+5 to +40°C) ±1.0°C (-20 to +80°C) | AB111: -30 to 65°C | AC111: 0.1°C | AD111: ±2% (10 to 90%RH) ±4% (0 to 100%RH) | AE111: ±50ppm | AF111: Needs plug, large case | AG111: 20 | AH111: - | AI111: - | AJ111: - | AK111: - | AL111: 0.1
B112: 333.3 | C112: 85 | D112: 418.3 | E112: Eltek | F112: RX250AL logger | G112: Logger | H112: Logger only | I112: 1 | J112: Darca software | K112: 850 | L112: 300 | M112: 120 | N112: 100 | O112: n/a | P112: 3g modem with SIM built in to logger /GSM/to PC via serial | Q112: Prop. (433 MHz) | R112: 250,000 readings | S112: 3rd party website or database set up specifically by Eltek (cost to this) | T112: 180 x 120 x 60 | U112: metal bracket that screws on to the wall and holds the logger - Eltek can make more screw | W112: plug | X112: Backup battery 24 hours | Y112: Not found | Z112: 30 sec to 4 hours | AA112: n/a | AB112: n/a | AC112: n/a | AD112: n/a | AE112: n/a | AG112: 30 | AH112: - | AI112: - | AJ112: - | AK112: - | AL112: 0.1
B113: PACKAGE 13
B114: 864.9 | C114: 131.75 | D114: 996.65
B115: 52.65 | C115: 4.5 | D115: 57.15 | E115: Radio-tech | F115: Radio-tech ecochirp | G115: Sensor | H115: Electricity (pulse) | I115: 1 | J115: Radio-tech Wi5 | K115: 45 | L115: 36 | M115: 32.4 | N115: 30.78 | O115: n/a | P115: n/a | Q115: 434MHz, | R115: n/a | S115: n/a | T115: 55 x 67 x 180 | U115: Clamp - Mounting bracket | V115: ASL Holdings system company have a CAD and do bespoke systems | W115: Battery | X115: 5 years | Y115: Reports battery levels via gateway | Z115: 1 min to 24 hours | AA115: n/a | AB115: n/a | AC115: n/a | AD115: n/a | AE115: n/a | AF115: plug and play with some wifi setup programming | AG115: 15 | AH115: n/a | AI115: n/a | AJ115: 0 | AK115: Return to HMW for change | AL115: 0.1 | AM115: Strict on battery life so expect to give what it says
B116: 126.65 | C116: 14 | D116: 140.65 | E116: Radio-tech | F116: Radio-tech ecosense internal | G116: Sensor | H116: Room Temperature, Humidity | I116: 1 | J116: Radio-tech Wi5 | K116: 140 | L116: 110 | M116: 99 | N116: 94.05 | O116: n/a | P116: n/a | Q116: 434MHz, | R116: n/a | S116: n/a | T116: Not found | V116: ASL Holdings system company have a CAD and do bespoke systems | W116: Battery | X116: 5 years | Y116: Reports battery levels via gateway | Z116: 1 min to 24 hours | AA116: 0.3C | AB116: -20 C to 65 C | AC116: Not found | AD116: 0.018 | AE116: n/a | AF116: plug and play with some wifi setup programming | AG116: 15 | AH116: n/a | AI116: n/a | AJ116: 0 | AK116: Return to HMW for change | AL116: 0.1 | AM116: Strict on battery life so expect to give what it says
B117: 167.3 | C117: 15.75 | D117: 183.04 | E117: Radio-tech | F117: Radio-tech ecosense surface | G117: Sensor | H117: Wall Temperature | I117: 2 | J117: Radio-tech Wi5 | K117: 78.75 | L117: 67 | M117: 63 | N117: 59 | O117: n/a | P117: n/a | Q117: 434MHz, | R117: n/a | S117: n/a | T117: Not found | V117: ASL Holdings system company have a CAD and do bespoke systems | W117: Battery | X117: 5 years | Y117: Reports battery levels via gateway | Z117: 1 min to 24 hours | AA117: 0.3C | AB117: Not found | AC117: Not found | AD117: n/a | AE117: n/a | AF117: plug and play with some wifi setup programming | AG117: 15 | AH117: n/a | AI117: n/a | AJ117: 0 | AK117: Return to HMW for change | AL117: 0.1 | AM117: Strict on battery life so expect to give what it says
B118: 478.3 | C118: 57.5 | D118: 535.8 | E118: Radio-tech | F118: Radio-tech Wi5 | G118: Logger | H118: Central data concentrator logger and transmitter | I118: 1 | J118: Third party FTP (sim card) | K118: 575 | L118: 445 | M118: 400 | N118: 380 | O118: n/a | P118: ethernet or GPRS | Q118: 434MHz, | R118: 2GB | S118: Configurable to 3rd party website by the the company, have own front end Portal for viewing the data and can export from this. Can store and make accessible. | T118: 220 x 200 x 45 | U118: Wall mountable | V118: No | W118: Plug | X118: back up battery 24 hours for logging only, need mains for transmission. | Y118: Reports battery levels via gateway | Z118: 1 min to 24 hours | AA118: n/a | AB118: n/a | AC118: n/a | AD118: n/a | AE118: n/a | AF118: plug and play with some wifi setup programming | AG118: 30 | AH118: n/a | AI118: n/a | AJ118: 0 | AK118: n/a | AL118: 0.1 | AM118: GPRS sim card cost of the SIM tariff, bulk of 2 or 5 years
B119: 40 | C119: 40 | D119: 80 | E119: Smart Monitoring Systems | F119: AMR | G119: All-in-one | H119: Gas (pulse) | I119: 1 | J119: none | K119: No charge for device, which still belongs to Smart Monitoring Systems | L119: No charge for device, which still belongs to Smart Monitoring Systems | M119: No charge for device, which still belongs to Smart Monitoring Systems | N119: No charge for device, which still belongs to Smart Monitoring Systems | O119: 40 | P119: GPRS | Q119: n/a | R119: n/a | S119: 3rd party email | T119: n/a | U119: Replacement meter | W119: Not found | X119: Not found | Y119: Not found | Z119: 30 mins | AA119: n/a | AB119: n/a | AC119: n/a | AD119: n/a | AE119: n/a | AF119: Carried out by Smart metering company charge £40 per year this includes installation cost | AG119: 0 | AH119: 0 | AI119: 0 | AJ119: 0 | AK119: n/a | AL119: 0.1 | AM119: Fitted own meters
B120: PACKAGE 14
B121: 910.08 | C121: 96.781 | D121: 1006.86
B122: 128.18 | C122: 11.156 | D122: 139.34 | E122: Radio-tech | F122: Radio-tech ecochirp | G122: Sensor | H122: Gas (pulse) | I122: 1 | J122: Radio-tech Wi5 | K122: 111.56 | L122: 105.98 | M122: 100.4 | N122: 94.82 | O122: n/a | P122: n/a | Q122: 434MHz, | R122: n/a | S122: n/a | T122: Not found | U122: Mounting bracket | V122: ASL Holdings system company have a CAD and do bespoke systems | W122: Battery | X122: 10years | Y122: Reports battery levels via gateway | Z122: 1 min to 24 hours | AA122: n/a | AB122: n/a | AC122: n/a | AD122: n/a | AE122: n/a | AF122: Ecosafe VHF versin available in Zone 2 Atex acreditation | AG122: 5 | AH122: 15 | AI122: n/a | AJ122: 0 | AK122: Return to HMW for change | AL122: 0.1 | AM122: Strict on battery life so expect to give what it says
B123: 52.65 | C123: 4.5 | D123: 57.15 | E123: Radio-tech | F123: Radio-tech ecochirp | G123: Sensor | H123: Electricity (pulse) | I123: 1 | J123: Radio-tech Wi5 | K123: 45 | L123: 36 | M123: 32.4 | N123: 30.78 | O123: n/a | P123: n/a | Q123: 434MHz, | R123: n/a | S123: n/a | T123: 55 x 67 x 180 | U123: Clamp - Mounting bracket | V123: ASL Holdings system company have a CAD and do bespoke systems | W123: Battery | X123: 5 years | Y123: Reports battery levels via gateway | Z123: 1 min to 24 hours | AA123: n/a | AB123: n/a | AC123: n/a | AD123: n/a | AE123: n/a | AF123: plug and play with some wifi setup programming | AG123: 15 | AH123: n/a | AI123: n/a | AJ123: 0 | AK123: Return to HMW for change | AL123: 0.1 | AM123: Strict on battery life so expect to give what it says
B124: 250.95 | C124: 23.625 | D124: 274.56 | E124: Radio-tech | F124: Radio-tech ecosense surface | G124: Sensor | H124: Wall Temperature | I124: 3 | J124: Radio-tech Wi5 | K124: 78.75 | L124: 67 | M124: 63 | N124: 59 | O124: n/a | P124: n/a | Q124: 434MHz, | R124: n/a | S124: n/a | T124: Not found | V124: ASL Holdings system company have a CAD and do bespoke systems | W124: Battery | X124: 5 years | Y124: Reports battery levels via gateway | Z124: 1 min to 24 hours | AA124: 0.3C | AB124: Not found | AC124: Not found | AD124: n/a | AE124: n/a | AF124: plug and play with some wifi setup programming | AG124: 15 | AH124: n/a | AI124: n/a | AJ124: 0 | AK124: Return to HMW for change | AL124: 0.1 | AM124: Strict on battery life so expect to give what it says
B125: 478.3 | C125: 57.5 | D125: 535.8 | E125: Radio-tech | F125: Radio-tech Wi5 | G125: Logger | H125: Central data concentrator logger and transmitter | I125: 1 | J125: Third party FTP (sim card) | K125: 575 | L125: 445 | M125: 400 | N125: 380 | O125: n/a | P125: ethernet or GPRS | Q125: 434MHz, | R125: 2GB | S125: Configurable to 3rd party website by the the company, have own front end Portal for viewing the data and can export from this. Can store and make accessible. | T125: 220 x 200 x 45 | U125: Wall mountable | V125: No | W125: Plug | X125: back up battery 24 hours for logging only, need mains for transmission. | Y125: Reports battery levels via gateway | Z125: 1 min to 24 hours | AA125: n/a | AB125: n/a | AC125: n/a | AD125: n/a | AE125: n/a | AF125: plug and play with some wifi setup programming | AG125: 30 | AH125: n/a | AI125: n/a | AJ125: 0 | AK125: n/a | AL125: 0.1 | AM125: GPRS sim card cost of the SIM tariff, bulk of 2 or 5 years
B126: PACKAGE 15
B127: 875.9 | C127: 133.15 | D127: 1009.05
B128: 52.65 | C128: 4.5 | D128: 57.15 | E128: Radio-tech | F128: Radio-tech ecochirp | G128: Sensor | H128: Electricity (pulse) | I128: 1 | J128: Radio-tech Wi5 | K128: 45 | L128: 36 | M128: 32.4 | N128: 30.78 | O128: n/a | P128: n/a | Q128: 434MHz, | R128: n/a | S128: n/a | T128: 55 x 67 x 180 | U128: Clamp - Mounting bracket | V128: ASL Holdings system company have a CAD and do bespoke systems | W128: Battery | X128: 5 years | Y128: Reports battery levels via gateway | Z128: 1 min to 24 hours | AA128: n/a | AB128: n/a | AC128: n/a | AD128: n/a | AE128: n/a | AF128: plug and play with some wifi setup programming | AG128: 15 | AH128: n/a | AI128: n/a | AJ128: 0 | AK128: Return to HMW for change | AL128: 0.1 | AM128: Strict on battery life so expect to give what it says
B129: 137.65 | C129: 15.4 | D129: 153.05 | E129: Radio-tech | F129: Radio-tech ecosense external | G129: Sensor | H129: External Temperature, Humidity | I129: 1 | J129: Radio-tech Wi5 | K129: 154 | L129: 121 | M129: 108.9 | N129: 103.45 | O129: n/a | P129: n/a | Q129: 434MHz, | R129: n/a | S129: n/a | T129: Not found | V129: ASL Holdings system company have a CAD and do bespoke systems | W129: Battery | X129: 5 years | Y129: Reports battery levels via gateway | Z129: 1 min to 24 hours | AA129: 0.3C | AB129: -20 C to 65 C | AC129: Not found | AD129: 0.018 | AE129: n/a | AF129: plug and play with some wifi setup programming | AG129: 15 | AH129: n/a | AI129: n/a | AJ129: 0 | AK129: Return to HMW for change | AL129: 0.1 | AM129: Strict on battery life so expect to give what it says
B130: 167.3 | C130: 15.75 | D130: 183.04 | E130: Radio-tech | F130: Radio-tech ecosense surface | G130: Sensor | H130: Wall Temperature | I130: 2 | J130: Radio-tech Wi5 | K130: 78.75 | L130: 67 | M130: 63 | N130: 59 | O130: n/a | P130: n/a | Q130: 434MHz, | R130: n/a | S130: n/a | T130: Not found | V130: ASL Holdings system company have a CAD and do bespoke systems | W130: Battery | X130: 5 years | Y130: Reports battery levels via gateway | Z130: 1 min to 24 hours | AA130: 0.3C | AB130: Not found | AC130: Not found | AD130: n/a | AE130: n/a | AF130: plug and play with some wifi setup programming | AG130: 15 | AH130: n/a | AI130: n/a | AJ130: 0 | AK130: Return to HMW for change | AL130: 0.1 | AM130: Strict on battery life so expect to give what it says
B131: 478.3 | C131: 57.5 | D131: 535.8 | E131: Radio-tech | F131: Radio-tech Wi5 | G131: Logger | H131: Central data concentrator logger and transmitter | I131: 1 | J131: Third party FTP (sim card) | K131: 575 | L131: 445 | M131: 400 | N131: 380 | O131: n/a | P131: ethernet or GPRS | Q131: 434MHz, | R131: 2GB | S131: Configurable to 3rd party website by the the company, have own front end Portal for viewing the data and can export from this. Can store and make accessible. | T131: 220 x 200 x 45 | U131: Wall mountable | V131: No | W131: Plug | X131: back up battery 24 hours for logging only, need mains for transmission. | Y131: Reports battery levels via gateway | Z131: 1 min to 24 hours | AA131: n/a | AB131: n/a | AC131: n/a | AD131: n/a | AE131: n/a | AF131: plug and play with some wifi setup programming | AG131: 30 | AH131: n/a | AI131: n/a | AJ131: 0 | AK131: n/a | AL131: 0.1 | AM131: GPRS sim card cost of the SIM tariff, bulk of 2 or 5 years
B132: 40 | C132: 40 | D132: 80 | E132: Smart Monitoring Systems | F132: AMR | G132: All-in-one | H132: Gas (pulse) | I132: 1 | J132: none | K132: No charge for device, which still belongs to Smart Monitoring Systems | L132: No charge for device, which still belongs to Smart Monitoring Systems | M132: No charge for device, which still belongs to Smart Monitoring Systems | N132: No charge for device, which still belongs to Smart Monitoring Systems | O132: 40 | P132: GPRS | Q132: n/a | R132: n/a | S132: 3rd party email | T132: n/a | U132: Replacement meter | W132: Not found | X132: Not found | Y132: Not found | Z132: 30 mins | AA132: n/a | AB132: n/a | AC132: n/a | AD132: n/a | AE132: n/a | AF132: Carried out by Smart metering company charge £40 per year this includes installation cost | AG132: 0 | AH132: 0 | AI132: 0 | AJ132: 0 | AK132: n/a | AL132: 0.1 | AM132: Fitted own meters

Sheet Report Packages
B2: Electricity
B3: Gas | K3: 0
B4: Appliances
B5: PV | K5: 100000
B6: Temperature
B7: Humidity
B8: Light
B9: Noise
B10: Ventilation
B11: Occupancy
B12: CO2
B14: PACKAGE | E14: PRODUCT | G14: SENSOR | I14: NUMBER | J14: TOTAL | K14: PREREQUISITES | L14: COSTS | Q14: CONNECTIONS | S14: DATA STORAGE | U14: MISC | X14: POWER | AA14: DATA COLLECTION | AG14: INSTALLATION | AK14: MAINTENANCE | AN14: NOTES
B15: YEAR 1 COST PER HOME (EQUIPMENT+ INSTALLATION*) | C15: ONGOING YEARLY COST PER HOME (MAINTENANCE+ REPLACEMENT) | D15: TOTAL COST PER HOME (WHOLE STUDY) | E15: FAMILY | F15: NAME | G15: TYPE | H15: DETAIL | I15: PER HOME | J15: COST | L15: CAPITAL COST | P15: ANNUAL | Q15: WAN | R15: LAN | S15: LOCAL STORAGE | T15: METHOD OF DATA EXTRACT | U15: DIMENSIONS | V15: FIXING | W15: COMMUNICATION WITH SMART METERS | X15: TYPE | Y15: CLAIMED BATTERY LIFE | Z15: REMOTE BATTERY LOW LEVEL INDICATOR | AA15: REPORTING INTERVAL | AB15: TEMP ACCURACY | AC15: TEMP RANGE | AD15: TEMP RESOLUTION | AE15: HUMIDITY ACCURACY | AF15: CO2 ACCURACY | AG15: INSTALLATION ISSUES | AH15: INSTALL TIME RESEARCHER | AI15: INSTALL AND COMMISSION TIME GAS | AJ15: INSTALL TIME ELECTRICIAN | AK15: MAINTENANCE CHECK TIME | AL15: BATTERY CHANGE TIME | AM15: ANNUAL REPLACEMENT RATE
L16: INDIVIDUAL | M16: BULK 1000 UNITS | N16: BULK 5000 UNITS | O16: BULK 10,000 UNITS
B17: £ | C17: £ | D17: £ | L17: £/unit | M17: £/unit | N17: £/unit | O17: £/unit | P17: £/unit per yr | U17: mm
B18: - | D18: - | E18: - | F18: - | G18: - | H18: - | I18: - | J18: - | K18: - | L18: - | M18: - | N18: - | O18: - | P18: - | Q18: - | R18: - | S18: - | T18: - | U18: - | V18: - | W18: - | X18: - | Y18: - | Z18: - | AA18: - | AB18: - | AC18: - | AD18: - | AE18: - | AF18: - | AG18: - | AH18: - | AI18: - | AJ18: - | AK18: - | AL18: - | AM18: - | AN18: -
B22: PACKAGE 1a - MINIMUM MONITORING - INTERNET AVAILABLE
B23: PACKAGE 1a
B24: =B25+B26+B27 -> 192.1 | C24: =C25+C26+C27 -> 15 | D24: =D25+D26+D27 -> 207.1
B25: 77.65 | C25: 7.5 | D25: 85.15 | E25: =Data!F21 -> Current Cost | F25: =Data!G21 -> Current Cost Gateway, Transmitter and CT clamp | G25: =Data!H21 -> Sensor | H25: =Data!I21 -> Electricity (clamp) only 95% accuracy | I25: 1 | J25: =Data!K21 -> 75 | K25: =Data!J21 -> The Gateway | L25: =Data!K21 -> 75 | M25: =Data!L21 -> 61 | N25: =Data!M21 -> 54 | O25: =Data!N21 -> 49 | P25: =Data!O21 -> n/a | Q25: =Data!P21 -> n/a | R25: =Data!Q21 -> Prop. (433 MHz) | S25: =Data!R21 -> n/a | T25: =Data!S21 -> n/a | U25: =Data!T21 -> 120 x 70 x 30 | V25: =Data!U21 -> Clamp | W25: =Data!V21 -> n/a | X25: =Data!W21 -> Battery | Y25: =Data!X21 -> 7 years | Z25: =Data!Y21 -> Low battery level sent by gateway | AA25: =Data!Z21 -> 6 secs or adjustable to longer period current standard every 5 mins | AB25: =Data!AA21 -> n/a | AC25: =Data!AB21 -> n/a | AD25: =Data!AC21 -> n/a | AE25: =Data!AD21 -> n/a | AF25: =Data!AE21 -> n/a | AG25: =Data!AF21 -> - | AH25: =Data!AG21 -> 15 | AI25: =Data!AH21 -> n/a | AJ25: =Data!AI21 -> n/a | AK25: =Data!AJ21 -> - | AL25: =Data!AK21 -> Householder can replace battery Gateway send battery level information | AM25: =Data!AL21 -> 0.1 | AN25: =Data!AM21 -> Usually every 5 minutes, but can adjust to as low as 6 second resolution, or higher, as requested before distribution.
B26: 81.15 | C26: 7.5 | D26: 88.65 | E26: =Data!F26 -> Current Cost | F26: =Data!G26 -> Current Cost Temperature sensor | G26: =Data!H26 -> Sensor | H26: =Data!I26 -> Temperature | I26: 3 | K26: =Data!J26 -> The Gateway | L26: =Data!K26 -> 25 | M26: =Data!L26 -> 21.5 | N26: =Data!M26 -> 19.5 | O26: =Data!N26 -> 17.5 | P26: =Data!O26 -> n/a | Q26: =Data!P26 -> n/a | R26: =Data!Q26 -> Prop. (433 MHz) | S26: =Data!R26 -> n/a | T26: =Data!S26 -> n/a | U26: =Data!T26 -> 70 x 65 x 25 | V26: =Data!U26 -> Free standing | W26: =Data!V26 -> n/a | X26: =Data!W26 -> Battery | Y26: =Data!X26 -> 2 years | Z26: =Data!Y26 -> Low battery level sent by gateway | AA26: =Data!Z26 -> 1 minute | AB26: =Data!AA26 -> ±0.5°C | AC26: =Data!AB26 -> -20 to 60°C | AD26: =Data!AC26 -> 0.5°C | AE26: =Data!AD26 -> n/a | AF26: =Data!AE26 -> n/a | AG26: =Data!AF26 -> - | AH26: =Data!AG26 -> 5 | AI26: =Data!AH26 -> - | AJ26: =Data!AI26 -> n/a | AK26: =Data!AJ26 -> - | AL26: =Data!AK26 -> Householder can replace battery Gateway send battery level information | AM26: =Data!AL26 -> 0.1 | AN26: =Data!AM26 -> Usually every 5 minutes, but can adjust to as low as 6 second resolution, or higher, as requested before distribution.
B27: 33.3 | C27: 0 | D27: 33.3 | E27: =Data!F27 -> Current Cost | F27: =Data!G27 -> The Gateway | G27: =Data!H27 -> Logger | H27: =Data!I27 -> Send the data straight to Decc or current cost or third party api | I27: 1 | K27: =Data!J27 -> Internet connected house | L27: =Data!K27 -> Comes as part of the CT or optismart transmitter/sensor | M27: =Data!L27 -> Comes as part of the CT or optismart transmitter/sensor | N27: =Data!M27 -> Comes as part of the CT or optismart transmitter/sensor | O27: =Data!N27 -> Comes as part of the CT or optismart transmitter/sensor | P27: =Data!O27 -> n/a as long as data going to 3rd party | Q27: =Data!P27 -> Ethernet | R27: =Data!Q27 -> Prop. (433 MHz) | S27: =Data!R27 -> 36 hours data storage, depending on resolution of data | T27: =Data!S27 -> 3rd party website or own IP address or CurrentCost could host it a cost would be involved. | U27: =Data!T27 -> 110 x 22 x 80 | V27: =Data!U27 -> Free standing | W27: =Data!V27 -> They have started one but put on hold until smart meter role out actually happens | X27: =Data!W27 -> Plug | Y27: =Data!X27 -> no back up battery | Z27: =Data!Y27 -> n/a | AA27: =Data!Z27 -> 6 secs or adjustable to longer period current standard every 5 mins | AB27: =Data!AA27 -> n/a | AC27: =Data!AB27 -> n/a | AD27: =Data!AC27 -> n/a | AE27: =Data!AD27 -> Future humidity sensor planned or would develop on request, cost would be the same as for the temperature sensor | AF27: =Data!AE27 -> Future CO2 sensor planned or would develp on request | AG27: =Data!AF27 -> - | AH27: =Data!AG27 -> 30 | AI27: =Data!AH27 -> - | AJ27: =Data!AI27 -> n/a | AK27: =Data!AJ27 -> - | AL27: =Data!AK27 -> n/a | AM27: =Data!AL27 -> 0.1 | AN27: =Data!AM27 -> Usually every 5 minutes, but can adjust to as low as 6 second resolution, or higher, as requested before distribution.
B28: PACKAGE 1b - MINIMUM MONITORING - NO INTERNET
B29: PACKAGE 1b
B30: =B31 -> 240.9 | C30: =C31 -> 53.4 | D30: =D31 -> 294.3
B31: 240.9 | C31: 53.4 | D31: 294.3 | E31: =Data!F38 -> HOBO | F31: =Data!G38 -> HOBO UX100-001 | G31: =Data!H38 -> All-in-one | H31: =Data!I38 -> Room Temperature | I31: 3 | K31: =Data!J38 -> HOBOware (PC software) | L31: =Data!K38 -> 67 | M31: =Data!L38 -> 63.65 | N31: =Data!M38 -> 60.3 | O31: =Data!N38 -> 56.95 | P31: =Data!O38 -> n/a | Q31: =Data!P38 -> n/a | R31: =Data!Q38 -> n/a | S31: =Data!R38 -> 128 KB 84,650 measurements | T31: =Data!S38 -> PC software and usb connector | U31: =Data!T38 -> 36.6 x 59.4 x 15.2 | V31: =Data!U38 -> Built-in magnets Command strip Double sided tape Hook and Loop strap to mount to curved surface | W31: =Data!V38 -> 0 | X31: =Data!W38 -> Battery | Y31: =Data!X38 -> 1 year @ log rate of 1 min and sampling interval of 15secs or > | Z31: =Data!Y38 -> Not found | AA31: =Data!Z38 -> 1 sec to 18 hours | AB31: =Data!AA38 -> ±0.21°C from 0° to 50°C | AC31: =Data!AB38 -> -20° to 70°C | AD31: =Data!AC38 -> 0.024°C | AE31: =Data!AD38 -> n/a | AF31: =Data!AE38 -> n/a | AG31: =Data!AF38 -> - | AH31: =Data!AG38 -> 15 | AI31: =Data!AH38 -> - | AJ31: =Data!AI38 -> - | AK31: =Data!AJ38 -> 5 | AL31: =Data!AK38 -> 5 | AM31: =Data!AL38 -> 0.1 | AN31: =Data!AM38 -> Reported monitioring interval drift, 5min interval can drift from 3 to 7 mins Software Pro £88 Software Lite £40
B32: PACKAGE 2a - MEDIUM-PRIORITY VARIABLES - NO SMART METERS, WITH INTERNET
B33: PACKAGE 2a
B34: =SUM(B35:B39) -> 414.56 | C34: =SUM(C35:C39) -> 93.85 | D34: =SUM(D35:D39) -> 508.41
B35: 40 | C35: 40 | D35: 80 | E35: =Data!F54 -> Smart Monitoring Systems | F35: =Data!G54 -> AMR | G35: =Data!H54 -> All-in-one | H35: =Data!I54 -> Gas (pulse) | I35: 1 | K35: =Data!J54 -> none | L35: =Data!K54 -> No charge for device, which still belongs to Smart Monitoring Systems | M35: =Data!L54 -> No charge for device, which still belongs to Smart Monitoring Systems | N35: =Data!M54 -> No charge for device, which still belongs to Smart Monitoring Systems | O35: =Data!N54 -> No charge for device, which still belongs to Smart Monitoring Systems | P35: =Data!O54 -> 40 | Q35: =Data!P54 -> GPRS | R35: =Data!Q54 -> n/a | S35: =Data!R54 -> n/a | T35: =Data!S54 -> 3rd party email | U35: =Data!T54 -> n/a | V35: =Data!U54 -> Replacement meter | W35: =Data!V54 -> 0 | X35: =Data!W54 -> Not found | Y35: =Data!X54 -> Not found | Z35: =Data!Y54 -> Not found | AA35: =Data!Z54 -> 30 mins | AB35: =Data!AA54 -> n/a | AC35: =Data!AB54 -> n/a | AD35: =Data!AC54 -> n/a | AE35: =Data!AD54 -> n/a | AF35: =Data!AE54 -> n/a | AG35: =Data!AF54 -> Carried out by Smart metering company charge £40 per year this includes installation cost | AH35: =Data!AG54 -> 0 | AI35: =Data!AH54 -> 0 | AJ35: =Data!AI54 -> 0 | AK35: =Data!AJ54 -> 0 | AL35: =Data!AK54 -> n/a | AM35: =Data!AL54 -> 0.1 | AN35: =Data!AM54 -> Fitted own meters
B36: 87.55 | C36: 7.6 | D36: 95.15 | E36: =Data!F64 -> Zwave | F36: =Data!G64 -> Aeon Labs Clamp Power Meter one (100A) | G36: =Data!H64 -> Sensor | H36: =Data!I64 -> Electricity mains | I36: 1 | K36: =Data!J64 -> Vera edge | L36: =Data!K64 -> 76 | M36: =Data!L64 -> 59.8 | N36: =Data!M64 -> 54.72 | O36: =Data!N64 -> 54.72 | P36: =Data!O64 -> n/a | Q36: =Data!P64 -> n/a | R36: =Data!Q64 -> Zwave 868.42MHz | S36: =Data!R64 -> n/a | T36: =Data!S64 -> n/a | U36: =Data!T64 -> 108 x 67 x 30mm | V36: =Data!U64 -> n/a | W36: =Data!V64 -> 0 | X36: =Data!W64 -> plug | Y36: =Data!X64 -> n/a | Z36: =Data!Y64 -> Not found | AA36: =Data!Z64 -> instant (W) accumulated (KWh) | AB36: =Data!AA64 -> n/a | AC36: =Data!AB64 -> n/a | AD36: =Data!AC64 -> n/a | AE36: =Data!AD64 -> n/a | AF36: =Data!AE64 -> n/a | AG36: =Data!AF64 -> will need mains supply available next to the meter | AH36: =Data!AG64 -> 10 | AI36: =Data!AH64 -> n/a | AJ36: =Data!AI64 -> 15 | AK36: =Data!AJ64 -> - | AL36: =Data!AK64 -> n/a | AM36: =Data!AL64 -> 0.1 | AN36: =Data!AM64 -> install time for electrician is to fit an electricity socket near the meter
B37: 134.25 | C37: 31.35 | D37: 165.6 | E37: =Data!F60 -> Zwave | F37: =Data!G60 -> Aeon MultiSensor (AEOEZW074) | G37: =Data!H60 -> Sensor | H37: =Data!I60 -> Temperature,humidity, light and motion | I37: 3 | K37: =Data!J60 -> Vera Edge | L37: =Data!K60 -> 49 | M37: =Data!L60 -> 39.2 | N37: =Data!M60 -> 35.28 | O37: =Data!N60 -> 35.28 | P37: =Data!O60 -> n/a | Q37: =Data!P60 -> n/a | R37: =Data!Q60 -> Zwave 868Mhz | S37: =Data!R60 -> n/a | T37: =Data!S60 -> n/a | U37: =Data!T60 -> 75 (dia) x 57 | V37: =Data!U60 -> Bracket | W37: =Data!V60 -> 0 | X37: =Data!W60 -> Plug USB power supply not supplied or Battery | Y37: =Data!X60 -> 1 year | Z37: =Data!Y60 -> Not found | AA37: =Data!Z60 -> reporting configurable sample 2 secs to 18 hours | AB37: =Data!AA60 -> not known | AC37: =Data!AB60 -> -20 to +50°C | AD37: =Data!AC60 -> ± 1°C | AE37: =Data!AD60 -> ±5% | AF37: =Data!AE60 -> n/a | AG37: =Data!AF60 -> 0 | AH37: =Data!AG60 -> 5 | AI37: =Data!AH60 -> n/a | AJ37: =Data!AI60 -> n/a | AK37: =Data!AJ60 -> - | AL37: =Data!AK60 -> 5 | AM37: =Data!AL60 -> 0.1 | AN37: =Data!AM60 -> IP43 wet and dry conditions
B38: 146.76 | C38: 14.9 | D38: 161.66 | E38: =Data!F63 -> Zwave | F38: =Data!G63 -> Vera Edge (Zwave Plus 500 Series) | G38: =Data!H63 -> Logger | H38: =Data!I63 -> Logger only | I38: 1 | K38: =Data!J63 -> Zwave sensors, Internet connected house | L38: =Data!K63 -> 149 | M38: =Data!L63 -> 113.46 | N38: =Data!M63 -> 102.11 | O38: =Data!N63 -> 102.11 | P38: =Data!O63 -> n/a | Q38: =Data!P63 -> ethernet | R38: =Data!Q63 -> Z-Wave: | S38: =Data!R63 -> Flash Memory: 128 MB RAM Memory: 128 MB | T38: =Data!S63 -> API for data upload | U38: =Data!T63 -> 116 x 95 x 44mm | V38: =Data!U63 -> Free standing | W38: =Data!V63 -> 0 | X38: =Data!W63 -> Plug | Y38: =Data!X63 -> back up battery 4 x AA | Z38: =Data!Y63 -> Not found | AA38: =Data!Z63 -> n/a | AB38: =Data!AA63 -> n/a | AC38: =Data!AB63 -> n/a | AD38: =Data!AC63 -> n/a | AE38: =Data!AD63 -> n/a | AF38: =Data!AE63 -> n/a | AG38: =Data!AF63 -> uk plug adaptor needed (provided) | AH38: =Data!AG63 -> 30 | AI38: =Data!AH63 -> n/a | AJ38: =Data!AI63 -> n/a | AK38: =Data!AJ63 -> - | AL38: =Data!AK63 -> n/a | AM38: =Data!AL63 -> 0.1 | AN38: =Data!AM63 -> Researcher from Defacto says very reliable
B39: 6 | C39: - | D39: =B39 -> 6 | E39: - | F39: Extension cable | I39: 1
B40: PACKAGE 2b - MEDIUM-PRIORITY VARIABLES - NO SMART METERS, NO INTERNET
B41: PACKAGE 2b
B42: =SUM(B43:B46) -> 683.67 | C42: =SUM(C43:C46) -> 119.775 | D42: =SUM(D43:D46) -> 803.44
B43: 40 | C43: 40 | D43: 80 | E43: Smart Monitoring Systems | F43: AMR | G43: All-in-one | H43: Gas (pulse) | I43: 1 | J43: PR01 + RX250AL Logger | K43: none | L43: No charge for device, which still belongs to Smart Monitoring Systems | M43: No charge for device, which still belongs to Smart Monitoring Systems | N43: No charge for device, which still belongs to Smart Monitoring Systems | O43: No charge for device, which still belongs to Smart Monitoring Systems | P43: 40 | Q43: GPRS | R43: n/a | S43: n/a | T43: 3rd party email | U43: n/a | V43: Replacement meter | X43: Not found | Y43: Not found | Z43: Not found | AA43: 30 mins | AB43: n/a | AC43: n/a | AD43: n/a | AE43: n/a | AF43: n/a | AG43: Carried out by Smart metering company charge £40 per year this includes installation cost | AH43: 0 | AI43: 0 | AJ43: 0 | AK43: 0 | AL43: n/a | AM43: 0.1 | AN43: Fitted own meters
B44: 142.2 | C44: 12 | D44: 154.2 | E44: Zigbee HA | F44: ZigBee HA Single Phase Power Clamp | G44: Sensor | H44: Electricity (clamp) | I44: 3 | J44: RX250AL Logger | K44: Zigbee HA Gateway | L44: 120 | M44: Not found | N44: Not found | O44: Not found | Q44: n/a | R44: Zigbee | S44: n/a | T44: n/a | U44: Not found | V44: Not found | X44: din rail | Y44: Not found | Z44: Not found | AA44: Not found | AB44: n/a | AC44: n/a | AD44: n/a | AE44: n/a | AF44: n/a | AH44: 5 | AI44: - | AJ44: 15 | AK44: - | AL44: - | AM44: 0.1
B45: 225.3 | C45: 19.2 | D45: 244.5 | E45: Zigbee HA | F45: ZigBee multisensor ZHOT101 | G45: Sensor | H45: Occupancy, Temperature & Light Sensor | K45: Zigbee HA Gateway | L45: 64 | M45: Not found | N45: Not found | O45: Not found | P45: n/a | Q45: n/a | R45: Zigbee | S45: n/a | T45: n/a | U45: 106 x 61 x 54 | V45: free standing or use self adhesive pads? | X45: Battery CR123 | Y45: 5 yrs hourly reporting | Z45: Not found | AA45: Not found | AB45: ± 0.5°C | AC45: 0 to +50°C | AD45: 0.1°C | AE45: n/a | AF45: n/a | AH45: 10 | AI45: - | AJ45: - | AK45: - | AL45: - | AM45: 0.1
B46: 276.17 | C46: 48.575 | D46: 324.74 | E46: Zigbee HA | F46: Greenbox zigbee data logger ZC-GB-EM-UK | G46: Logger | H46: logger only | I46: 1 | J46: Darca software | K46: Ethernet or sim card for GPRS | L46: 485.75 | M46: 242.87 | N46: 194.28 | O46: 145.71 | P46: n/a | Q46: Ethernet & GPRS | R46: Zigbee | S46: 4Gb | T46: FTP/EMAIL CSV | U46: 152 x 128 x 40 | V46: Din Rail | Z46: Not found | AA46: min every 5 minutes | AB46: n/a | AC46: n/a | AD46: n/a | AE46: n/a | AF46: n/a | AH46: 30 | AI46: - | AJ46: - | AK46: - | AL46: - | AM46: 0.1
B47: PACKAGE 3 - MEDIUM-PRIORITY VARIABLES - WITH SMART METERS
B48: PACKAGE 3
B49: =SUM(B50:B51) -> 265.9 | C49: =SUM(C50:C51) -> 53.4 | D49: =SUM(D50:D51) -> 319.3
B50: 240.9 | C50: 53.4 | D50: 294.3 | E50: =Data!F39 -> HOBO | F50: =Data!G39 -> HOBO UX100-003 | G50: =Data!H39 -> All-in-one | H50: =Data!I39 -> Room Temperature, Humidity | I50: 3 | K50: =Data!J39 -> HOBOware (PC software) | L50: =Data!K39 -> 79 | M50: =Data!L39 -> 75.05 | N50: =Data!M39 -> 71.1 | O50: =Data!N39 -> 67.15 | P50: =Data!O39 -> n/a | Q50: =Data!P39 -> n/a | R50: =Data!Q39 -> n/a | S50: =Data!R39 -> 128 KB 84,650 measurements | T50: =Data!S39 -> PC software and usb connector | U50: =Data!T39 -> 36.6 x 84.8 x 15.2 | V50: =Data!U39 -> Built-in magnets Command strip Double sided tape Hook and Loop strap to mount to curved surface | W50: =Data!V39 -> 0 | X50: =Data!W39 -> Battery | Y50: =Data!X39 -> 1 year @ log rate of 1 min and sampling interval of 15secs or > | Z50: =Data!Y39 -> Not found | AA50: =Data!Z39 -> 1 sec to 18 hours | AB50: =Data!AA39 -> ±0.21°C from 0° to 50°C | AC50: =Data!AB39 -> -20° to 70°C | AD50: =Data!AC39 -> 0.024°C | AE50: =Data!AD39 -> ±3.5% from 25% to 85% | AF50: =Data!AE39 -> n/a | AG50: =Data!AF39 -> - | AH50: =Data!AG39 -> 15 | AI50: =Data!AH39 -> - | AJ50: =Data!AI39 -> - | AK50: =Data!AJ39 -> 5 | AL50: =Data!AK39 -> 5 | AM50: =Data!AL39 -> 0.1 | AN50: =Data!AM39 -> Reported monitoring interval drift, 5min interval can drift from 3 to 7 mins Software Pro £88 Software Lite £40
B51: 25 | C51: 0 | D51: 25 | E51: Consumer access device | F51: Electricity and gas through smart meter and CAD | G51: Sensor | H51: Electricity mains, gas | I51: 1 | L51: 25 | M51: 25 | N51: 25 | O51: 25 | P51: n/a | Q51: n/a | R51: Zigbee | S51: unknown | T51: From 3rd party logging service | U51: unknown | V51: unknown | W51: Yes | X51: Unknown | Y51: Unknown | Z51: Unknown | AA51: Electricity 10 second, gas 30 minutes | AB51: n/a | AC51: n/a | AD51: n/a | AE51: n/a | AF51: n/a | AG51: Unknown | AH51: n/a | AI51: n/a | AJ51: n/a | AM51: n/a | AN51: There are no devices of this type available yet. **The cost here is an ESTIMATED cost, unlike other figures in the table.**
B53: *Assuming installer costs of £500/day

Sheet Data
D2: COLUMN USE | E2: Data | AN2: Space for more Data | AS2: Background Data
D3: COLUMN | E3: 5 | F3: 6 | G3: 7 | H3: 8 | I3: 9 | J3: 10 | K3: 11 | L3: 12 | M3: 13 | N3: 14 | O3: 15 | P3: 16 | Q3: 17 | R3: 18 | S3: 19 | T3: 20 | U3: 21 | V3: 22 | W3: 23 | X3: 24 | Y3: 25 | Z3: 26 | AA3: 27 | AB3: 28 | AC3: 29 | AD3: 30 | AE3: 31 | AF3: 32 | AG3: 33 | AH3: 34 | AI3: 35 | AJ3: 36 | AK3: 37 | AL3: 38 | AM3: 39 | AN3: 40 | AO3: 41 | AP3: 42 | AQ3: 43 | AR3: 44 | AS3: 45 | AT3: 46 | AU3: 47 | AV3: 48 | AW3: 49 | AX3: 50 | AY3: 51 | AZ3: 52 | BA3: 53 | BB3: 54 | BC3: 55 | BD3: 56 | BE3: 57 | BF3: 58 | BG3: 59 | BH3: 60 | BI3: 61 | BJ3: 62 | BK3: 63 | BL3: 64 | BM3: 65 | BN3: 66 | BO3: 67 | BP3: 68 | BQ3: 69 | BR3: 70 | BS3: 71 | BT3: 72 | BU3: 73 | BV3: 74 | BW3: 75 | BX3: 76 | BY3: 77 | BZ3: 78 | CA3: 79 | CB3: 80 | CC3: 81 | CD3: 82 | CE3: 83 | CF3: 84 | CG3: 85 | CH3: 86 | CI3: 87 | CJ3: 88 | CK3: 89 | CL3: 90 | CM3: 91 | CN3: 92 | CO3: 93 | CP3: 94 | CQ3: 95 | CR3: 96 | CS3: 97 | CT3: 98 | CU3: 99 | CV3: 100 | CW3: 101 | CX3: 102 | CY3: 103 | CZ3: 104 | DA3: 105 | DB3: 106 | DC3: 107 | DD3: 108 | DE3: 109 | DF3: 110 | DG3: 111 | DH3: 112 | DI3: 113 | DJ3: 114 | DK3: 115 | DL3: 116 | DM3: 117
AU8: TARGET | AV8: =COUNTIF(Packages!$E$6:$E$11,AV17)+COUNTIF(Packages!$B$6:$B$11,AV17) -> 1 | AW8: =COUNTIF(Packages!$E$6:$E$11,AW17)+COUNTIF(Packages!$B$6:$B$11,AW17) -> 0 | AX8: =COUNTIF(Packages!$E$6:$E$11,AX17)+COUNTIF(Packages!$B$6:$B$11,AX17) -> 0 | AY8: =COUNTIF(Packages!$E$6:$E$11,AY17)+COUNTIF(Packages!$B$6:$B$11,AY17) -> 3 | AZ8: =COUNTIF(Packages!$E$6:$E$11,AZ17)+COUNTIF(Packages!$B$6:$B$11,AZ17) -> 0 | BA8: =COUNTIF(Packages!$E$6:$E$11,BA17)+COUNTIF(Packages!$B$6:$B$11,BA17) -> 1 | BB8: =COUNTIF(Packages!$E$6:$E$11,BB17)+COUNTIF(Packages!$B$6:$B$11,BB17) -> 0 | BC8: =COUNTIF(Packages!$E$6:$E$11,BC17)+COUNTIF(Packages!$B$6:$B$11,BC17) -> 0 | BD8: =COUNTIF(Packages!$E$6:$E$11,BD17)+COUNTIF(Packages!$B$6:$B$11,BD17) -> 0 | BE8: =COUNTIF(Packages!$E$6:$E$11,BE17)+COUNTIF(Packages!$B$6:$B$11,BE17) -> 0 | BF8: =COUNTIF(Packages!$E$6:$E$11,BF17)+COUNTIF(Packages!$B$6:$B$11,BF17) -> 0 | BG8: =COUNTIF(Packages!$E$6:$E$11,BG17)+COUNTIF(Packages!$B$6:$B$11,BG17) -> 0 | DA8: END? | DB8: =SUM(AV11:BG11) -> 3
AU9: CURRENT | AV9: =SUMPRODUCT($CX$20:$CX$69,AV$20:AV$69) -> 0 | AW9: 0 | AX9: 0 | AY9: 0 | AZ9: 0 | BA9: 0 | BB9: 0 | BC9: 0 | BD9: 0 | BE9: 0 | BF9: 0 | BG9: 0
DA10: MIN | DB10: =MIN(DB20:DB69) -> 80 | DD10: MAX | DE10: =MAX(DG20:DG69) -> 0
D11: MAX TOOLS | E11: =MAX(E20:E69)-1 -> 49 | AU11: LEFT? | AV11: =IF(AV8-AV9>0,1,0) -> 1 | AW11: 0 | AX11: 0 | AY11: 1 | AZ11: 0 | BA11: 1 | BB11: 0 | BC11: 0 | BD11: 0 | BE11: 0 | BF11: 0 | BG11: 0 | DA11: NEXT | DB11: =IFERROR(MATCH(DB10,DB20:DB69,0)-1,0) -> 34 | DD11: LOCATION | DE11: =MATCH(DE10,DG20:DG69,0)-1 -> 1
D12: NO. HOMES | E12: =Packages!H5 -> 1000 | AU12: EXCESS? | AV12: =IF(AV9-AV8>0,1,0) -> 0 | AW12: 0 | AX12: 0 | AY12: 0 | AZ12: 0 | BA12: 0 | BB12: 0 | BC12: 0 | BD12: 0 | BE12: 0 | BF12: 0 | BG12: 0 | CB12: INCL? | CC12: INCL? | CQ12: Maintenance/Installation: | DL12: BEST | DM12: =MAX(DM16:HH16) -> 15
D13: NO. YEARS | E13: =Packages!H6 -> 2 | AU13: RIGHT? | AV13: =IF(AND(AV9=AV8,AV9<>0),1,0) -> 0 | AW13: 0 | AX13: 0 | AY13: 0 | AZ13: 0 | BA13: 0 | BB13: 0 | BC13: 0 | BD13: 0 | BE13: 0 | BF13: 0 | BG13: 0 | CB13: =IF(Packages!H7="Yes",1,0) -> 0 | CC13: =IF(Packages!H8="Yes",1,0) -> 0 | CQ13: 1.11 | CU13: Note: The tiny value is added to the cost to simplify checking for duplicates in the system | DL13: ONGOING COST PER HOME | DM13: =IF(DM21="","-",SUMPRODUCT(DM20:DM69,$CS$20:$CS$69)) -> 174.05 | DN13: 183.05 | DO13: 175.55 | DP13: 201.05 | DQ13: 161.925 | DR13: 163.425 | DS13: 153.975 | DT13: 155.175 | DU13: 158.375 | DV13: 96.781 | DW13: 125.625 | DX13: 133.15 | DY13: 131.75 | DZ13: 119.775 | EA13: 129.975 | EB13: 119.775 | EC13: - | ED13: - | EE13: - | EF13: - | EG13: - | EH13: - | EI13: - | EJ13: - | EK13: - | EL13: - | EM13: - | EN13: - | EO13: - | EP13: - | EQ13: - | ER13: - | ES13: =IF(ES21="","-",SUMPRODUCT(ES20:ES69,$CS$20:$CS$69)) -> - | ET13: - | EU13: - | EV13: - | EW13: - | EX13: - | EY13: - | EZ13: - | FA13: - | FB13: - | FC13: - | FD13: - | FE13: - | FF13: - | FG13: - | FH13: - | FI13: - | FJ13: - | FK13: - | FL13: - | FM13: - | FN13: - | FO13: - | FP13: - | FQ13: - | FR13: - | FS13: - | FT13: - | FU13: - | FV13: - | FW13: - | FX13: - | FY13: =IF(FY21="","-",SUMPRODUCT(FY20:FY69,$CS$20:$CS$69)) -> - | FZ13: - | GA13: - | GB13: - | GC13: - | GD13: - | GE13: - | GF13: - | GG13: - | GH13: - | GI13: - | GJ13: - | GK13: - | GL13: - | GM13: - | GN13: - | GO13: - | GP13: - | GQ13: - | GR13: - | GS13: - | GT13: - | GU13: - | GV13: - | GW13: - | GX13: - | GY13: - | GZ13: - | HA13: - | HB13: - | HC13: - | HD13: - | HE13: - | HF13: - | HG13: - | HH13: -
CQ14: £/minute | DL14: YEAR 1 COST PER HOME | DM14: =IF(DM21="","-",SUMPRODUCT(DM20:DM69,$CR$20:$CR$69)) -> 680.95 | DN14: 712.05 | DO14: 685.95 | DP14: 780.95 | DQ14: 679.62 | DR14: 693.87 | DS14: 699.27 | DT14: 710.67 | DU14: 741.07 | DV14: 910.08 | DW14: 821.9 | DX14: 875.9 | DY14: 864.9 | DZ14: 683.67 | EA14: 680.22 | EB14: 683.67 | EC14: - | ED14: - | EE14: - | EF14: - | EG14: - | EH14: - | EI14: - | EJ14: - | EK14: - | EL14: - | EM14: - | EN14: - | EO14: - | EP14: - | EQ14: - | ER14: - | ES14: =IF(ES21="","-",SUMPRODUCT(ES20:ES69,$CR$20:$CR$69)) -> - | ET14: - | EU14: - | EV14: - | EW14: - | EX14: - | EY14: - | EZ14: - | FA14: - | FB14: - | FC14: - | FD14: - | FE14: - | FF14: - | FG14: - | FH14: - | FI14: - | FJ14: - | FK14: - | FL14: - | FM14: - | FN14: - | FO14: - | FP14: - | FQ14: - | FR14: - | FS14: - | FT14: - | FU14: - | FV14: - | FW14: - | FX14: - | FY14: =IF(FY21="","-",SUMPRODUCT(FY20:FY69,$CR$20:$CR$69)) -> - | FZ14: - | GA14: - | GB14: - | GC14: - | GD14: - | GE14: - | GF14: - | GG14: - | GH14: - | GI14: - | GJ14: - | GK14: - | GL14: - | GM14: - | GN14: - | GO14: - | GP14: - | GQ14: - | GR14: - | GS14: - | GT14: - | GU14: - | GV14: - | GW14: - | GX14: - | GY14: - | GZ14: - | HA14: - | HB14: - | HC14: - | HD14: - | HE14: - | HF14: - | HG14: - | HH14: -
E15: REF | F15: PRODUCT | H15: SENSOR | J15: PREREQUISITES | K15: COSTS | P15: CONNECTIONS | R15: DATA STORAGE | T15: MISC | W15: POWER | Z15: DATA COLLECTION | AF15: INSTALLATION | AJ15: MAINTENANCE | AM15: NOTES | AS15: ORGANISED DATA | BJ15: PREREQUISITE SENSORS/LOGGERS | CB15: INELIGIBLE DUE TO REQUIRED SYSTEMS | CJ15: COST BREAKDOWN | CX15: GROWING THE PACKAGES | DE15: REMOVING EXCESS SENSORS | DL15: UNIQUE | DM15: 1 | DN15: =IF(COUNTIF($DM17:DN17,DN17)=1,1,0) -> 1 | DO15: =IF(COUNTIF($DM17:DO17,DO17)=1,1,0) -> 1 | DP15: =IF(COUNTIF($DM17:DP17,DP17)=1,1,0) -> 1 | DQ15: =IF(COUNTIF($DM17:DQ17,DQ17)=1,1,0) -> 1 | DR15: =IF(COUNTIF($DM17:DR17,DR17)=1,1,0) -> 1 | DS15: =IF(COUNTIF($DM17:DS17,DS17)=1,1,0) -> 1 | DT15: =IF(COUNTIF($DM17:DT17,DT17)=1,1,0) -> 1 | DU15: =IF(COUNTIF($DM17:DU17,DU17)=1,1,0) -> 1 | DV15: =IF(COUNTIF($DM17:DV17,DV17)=1,1,0) -> 1 | DW15: =IF(COUNTIF($DM17:DW17,DW17)=1,1,0) -> 1 | DX15: =IF(COUNTIF($DM17:DX17,DX17)=1,1,0) -> 1 | DY15: =IF(COUNTIF($DM17:DY17,DY17)=1,1,0) -> 1 | DZ15: =IF(COUNTIF($DM17:DZ17,DZ17)=1,1,0) -> 1 | EA15: =IF(COUNTIF($DM17:EA17,EA17)=1,1,0) -> 1 | EB15: =IF(COUNTIF($DM17:EB17,EB17)=1,1,0) -> 0 | EC15: =IF(COUNTIF($DM17:EC17,EC17)=1,1,0) -> 1 | ED15: =IF(COUNTIF($DM17:ED17,ED17)=1,1,0) -> 0 | EE15: =IF(COUNTIF($DM17:EE17,EE17)=1,1,0) -> 0 | EF15: =IF(COUNTIF($DM17:EF17,EF17)=1,1,0) -> 0 | EG15: =IF(COUNTIF($DM17:EG17,EG17)=1,1,0) -> 0 | EH15: =IF(COUNTIF($DM17:EH17,EH17)=1,1,0) -> 0 | EI15: =IF(COUNTIF($DM17:EI17,EI17)=1,1,0) -> 0 | EJ15: =IF(COUNTIF($DM17:EJ17,EJ17)=1,1,0) -> 0 | EK15: =IF(COUNTIF($DM17:EK17,EK17)=1,1,0) -> 0 | EL15: =IF(COUNTIF($DM17:EL17,EL17)=1,1,0) -> 0 | EM15: =IF(COUNTIF($DM17:EM17,EM17)=1,1,0) -> 0 | EN15: =IF(COUNTIF($DM17:EN17,EN17)=1,1,0) -> 0 | EO15: =IF(COUNTIF($DM17:EO17,EO17)=1,1,0) -> 0 | EP15: =IF(COUNTIF($DM17:EP17,EP17)=1,1,0) -> 0 | EQ15: =IF(COUNTIF($DM17:EQ17,EQ17)=1,1,0) -> 0 | ER15: =IF(COUNTIF($DM17:ER17,ER17)=1,1,0) -> 0 | ES15: =IF(COUNTIF($DM17:ES17,ES17)=1,1,0) -> 0 | ET15: =IF(COUNTIF($DM17:ET17,ET17)=1,1,0) -> 0 | EU15: =IF(COUNTIF($DM17:EU17,EU17)=1,1,0) -> 0 | EV15: =IF(COUNTIF($DM17:EV17,EV17)=1,1,0) -> 0 | EW15: =IF(COUNTIF($DM17:EW17,EW17)=1,1,0) -> 0 | EX15: =IF(COUNTIF($DM17:EX17,EX17)=1,1,0) -> 0 | EY15: =IF(COUNTIF($DM17:EY17,EY17)=1,1,0) -> 0 | EZ15: =IF(COUNTIF($DM17:EZ17,EZ17)=1,1,0) -> 0 | FA15: =IF(COUNTIF($DM17:FA17,FA17)=1,1,0) -> 0 | FB15: =IF(COUNTIF($DM17:FB17,FB17)=1,1,0) -> 0 | FC15: =IF(COUNTIF($DM17:FC17,FC17)=1,1,0) -> 0 | FD15: =IF(COUNTIF($DM17:FD17,FD17)=1,1,0) -> 0 | FE15: =IF(COUNTIF($DM17:FE17,FE17)=1,1,0) -> 0 | FF15: =IF(COUNTIF($DM17:FF17,FF17)=1,1,0) -> 0 | FG15: =IF(COUNTIF($DM17:FG17,FG17)=1,1,0) -> 0 | FH15: =IF(COUNTIF($DM17:FH17,FH17)=1,1,0) -> 0 | FI15: =IF(COUNTIF($DM17:FI17,FI17)=1,1,0) -> 0 | FJ15: =IF(COUNTIF($DM17:FJ17,FJ17)=1,1,0) -> 0 | FK15: =IF(COUNTIF($DM17:FK17,FK17)=1,1,0) -> 0 | FL15: =IF(COUNTIF($DM17:FL17,FL17)=1,1,0) -> 0 | FM15: =IF(COUNTIF($DM17:FM17,FM17)=1,1,0) -> 0 | FN15: =IF(COUNTIF($DM17:FN17,FN17)=1,1,0) -> 0 | FO15: =IF(COUNTIF($DM17:FO17,FO17)=1,1,0) -> 0 | FP15: =IF(COUNTIF($DM17:FP17,FP17)=1,1,0) -> 0 | FQ15: =IF(COUNTIF($DM17:FQ17,FQ17)=1,1,0) -> 0 | FR15: =IF(COUNTIF($DM17:FR17,FR17)=1,1,0) -> 0 | FS15: =IF(COUNTIF($DM17:FS17,FS17)=1,1,0) -> 0 | FT15: =IF(COUNTIF($DM17:FT17,FT17)=1,1,0) -> 0 | FU15: =IF(COUNTIF($DM17:FU17,FU17)=1,1,0) -> 0 | FV15: =IF(COUNTIF($DM17:FV17,FV17)=1,1,0) -> 0 | FW15: =IF(COUNTIF($DM17:FW17,FW17)=1,1,0) -> 0 | FX15: =IF(COUNTIF($DM17:FX17,FX17)=1,1,0) -> 0 | FY15: =IF(COUNTIF($DM17:FY17,FY17)=1,1,0) -> 0 | FZ15: =IF(COUNTIF($DM17:FZ17,FZ17)=1,1,0) -> 0 | GA15: =IF(COUNTIF($DM17:GA17,GA17)=1,1,0) -> 0 | GB15: =IF(COUNTIF($DM17:GB17,GB17)=1,1,0) -> 0 | GC15: =IF(COUNTIF($DM17:GC17,GC17)=1,1,0) -> 0 | GD15: =IF(COUNTIF($DM17:GD17,GD17)=1,1,0) -> 0 | GE15: =IF(COUNTIF($DM17:GE17,GE17)=1,1,0) -> 0 | GF15: =IF(COUNTIF($DM17:GF17,GF17)=1,1,0) -> 0 | GG15: =IF(COUNTIF($DM17:GG17,GG17)=1,1,0) -> 0 | GH15: =IF(COUNTIF($DM17:GH17,GH17)=1,1,0) -> 0 | GI15: =IF(COUNTIF($DM17:GI17,GI17)=1,1,0) -> 0 | GJ15: =IF(COUNTIF($DM17:GJ17,GJ17)=1,1,0) -> 0 | GK15: =IF(COUNTIF($DM17:GK17,GK17)=1,1,0) -> 0 | GL15: =IF(COUNTIF($DM17:GL17,GL17)=1,1,0) -> 0 | GM15: =IF(COUNTIF($DM17:GM17,GM17)=1,1,0) -> 0 | GN15: =IF(COUNTIF($DM17:GN17,GN17)=1,1,0) -> 0 | GO15: =IF(COUNTIF($DM17:GO17,GO17)=1,1,0) -> 0 | GP15: =IF(COUNTIF($DM17:GP17,GP17)=1,1,0) -> 0 | GQ15: =IF(COUNTIF($DM17:GQ17,GQ17)=1,1,0) -> 0 | GR15: =IF(COUNTIF($DM17:GR17,GR17)=1,1,0) -> 0 | GS15: =IF(COUNTIF($DM17:GS17,GS17)=1,1,0) -> 0 | GT15: =IF(COUNTIF($DM17:GT17,GT17)=1,1,0) -> 0 | GU15: =IF(COUNTIF($DM17:GU17,GU17)=1,1,0) -> 0 | GV15: =IF(COUNTIF($DM17:GV17,GV17)=1,1,0) -> 0 | GW15: =IF(COUNTIF($DM17:GW17,GW17)=1,1,0) -> 0 | GX15: =IF(COUNTIF($DM17:GX17,GX17)=1,1,0) -> 0 | GY15: =IF(COUNTIF($DM17:GY17,GY17)=1,1,0) -> 0 | GZ15: =IF(COUNTIF($DM17:GZ17,GZ17)=1,1,0) -> 0 | HA15: =IF(COUNTIF($DM17:HA17,HA17)=1,1,0) -> 0 | HB15: =IF(COUNTIF($DM17:HB17,HB17)=1,1,0) -> 0 | HC15: =IF(COUNTIF($DM17:HC17,HC17)=1,1,0) -> 0 | HD15: =IF(COUNTIF($DM17:HD17,HD17)=1,1,0) -> 0 | HE15: =IF(COUNTIF($DM17:HE17,HE17)=1,1,0) -> 0 | HF15: =IF(COUNTIF($DM17:HF17,HF17)=1,1,0) -> 0 | HG15: =IF(COUNTIF($DM17:HG17,HG17)=1,1,0) -> 0 | HH15: =IF(COUNTIF($DM17:HH17,HH17)=1,1,0) -> 0
E16: - | F16: FAMILY | G16: NAME | H16: TYPE | I16: DETAIL | J16: - | K16: CAPITAL COST | O16: ANNUAL | P16: WAN | Q16: LAN | R16: LOCAL STORAGE | S16: METHOD OF DATA EXTRACT | T16: DIMENSIONS | U16: FIXING | V16: COMMUNICATION WITH SMART METERS | W16: TYPE | X16: CLAIMED BATTERY LIFE | Y16: REMOTE BATTERY LOW LEVEL INDICATOR | Z16: REPORTING INTERVAL | AA16: TEMP ACCURACY | AB16: TEMP RANGE | AC16: TEMP RESOLUTION | AD16: HUMIDITY ACCURACY | AE16: CO2 ACCURACY | AF16: INSTALLATION ISSUES | AG16: INSTALL TIME RESEARCHER | AH16: INSTALL AND COMMISSION TIME GAS | AI16: INSTALL TIME ELECTRICIAN | AJ16: MAINTENANCE CHECK TIME | AK16: BATTERY CHANGE TIME | AL16: ANNUAL REPLACEMENT RATE | AM16: - | AS16: TYPE | AU16: SENSOR COVERS | BJ16: MAIN | BL16: ALTERNATIVE 1 | BN16: ALTERNATIVE 2 | BP16: ALTERNATIVE 3 | BR16: ALTERNATIVE 4 | BT16: NUMBER | BU16: VBA | BV16: OPTION | CB16: INTERNET | CC16: SMART METER | CF16: INELIGIBLE? | CJ16: COST DATA | CN16: COST PER UNIT | CQ16: INSTALL TIME | CR16: OVERALL COST PER UNIT | CX16: VBA BIT | CY16: COST | CZ16: POTENTIAL | DE16: EXCESS | DL16: RANK | DM16: =IFERROR(RANK(DM17,$DM$17:$HH$17,0),0) -> 11 | DN16: =IFERROR(RANK(DN17,$DM$17:$HH$17,0),0) -> 7 | DO16: 9 | DP16: 4 | DQ16: 13 | DR16: 10 | DS16: 12 | DT16: 8 | DU16: 6 | DV16: 2 | DW16: 5 | DX16: 1 | DY16: 3 | DZ16: 15 | EA16: 14 | EB16: 15 | EC16: 0 | ED16: 0 | EE16: 0 | EF16: 0 | EG16: 0 | EH16: 0 | EI16: 0 | EJ16: 0 | EK16: 0 | EL16: 0 | EM16: 0 | EN16: 0 | EO16: 0 | EP16: 0 | EQ16: 0 | ER16: 0 | ES16: 0 | ET16: 0 | EU16: 0 | EV16: 0 | EW16: 0 | EX16: 0 | EY16: 0 | EZ16: 0 | FA16: 0 | FB16: 0 | FC16: 0 | FD16: 0 | FE16: 0 | FF16: 0 | FG16: 0 | FH16: 0 | FI16: 0 | FJ16: 0 | FK16: 0 | FL16: 0 | FM16: 0 | FN16: 0 | FO16: 0 | FP16: 0 | FQ16: 0 | FR16: 0 | FS16: 0 | FT16: 0 | FU16: 0 | FV16: 0 | FW16: 0 | FX16: 0 | FY16: 0 | FZ16: =IFERROR(RANK(FZ17,$DM$17:$HH$17,0),0) -> 0 | GA16: 0 | GB16: 0 | GC16: 0 | GD16: 0 | GE16: 0 | GF16: 0 | GG16: 0 | GH16: 0 | GI16: 0 | GJ16: 0 | GK16: 0 | GL16: 0 | GM16: 0 | GN16: 0 | GO16: 0 | GP16: 0 | GQ16: 0 | GR16: 0 | GS16: 0 | GT16: 0 | GU16: 0 | GV16: 0 | GW16: 0 | GX16: 0 | GY16: 0 | GZ16: 0 | HA16: 0 | HB16: 0 | HC16: 0 | HD16: 0 | HE16: 0 | HF16: 0 | HG16: 0 | HH16: 0
E17: - | F17: - | G17: - | H17: - | I17: - | J17: - | K17: INDIVIDUAL | L17: BULK 1000 | M17: BULK 5000 | N17: BULK 10000 | O17: - | P17: - | Q17: - | R17: - | S17: - | T17: - | U17: - | V17: - | W17: - | X17: - | Y17: - | Z17: - | AA17: - | AB17: - | AC17: - | AD17: - | AE17: - | AF17: - | AG17: - | AH17: - | AI17: - | AJ17: - | AK17: - | AL17: - | AM17: - | AS17: Sensor | AT17: Logger | AU17: - | AV17: Electricity | AW17: Individual Appliance | AX17: CO2 | AY17: Temperature | AZ17: Humidity | BA17: Gas | BB17: Noise | BC17: Multiple Appliances | BD17: Occupancy | BE17: Light | BF17: Ventilation | BG17: PV | BJ17: SENSOR 1 | BK17: SENSOR 2 | BL17: SENSOR 1 | BM17: SENSOR 2 | BN17: SENSOR 1 | BO17: SENSOR 2 | BP17: SENSOR 1 | BQ17: SENSOR 2 | BR17: SENSOR 1 | BS17: SENSOR 2 | BT17: - | BU17: OPTION | BV17: REF 1 | BW17: REF 2 | BX17: ROW 1 | BY17: ROW 2 | CB17: - | CC17: - | CF17: ITSELF | CG17: INCL PREREQ | CJ17: INDIVIDUAL | CK17: BULK 1000 | CL17: BULK 5000 | CM17: BULK 10000 | CN17: CAPITAL COST | CO17: ANNUAL COST | CP17: ANNUAL REPLACEMENT | CQ17: PER HOME | CR17: YEAR 1 | CS17: ONGOING ANNUAL | CT17: TOTAL OVER STUDY | CU17: TOTAL | CX17: CURRENT | CY17: PREREQ | CZ17: SENSE | DA17: COST | DB17: COST PER ADDITIONAL SENSE | DE17: RANK | DF17: PREREQ | DL17: TOTAL COST PER HOME | DM17: =IF(DM21="","-",SUMPRODUCT(DM20:DM69,$CU$20:$CU$69)) -> 855 | DN17: 895.1 | DO17: 861.5 | DP17: 982 | DQ17: 841.545 | DR17: 857.295 | DS17: 853.245 | DT17: 865.845 | DU17: 899.445 | DV17: 1006.861 | DW17: 947.525 | DX17: 1009.05 | DY17: 996.65 | DZ17: 803.445 | EA17: 810.195 | EB17: 803.445 | EC17: - | ED17: - | EE17: - | EF17: - | EG17: - | EH17: - | EI17: - | EJ17: - | EK17: - | EL17: - | EM17: - | EN17: - | EO17: - | EP17: - | EQ17: - | ER17: - | ES17: =IF(ES21="","-",SUMPRODUCT(ES20:ES69,$CU$20:$CU$69)) -> - | ET17: - | EU17: - | EV17: - | EW17: - | EX17: - | EY17: - | EZ17: - | FA17: - | FB17: - | FC17: - | FD17: - | FE17: - | FF17: - | FG17: - | FH17: - | FI17: - | FJ17: - | FK17: - | FL17: - | FM17: - | FN17: - | FO17: - | FP17: - | FQ17: - | FR17: - | FS17: - | FT17: - | FU17: - | FV17: - | FW17: - | FX17: - | FY17: =IF(FY21="","-",SUMPRODUCT(FY20:FY69,$CU$20:$CU$69)) -> - | FZ17: - | GA17: - | GB17: - | GC17: - | GD17: - | GE17: - | GF17: - | GG17: - | GH17: - | GI17: - | GJ17: - | GK17: - | GL17: - | GM17: - | GN17: - | GO17: - | GP17: - | GQ17: - | GR17: - | GS17: - | GT17: - | GU17: - | GV17: - | GW17: - | GX17: - | GY17: - | GZ17: - | HA17: - | HB17: - | HC17: - | HD17: - | HE17: - | HF17: - | HG17: - | HH17: -
D18: UNITS | E18: - | F18: - | G18: - | H18: - | I18: - | J18: - | K18: £/unit | L18: £/unit | M18: £/unit | N18: £/unit | O18: £/unit per yr | P18: - | Q18: - | R18: - | S18: - | T18: mm | U18: - | V18: - | W18: - | X18: - | Y18: - | Z18: - | AA18: - | AB18: - | AC18: - | AD18: - | AE18: - | AF18: - | AG18: - | AH18: - | AI18: - | AJ18: - | AK18: - | AL18: - | AM18: - | AS18: - | AT18: - | AU18: - | AV18: - | AW18: - | AX18: - | AY18: - | AZ18: - | BA18: - | BB18: - | BC18: - | BD18: - | BE18: - | BF18: - | BG18: - | BJ18: - | BK18: - | BL18: - | BM18: - | BN18: - | BO18: - | BP18: - | BQ18: - | BT18: - | BU18: - | BV18: - | BW18: - | BX18: - | BY18: - | CB18: - | CC18: - | CF18: - | CG18: - | CJ18: - | CK18: - | CL18: - | CM18: - | CN18: - | CO18: - | CP18: - | CQ18: - | CR18: - | CS18: - | CT18: - | CU18: - | CX18: NO. TOOLS | CY18: - | CZ18: - | DA18: - | DB18: - | DE18: - | DF18: USE | DL18: UNNEEDED | DM18: - | DN18: - | DO18: - | DP18: - | DQ18: - | DR18: - | DS18: - | DT18: - | DU18: - | DV18: - | DW18: - | DX18: - | DY18: - | DZ18: - | EA18: - | EB18: - | EC18: - | ED18: - | EE18: - | EF18: - | EG18: - | EH18: - | EI18: - | EJ18: - | EK18: - | EL18: - | EM18: - | EN18: - | EO18: - | EP18: - | EQ18: - | ER18: - | ES18: - | ET18: - | EU18: - | EV18: - | EW18: - | EX18: - | EY18: - | EZ18: - | FA18: - | FB18: - | FC18: - | FD18: - | FE18: - | FF18: - | FG18: - | FH18: - | FI18: - | FJ18: - | FK18: - | FL18: - | FM18: - | FN18: - | FO18: - | FP18: - | FQ18: - | FR18: - | FS18: - | FT18: - | FU18: - | FV18: - | FW18: - | FX18: - | FY18: - | FZ18: - | GA18: - | GB18: - | GC18: - | GD18: - | GE18: - | GF18: - | GG18: - | GH18: - | GI18: - | GJ18: - | GK18: - | GL18: - | GM18: - | GN18: - | GO18: - | GP18: - | GQ18: - | GR18: - | GS18: - | GT18: - | GU18: - | GV18: - | GW18: - | GX18: - | GY18: - | GZ18: - | HA18: - | HB18: - | HC18: - | HD18: - | HE18: - | HF18: - | HG18: - | HH18: -
D19: BACKGROUND | E19: - | F19: - | G19: - | H19: - | I19: - | J19: - | K19: 1 | L19: 1000 | M19: 5000 | N19: 10000 | O19: - | P19: - | Q19: - | R19: - | S19: - | T19: - | U19: - | V19: - | W19: - | X19: - | Y19: - | Z19: - | AA19: - | AB19: - | AC19: - | AD19: - | AE19: - | AF19: - | AG19: - | AH19: - | AI19: - | AJ19: - | AK19: - | AL19: - | AM19: - | BJ19: 0 | BK19: 0 | BT19: =IF(SUM(BL19:BM19)>0,1,0)+IF(SUM(BN19:BO19)>0,1,0)+IF(SUM(BP19:BQ19)>0,1,0)+IF(SUM(BJ19:BK19)>0,1,0)+IF(SUM(BR19:BS19)>0,1,0) -> 0 | BU19: 1 | BV19: =INDEX($BJ19:$BS19,0,($BU19*2)-1) -> 0 | BW19: =INDEX($BJ19:$BS19,0,($BU19*2)) -> 0 | BX19: =IF(BV19=0,0,MATCH(BV19,$E$20:$E$69,0)-1) -> 0 | BY19: =IF(BW19=0,0,MATCH(BW19,$E$20:$E$69,0)-1) -> 0 | CB19: =IF(OR(AND(ISERROR(FIND("INTERNET",UPPER(J19))),UPPER(P19)<>"ETHERNET"),CB$13=1),0,1) -> 0 | CC19: =IF(OR(CC$13=1,ISERROR(FIND("SMART METER",UPPER(F19)))),0,1) -> 0 | CF19: =CB19+CC19 -> 0 | CG19: =IF(IF(BV19>0,SUMIFS($CF$20:$CF$69,$E$20:$E$69,BV19),0)+IF(BW19>0,SUMIFS($CF$20:$CF$69,$E$20:$E$69,BW19),0)+CF19>0,1,0) -> 0 | CJ19: =IF(ISNUMBER(K19),K19,0) -> 1 | CK19: =IF(ISNUMBER(L19),L19,CJ19) -> 1000 | CL19: =IF(ISNUMBER(M19),M19,CK19) -> 5000 | CM19: =IF(ISNUMBER(N19),N19,CL19) -> 10000 | CN19: =INDEX($CJ19:$CM19,0,MATCH($E$12,$CJ$19:$CM$19,1)) -> 1000 | CO19: =IF(ISNUMBER(O19),O19,0) -> 0 | CP19: =IF(ISNUMBER(AL19),AL19,0) -> 0 | CQ19: =SUMIF(AG19:AI19,">0")/60 -> 0 | CR19: =CN19+(CQ19*60*$CQ$13)+CO19 -> 1000 | CS19: =CO19+(CJ19*CP19)+(SUMIF(AJ19:AK19,">0")*$CQ$13) -> 0 | CT19: =CR19+(CS19*($E$13-1)) -> 1000 | CU19: =CT19+(E19/(100000000*$E$12)) ->  | CX19: 0 | CY19: =SUMIFS($CU$20:$CU$69,$E$20:$E$69,$BV19,$CX$20:$CX$69,"<>1")+SUMIFS($CU$20:$CU$69,$E$20:$E$69,$BW19,$CX$20:$CX$69,"<>1") -> 0 | CZ19: =IF(CG19=0,SUMPRODUCT(AV19:BG19,AV$11:BG$11),0) -> 0 | DA19: =IF(CZ19<>0,CU19+CY19,"-") -> - | DB19: =IF(CZ19<>0,DA19/CZ19,"-") -> - | DE19: =IF(AND($CX19>0,SUMPRODUCT($AV19:$BG19,$AV$12:$BG$12)>0,SUMPRODUCT($AV19:$BG19,$AV$13:$BG$13)=0),$CU19,0) -> 0 | DF19: =SUMIFS($CX$20:$CX$69,$BV$20:$BV$69,$E19,$DE$20:$DE$69,0)+SUMIFS($CX$20:$CX$69,$BW$20:$BW$69,$E19,$DE$20:$DE$69,0) -> 0 | DG19: =IF(DF19=0,DE19,0) -> 0 | DM19: 0 | DN19: 0 | DO19: 0 | DP19: 0 | DQ19: 0 | DR19: 0 | DS19: 0 | DT19: 0 | DU19: 0 | DV19: 0 | DW19: 0 | DX19: 0 | DY19: 0 | DZ19: 0 | EA19: 0 | EB19: 0 | EC19: 0 | ED19: 0 | EE19: 0 | EF19: 0 | EG19: 0 | EH19: 0 | EI19: 0 | EJ19: 0 | EK19: 0 | EL19: 0 | EM19: 0 | EN19: 0 | EO19: 0 | EP19: 0 | EQ19: 0 | ER19: 0 | ES19: 0 | ET19: 0 | EU19: 0 | EV19: 0 | EW19: 0 | EX19: 0 | EY19: 0 | EZ19: 0 | FA19: 0 | FB19: 0 | FC19: 0 | FD19: 0 | FE19: 0 | FF19: 0 | FG19: 0 | FH19: 0 | FI19: 0 | FJ19: 0 | FK19: 0 | FL19: 0 | FM19: 0 | FN19: 0 | FO19: 0 | FP19: 0 | FQ19: 0 | FR19: 0 | FS19: 0 | FT19: 0 | FU19: 0 | FV19: 0 | FW19: 0 | FX19: 0 | FY19: 0 | FZ19: 0 | GA19: 0 | GB19: 0 | GC19: 0 | GD19: 0 | GE19: 0 | GF19: 0 | GG19: 0 | GH19: 0 | GI19: 0 | GJ19: 0 | GK19: 0 | GL19: 0 | GM19: 0 | GN19: 0 | GO19: 0 | GP19: 0 | GQ19: 0 | GR19: 0 | GS19: 0 | GT19: 0 | GU19: 0 | GV19: 0 | GW19: 0 | GX19: 0 | GY19: 0 | GZ19: 0 | HA19: 0 | HB19: 0 | HC19: 0 | HD19: 0 | HE19: 0 | HF19: 0 | HG19: 0 | HH19: 0
E20: - | F20: - | G20: - | H20: - | I20: - | J20: - | K20: - | L20: - | M20: - | N20: - | O20: - | P20: - | Q20: - | R20: - | S20: - | T20: - | U20: - | V20: - | W20: - | X20: - | Y20: - | Z20: - | AA20: - | AB20: - | AC20: - | AD20: - | AE20: - | AF20: - | AG20: - | AH20: - | AI20: - | AJ20: - | AK20: - | AL20: - | AM20: - | AN20: - | AO20: - | AP20: - | AQ20: - | AR20: - | AS20: - | AT20: - | AU20: - | AV20: - | AW20: - | AX20: - | AY20: - | AZ20: - | BA20: - | BB20: - | BC20: - | BD20: - | BE20: - | BF20: - | BG20: - | BH20: - | BI20: - | BJ20: - | BK20: - | BL20: - | BM20: - | BN20: - | BO20: - | BP20: - | BQ20: - | BR20: - | BS20: - | BT20: - | BU20: - | BV20: - | BW20: - | BX20: - | BY20: - | BZ20: - | CA20: - | CB20: - | CC20: - | CD20: - | CE20: - | CF20: - | CG20: - | CH20: - | CI20: - | CJ20: - | CK20: - | CL20: - | CM20: - | CN20: - | CO20: - | CP20: - | CQ20: - | CR20: - | CS20: - | CT20: - | CU20: - | CV20: - | CW20: - | CX20: - | CY20: - | CZ20: - | DA20: - | DB20: - | DC20: - | DD20: - | DE20: - | DF20: - | DG20: - | DH20: - | DI20: - | DJ20: - | DK20: - | DL20: - | DM20: - | DN20: - | DO20: - | DP20: - | DQ20: - | DR20: - | DS20: - | DT20: - | DU20: - | DV20: - | DW20: - | DX20: - | DY20: - | DZ20: - | EA20: - | EB20: - | EC20: - | ED20: - | EE20: - | EF20: - | EG20: - | EH20: - | EI20: - | EJ20: - | EK20: - | EL20: - | EM20: - | EN20: - | EO20: - | EP20: - | EQ20: - | ER20: - | ES20: - | ET20: - | EU20: - | EV20: - | EW20: - | EX20: - | EY20: - | EZ20: - | FA20: - | FB20: - | FC20: - | FD20: - | FE20: - | FF20: - | FG20: - | FH20: - | FI20: - | FJ20: - | FK20: - | FL20: - | FM20: - | FN20: - | FO20: - | FP20: - | FQ20: - | FR20: - | FS20: - | FT20: - | FU20: - | FV20: - | FW20: - | FX20: - | FY20: - | FZ20: - | GA20: - | GB20: - | GC20: - | GD20: - | GE20: - | GF20: - | GG20: - | GH20: - | GI20: - | GJ20: - | GK20: - | GL20: - | GM20: - | GN20: - | GO20: - | GP20: - | GQ20: - | GR20: - | GS20: - | GT20: - | GU20: - | GV20: - | GW20: - | GX20: - | GY20: - | GZ20: - | HA20: - | HB20: - | HC20: - | HD20: - | HE20: - | HF20: - | HG20: - | HH20: -
E21: 1 | F21: Current Cost | G21: Current Cost Gateway, Transmitter and CT clamp | H21: Sensor | I21: Electricity (clamp) only 95% accuracy | J21: The Gateway | K21: 75 | L21: 61 | M21: 54 | N21: 49 | O21: n/a | P21: n/a | Q21: Prop. (433 MHz) | R21: n/a | S21: n/a | T21: 120 x 70 x 30 | U21: Clamp | V21: n/a | W21: Battery | X21: 7 years | Y21: Low battery level sent by gateway | Z21: 6 secs or adjustable to longer period current standard every 5 mins | AA21: n/a | AB21: n/a | AC21: n/a | AD21: n/a | AE21: n/a | AF21: - | AG21: 15 | AH21: n/a | AI21: n/a | AJ21: - | AK21: Householder can replace battery Gateway send battery level information | AL21: 0.1 | AM21: Usually every 5 minutes, but can adjust to as low as 6 second resolution, or higher, as requested before distribution. | AS21: 1 | AV21: 1 | BJ21: 7 | BK21: 0 | BT21: 1 | BU21: 1 | BV21: 7 | BW21: 0 | BX21: =IF(BV21=0,0,MATCH(BV21,$E$20:$E$69,0)-1) -> 7 | BY21: =IF(BW21=0,0,MATCH(BW21,$E$20:$E$69,0)-1) -> 0 | CB21: =IF(OR(AND(ISERROR(FIND("INTERNET",UPPER(J21))),UPPER(P21)<>"ETHERNET"),CB$13=1),0,1) -> 0 | CC21: =IF(OR(CC$13=1,ISERROR(FIND("SMART METER",UPPER(F21)))),0,1) -> 0 | CF21: =CB21+CC21 -> 0 | CG21: =IF(IF(BV21>0,SUMIFS($CF$20:$CF$69,$E$20:$E$69,BV21),0)+IF(BW21>0,SUMIFS($CF$20:$CF$69,$E$20:$E$69,BW21),0)+CF21>0,1,0) -> 1 | CJ21: =IF(ISNUMBER(K21),K21,0) -> 75 | CK21: =IF(ISNUMBER(L21),L21,CJ21) -> 61 | CL21: =IF(ISNUMBER(M21),M21,CK21) -> 54 | CM21: =IF(ISNUMBER(N21),N21,CL21) -> 49 | CN21: =INDEX($CJ21:$CM21,0,MATCH($E$12,$CJ$19:$CM$19,1)) -> 61 | CO21: =IF(ISNUMBER(O21),O21,0) -> 0 | CP21: =IF(ISNUMBER(AL21),AL21,0) -> 0.1 | CQ21: =SUMIF(AG21:AI21,">0")/60 -> 0.25 | CR21: =CN21+(CQ21*60*$CQ$13)+CO21 -> 77.65 | CS21: =CO21+(CJ21*CP21)+(SUMIF(AJ21:AK21,">0")*$CQ$13) -> 7.5 | CT21: =CR21+(CS21*($E$13-1)) -> 85.15 | CU21: =CT21+(E21/(100000000*$E$12)) -> 85.15 | CX21: 0 | CY21: =SUMIFS($CU$20:$CU$69,$E$20:$E$69,$BV21,$CX$20:$CX$69,"<>1")+SUMIFS($CU$20:$CU$69,$E$20:$E$69,$BW21,$CX$20:$CX$69,"<>1") -> 33.3 | CZ21: =IF(CG21=0,SUMPRODUCT(AV21:BG21,AV$11:BG$11),0) -> 0 | DA21: =IF(CZ21<>0,CU21+CY21,"-") -> - | DB21: =IF(CZ21<>0,DA21/CZ21,"-") -> - | DE21: =IF(AND($CX21>0,SUMPRODUCT($AV21:$BG21,$AV$12:$BG$12)>0,SUMPRODUCT($AV21:$BG21,$AV$13:$BG$13)=0),$CU21,0) -> 0 | DF21: =SUMIFS($CX$20:$CX$69,$BV$20:$BV$69,$E21,$DE$20:$DE$69,0)+SUMIFS($CX$20:$CX$69,$BW$20:$BW$69,$E21,$DE$20:$DE$69,0) -> 0 | DG21: =IF(DF21=0,DE21,0) -> 0 | DM21: 0 | DN21: 0 | DO21: 0 | DP21: 0 | DQ21: 0 | DR21: 0 | DS21: 0 | DT21: 0 | DU21: 0 | DV21: 0 | DW21: 0 | DX21: 0 | DY21: 0 | DZ21: 0 | EA21: 0 | EB21: 0
E22: 2 | F22: Current Cost | G22: Current Cost Gateway with Optismart and transmitter | H22: Sensor | I22: Electricity (pulse) 99.9% accuracy Gas (pulse) 99.9% accuracy | J22: The Gateway | K22: 85 | L22: 71 | M22: 64 | N22: 59 | O22: n/a | P22: n/a | Q22: Prop. (433 MHz) | R22: n/a | S22: n/a | T22: 80 x 30 x 30 | U22: Stick on meter and box sits alongside | V22: n/a | W22: Battery | X22: 2 years | Y22: Low battery level sent by gateway | Z22: 6 secs or adjustable to longer period current standard every 5 mins | AA22: n/a | AB22: n/a | AC22: n/a | AD22: n/a | AE22: n/a | AF22: Not Atex approved, Current Cost say not needed for domestic residences refer to Not by Tom Kane in email | AG22: 15 | AH22: 15 | AI22: n/a | AJ22: - | AK22: Householder can replace battery Gateway send battery level information | AL22: 0.1 | AM22: Usually every 5 minutes, but can adjust to as low as 6 second resolution, or higher, as requested before distribution. | AS22: 1 | AV22: 1 | BA22: 1 | BJ22: 7 | BK22: 0 | BT22: 1 | BU22: 1 | BV22: 7 | BW22: 0 | BX22: 7 | BY22: 0 | CB22: 0 | CC22: 0 | CF22: 0 | CG22: 1 | CJ22: 85 | CK22: 71 | CL22: 64 | CM22: 59 | CN22: 71 | CO22: 0 | CP22: 0.1 | CQ22: 0.5 | CR22: =CN22+(CQ22*60*$CQ$13)+CO22 -> 104.3 | CS22: =CO22+(CJ22*CP22)+(SUMIF(AJ22:AK22,">0")*$CQ$13) -> 8.5 | CT22: =CR22+(CS22*($E$13-1)) -> 112.8 | CU22: =CT22+(E22/(100000000*$E$12)) -> 112.8 | CX22: 0 | CY22: 33.3 | CZ22: =IF(CG22=0,SUMPRODUCT(AV22:BG22,AV$11:BG$11),0) -> 0 | DA22: - | DB22: =IF(CZ22<>0,DA22/CZ22,"-") -> - | DE22: =IF(AND($CX22>0,SUMPRODUCT($AV22:$BG22,$AV$12:$BG$12)>0,SUMPRODUCT($AV22:$BG22,$AV$13:$BG$13)=0),$CU22,0) -> 0 | DF22: 0 | DG22: 0 | DM22: 0 | DN22: 0 | DO22: 0 | DP22: 0 | DQ22: 0 | DR22: 0 | DS22: 0 | DT22: 0 | DU22: 0 | DV22: 0 | DW22: 0 | DX22: 0 | DY22: 0 | DZ22: 0 | EA22: 0 | EB22: 0
E23: 3 | F23: Current Cost | G23: Current Cost PV OptiSmart transmitter | H23: Sensor | I23: PV | J23: The Gateway | K23: 27 | L23: 23 | M23: 20.5 | N23: 19 | O23: n/a | P23: n/a | Q23: Prop. (433 MHz) | R23: n/a | S23: n/a | T23: 80 x 30 x 30 | U23: Stick on meter and box sits alongside | V23: n/a | W23: Battery | X23: 2 years | Y23: Low battery level sent by gateway | Z23: 6 secs or adjustable to longer period current standard every 5 mins | AA23: n/a | AB23: n/a | AC23: n/a | AD23: n/a | AE23: n/a | AF23: - | AG23: 15 | AH23: n/a | AI23: n/a | AK23: Householder can replace battery Gateway send battery level information | AL23: 0.1 | AM23: Usually every 5 minutes, but can adjust to as low as 6 second resolution, or higher, as requested before distribution. | AS23: 1 | BG23: 1 | BJ23: 7 | BK23: 0 | BT23: 1 | BU23: 1 | BV23: 7 | BW23: 0 | BX23: 7 | BY23: 0 | CB23: 0 | CC23: 0 | CF23: 0 | CG23: 1 | CJ23: 27 | CK23: 23 | CL23: 20.5 | CM23: 19 | CN23: 23 | CO23: 0 | CP23: 0.1 | CQ23: 0.25 | CR23: 39.65 | CS23: 2.7 | CT23: 42.35 | CU23: 42.35 | CX23: 0 | CY23: 33.3 | CZ23: 0 | DA23: - | DB23: - | DE23: 0 | DF23: 0 | DG23: 0 | DM23: 0 | DN23: 0 | DO23: 0 | DP23: 0 | DQ23: 0 | DR23: 0 | DS23: 0 | DT23: 0 | DU23: 0 | DV23: 0 | DW23: 0 | DX23: 0 | DY23: 0 | DZ23: 0 | EA23: 0 | EB23: 0
E24: 4 | F24: Current Cost | G24: CurrentCost IAM | H24: Sensor | I24: Plug - Indiviudal Appliance | J24: The Gateway | K24: 17.5 | L24: 15 | M24: 14 | N24: 12.5 | O24: n/a | P24: n/a | Q24: Prop. (433 MHz) | R24: n/a | S24: n/a | T24: 63 x 126 x 50 | U24: n/a | V24: n/a | W24: plug | X24: n/a | Y24: Low battery level sent by gateway | Z24: 6 secs or adjustable to longer period current standard every 5 mins | AA24: n/a | AB24: n/a | AC24: n/a | AD24: n/a | AE24: n/a | AF24: - | AG24: 5 | AH24: - | AI24: n/a | AJ24: - | AK24: Householder can replace battery Gateway send battery level information | AL24: 0.1 | AM24: Usually every 5 minutes, but can adjust to as low as 6 second resolution, or higher, as requested before distribution. | AS24: 1 | AW24: 1 | BJ24: 7 | BK24: 0 | BT24: 1 | BU24: 1 | BV24: 7 | BW24: 0 | BX24: 7 | BY24: 0 | CB24: 0 | CC24: 0 | CF24: 0 | CG24: 1 | CJ24: 17.5 | CK24: 15 | CL24: 14 | CM24: 12.5 | CN24: 15 | CO24: 0 | CP24: 0.1 | CQ24: 0.08333333333 | CR24: 20.55 | CS24: 1.75 | CT24: 22.3 | CU24: 22.3 | CX24: 0 | CY24: 33.3 | CZ24: 0 | DA24: - | DB24: - | DE24: 0 | DF24: 0 | DG24: 0 | DM24: 0 | DN24: 0 | DO24: 0 | DP24: 0 | DQ24: 0 | DR24: 0 | DS24: 0 | DT24: 0 | DU24: 0 | DV24: 0 | DW24: 0 | DX24: 0 | DY24: 0 | DZ24: 0 | EA24: 0 | EB24: 0
E25: 5 | F25: Current Cost | G25: Current Cost GaSmart transmitter | H25: Sensor | I25: Gas | J25: The Gateway | K25: 35 | L25: 29 | M25: 25 | N25: 22 | O25: n/a | P25: n/a | Q25: Prop. (433 MHz) | R25: n/a | S25: n/a | T25: 80 x 30 x 30 | U25: Stick on meter and box sits alongside | V25: n/a | W25: Battery | X25: 2 years | Y25: Low battery level sent by gateway | Z25: 30 seconds | AA25: n/a | AB25: n/a | AC25: n/a | AD25: n/a | AE25: n/a | AF25: Not Atex approved, Current Cost say not needed for domestic residences refer to Not by Tom Kane in email | AG25: 15 | AH25: 10 | AI25: n/a | AJ25: - | AK25: Householder can replace battery Gateway send battery level information | AL25: 0.1 | AM25: Usually every 5 minutes, but can adjust to as low as 6 second resolution, or higher, as requested before distribution. | AS25: 1 | BA25: 1 | BJ25: 7 | BK25: 0 | BT25: 1 | BU25: 1 | BV25: 7 | BW25: 0 | BX25: 7 | BY25: 0 | CB25: 0 | CC25: 0 | CF25: 0 | CG25: 1 | CJ25: 35 | CK25: 29 | CL25: 25 | CM25: 22 | CN25: 29 | CO25: 0 | CP25: 0.1 | CQ25: 0.4166666667 | CR25: 56.75 | CS25: 3.5 | CT25: 60.25 | CU25: 60.25 | CX25: 0 | CY25: 33.3 | CZ25: 0 | DA25: - | DB25: - | DE25: 0 | DF25: 0 | DG25: 0 | DM25: 0 | DN25: 0 | DO25: 0 | DP25: 0 | DQ25: 0 | DR25: 0 | DS25: 0 | DT25: 0 | DU25: 0 | DV25: 0 | DW25: 0 | DX25: 0 | DY25: 0 | DZ25: 0 | EA25: 0 | EB25: 0
E26: 6 | F26: Current Cost | G26: Current Cost Temperature sensor | H26: Sensor | I26: Temperature | J26: The Gateway | K26: 25 | L26: 21.5 | M26: 19.5 | N26: 17.5 | O26: n/a | P26: n/a | Q26: Prop. (433 MHz) | R26: n/a | S26: n/a | T26: 70 x 65 x 25 | U26: Free standing | V26: n/a | W26: Battery | X26: 2 years | Y26: Low battery level sent by gateway | Z26: 1 minute | AA26: ±0.5°C | AB26: -20 to 60°C | AC26: 0.5°C | AD26: n/a | AE26: n/a | AF26: - | AG26: 5 | AH26: - | AI26: n/a | AJ26: - | AK26: Householder can replace battery Gateway send battery level information | AL26: 0.1 | AM26: Usually every 5 minutes, but can adjust to as low as 6 second resolution, or higher, as requested before distribution. | AS26: 1 | AY26: 1 | BJ26: 7 | BK26: 0 | BT26: 1 | BU26: 1 | BV26: 7 | BW26: 0 | BX26: 7 | BY26: 0 | CB26: 0 | CC26: 0 | CF26: 0 | CG26: 1 | CJ26: 25 | CK26: 21.5 | CL26: 19.5 | CM26: 17.5 | CN26: 21.5 | CO26: 0 | CP26: 0.1 | CQ26: 0.08333333333 | CR26: 27.05 | CS26: 2.5 | CT26: 29.55 | CU26: 29.55 | CX26: 0 | CY26: 33.3 | CZ26: 0 | DA26: - | DB26: - | DE26: 0 | DF26: 0 | DG26: 0 | DM26: 0 | DN26: 0 | DO26: 0 | DP26: 0 | DQ26: 0 | DR26: 0 | DS26: 0 | DT26: 0 | DU26: 0 | DV26: 0 | DW26: 0 | DX26: 0 | DY26: 0 | DZ26: 0 | EA26: 0 | EB26: 0
E27: 7 | F27: Current Cost | G27: The Gateway | H27: Logger | I27: Send the data straight to Decc or current cost or third party api | J27: Internet connected house | K27: Comes as part of the CT or optismart transmitter/sensor | L27: Comes as part of the CT or optismart transmitter/sensor | M27: Comes as part of the CT or optismart transmitter/sensor | N27: Comes as part of the CT or optismart transmitter/sensor | O27: n/a as long as data going to 3rd party | P27: Ethernet | Q27: Prop. (433 MHz) | R27: 36 hours data storage, depending on resolution of data | S27: 3rd party website or own IP address or CurrentCost could host it a cost would be involved. | T27: 110 x 22 x 80 | U27: Free standing | V27: They have started one but put on hold until smart meter role out actually happens | W27: Plug | X27: no back up battery | Y27: n/a | Z27: 6 secs or adjustable to longer period current standard every 5 mins | AA27: n/a | AB27: n/a | AC27: n/a | AD27: Future humidity sensor planned or would develop on request, cost would be the same as for the temperature sensor | AE27: Future CO2 sensor planned or would develp on request | AF27: - | AG27: 30 | AH27: - | AI27: n/a | AJ27: - | AK27: n/a | AL27: 0.1 | AM27: Usually every 5 minutes, but can adjust to as low as 6 second resolution, or higher, as requested before distribution. | AT27: 1 | BT27: 0 | BU27: 1 | BV27: 0 | BW27: 0 | BX27: 0 | BY27: 0 | CB27: 1 | CC27: 0 | CF27: 1 | CG27: 1 | CJ27: 0 | CK27: 0 | CL27: 0 | CM27: 0 | CN27: 0 | CO27: 0 | CP27: 0.1 | CQ27: 0.5 | CR27: 33.3 | CS27: 0 | CT27: 33.3 | CU27: 33.3 | CX27: 0 | CY27: 0 | CZ27: 0 | DA27: - | DB27: - | DE27: 0 | DF27: 0 | DG27: 0 | DM27: 0 | DN27: 0 | DO27: 0 | DP27: 0 | DQ27: 0 | DR27: 0 | DS27: 0 | DT27: 0 | DU27: 0 | DV27: 0 | DW27: 0 | DX27: 0 | DY27: 0 | DZ27: 0 | EA27: 0 | EB27: 0
E28: 8 | F28: Eltek | G28: Eltek GC62 Pulse Counter | H28: Sensor | I28: Pulse counter transmitter from elec or gas but does not have approval for Zone 2 Atex | J28: PR01 + RX250AL Logger | K28: 190 | L28: 40 | M28: 30 | N28: 25 | O28: n/a | P28: n/a | Q28: Prop. (433 MHz) | R28: n/a | S28: n/a | T28: 78 x 41 footprint | U28: Bracket to hold to wall and tamper proof | W28: Plug 6v-9v DC or Battery | X28: logging interval > 5 mins then 2 years 4 x LR6 AA | Y28: Not found | Z28: 1 sec to 4 hours 250 pulses per second max 65,000 pulses per logging interval | AA28: n/a | AB28: n/a | AC28: n/a | AD28: n/a | AE28: n/a | AF28: Not atex zone 2 approved | AG28: 10 | AH28: 10 | AI28: - | AJ28: - | AK28: 5 | AL28: 0.1 | AM28: Max 65,000 pulses per logging interval | AS28: 1 | AV28: 1 | BA28: 1 | BJ28: 9 | BK28: 14 | BT28: 1 | BU28: 1 | BV28: 9 | BW28: 14 | BX28: 9 | BY28: 14 | CB28: 0 | CC28: 0 | CF28: 0 | CG28: 0 | CJ28: 190 | CK28: 40 | CL28: 30 | CM28: 25 | CN28: 40 | CO28: 0 | CP28: 0.1 | CQ28: 0.3333333333 | CR28: 62.2 | CS28: 24.55 | CT28: 86.75 | CU28: 86.75 | CX28: 0 | CY28: 490.15 | CZ28: 2 | DA28: 576.9 | DB28: 288.45 | DE28: 0 | DF28: 0 | DG28: 0 | DM28: 1 | DN28: 0 | DO28: 1 | DP28: 1 | DQ28: 0 | DR28: 0 | DS28: 0 | DT28: 0 | DU28: 0 | DV28: 0 | DW28: 0 | DX28: 0 | DY28: 0 | DZ28: 0 | EA28: 0 | EB28: 0
E29: 9 | F29: Eltek | G29: PRO1 (alernative would be the elsetr, which you add in series and has 2 pulse out options) | H29: Sensor | I29: Circuited based - Energy pulse electric meter | J29: Eltek GC62 and RX250AL logger | K29: 30 | L29: 30 | M29: 20 | N29: 15 | O29: n/a | P29: n/a | Q29: Prop. (433 MHz) | R29: n/a | S29: n/a | T29: 1 unit wide din rail device | U29: Fastened to exisiting unit inside or would have to add additional unit | W29: n/a | X29: n/a | Y29: Not found | AA29: n/a | AB29: n/a | AC29: n/a | AD29: n/a | AE29: n/a | AF29: Must be installed by qualified electrical engineer requires technical understanding for set up eg set = Maximum (32500) = Value per pulse (0.5Wh) | AG29: 5 | AH29: - | AI29: 30 | AJ29: - | AK29: - | AL29: 0.1 | AS29: 1 | AV29: 1 | BJ29: 8 | BK29: 14 | BT29: 1 | BU29: 1 | BV29: 8 | BW29: 14 | BX29: 8 | BY29: 14 | CB29: 0 | CC29: 0 | CF29: 0 | CG29: 0 | CJ29: 30 | CK29: 30 | CL29: 20 | CM29: 15 | CN29: 30 | CO29: 0 | CP29: 0.1 | CQ29: 0.5833333333 | CR29: 68.85 | CS29: 3 | CT29: 71.85 | CU29: 71.85 | CX29: 0 | CY29: 505.05 | CZ29: 1 | DA29: 576.9 | DB29: 576.9 | DE29: 0 | DF29: 0 | DG29: 0 | DM29: 1 | DN29: 1 | DO29: 1 | DP29: 1 | DQ29: 0 | DR29: 0 | DS29: 0 | DT29: 0 | DU29: 0 | DV29: 0 | DW29: 0 | DX29: 0 | DY29: 0 | DZ29: 0 | EA29: 0 | EB29: 0
E30: 10 | F30: Eltek | G30: Eltek GC62EX pulse counter | H30: Sensor | I30: Energy pulse for gas and electricity meters | J30: Electricity monitoring requires a PR01 monitor to connect to the gas meter part of this transmitter AND a RX250AL Logger | K30: 280 | L30: 60 | M30: 40 | N30: 35 | O30: n/a | P30: n/a | Q30: Prop. (433 MHz) | R30: n/a | S30: n/a | T30: 78 x 41 footprint | U30: Bracket to hold to wall and tamper proof | W30: Battery lithuim | X30: 1 year logging every 5 mins could be greater if longer logging interval Replace only with Eltek battery | Y30: Not found | Z30: 250 pulses per second max 65,000 pulses per logging interval | AA30: n/a | AB30: n/a | AC30: n/a | AD30: n/a | AE30: n/a | AG30: 10 | AH30: uncertain | AI30: 20 | AJ30: - | AK30: 5 | AL30: 0.1 | AM30: Self-certified to Atex zone 2 requirement of IGEM /7A communication 1731. Can be installed by enginner, was used by Eon, who accepted this. Best to confirm with IGEM if electricity and gas can be relayed using one transmitter. | AS30: 1 | AV30: 1 | BA30: 1 | BJ30: 9 | BK30: 14 | BT30: 1 | BU30: 1 | BV30: 9 | BW30: 14 | BX30: 9 | BY30: 14 | CB30: 0 | CC30: 0 | CF30: 0 | CG30: 0 | CJ30: 280 | CK30: 60 | CL30: 40 | CM30: 35 | CN30: 60 | CO30: 0 | CP30: 0.1 | CQ30: 0.5 | CR30: 93.3 | CS30: 33.55 | CT30: 126.85 | CU30: 126.85 | CX30: 0 | CY30: 490.15 | CZ30: 2 | DA30: 617 | DB30: 308.5 | DE30: 0 | DF30: 0 | DG30: 0 | DM30: 0 | DN30: 1 | DO30: 0 | DP30: 0 | DQ30: 0 | DR30: 0 | DS30: 0 | DT30: 0 | DU30: 0 | DV30: 0 | DW30: 0 | DX30: 0 | DY30: 0 | DZ30: 0 | EA30: 0 | EB30: 0
E31: 11 | F31: Eltek | G31: Eltek GD10 (with display) | H31: Sensor | I31: Temperature, humidity | J31: RX250AL Logger | K31: 220 | L31: 55 | M31: 35 | N31: 30 | O31: n/a | P31: n/a | Q31: Prop. (433 MHz) | R31: n/a | S31: n/a | T31: 78 x 41 footprint | U31: Bracket to hold to wall and tamper proof | W31: Battery | X31: 5 years | Y31: Not found | Z31: 30 sec to 4 hours | AA31: ±0.4°C (+5 to +40°C) ±1.0°C (-20 to +80°C) | AB31: -30 to 65°C | AC31: 0.1°C | AD31: ±2% (10 to 90%RH) ±4% (0 to 100%RH) | AE31: n/a | AF31: Large case | AG31: 20 | AH31: - | AI31: - | AJ31: - | AK31: - | AL31: 0.1 | AM31: Choose of white or metal colour | AS31: 1 | AY31: 1 | AZ31: 1 | BJ31: 14 | BK31: 0 | BT31: 1 | BU31: 1 | BV31: 14 | BW31: 0 | BX31: 14 | BY31: 0 | CB31: 0 | CC31: 0 | CF31: 0 | CG31: 0 | CJ31: 220 | CK31: 55 | CL31: 35 | CM31: 30 | CN31: 55 | CO31: 0 | CP31: 0.1 | CQ31: 0.3333333333 | CR31: 77.2 | CS31: 22 | CT31: 99.2 | CU31: 99.2 | CX31: 0 | CY31: 418.3 | CZ31: 1 | DA31: 517.5 | DB31: 517.5 | DE31: 0 | DF31: 0 | DG31: 0 | DM31: 0 | DN31: 0 | DO31: 1 | DP31: 0 | DQ31: 0 | DR31: 0 | DS31: 0 | DT31: 0 | DU31: 0 | DV31: 0 | DW31: 0 | DX31: 0 | DY31: 0 | DZ31: 0 | EA31: 0 | EB31: 0
E32: 12 | F32: Eltek | G32: EltekGC10 without display | H32: Sensor | I32: Temperature, humidity | J32: RX250AL Logger | K32: 205 | L32: 50 | M32: 32 | N32: 27 | O32: n/a | P32: n/a | Q32: Prop. (433 MHz) | R32: n/a | S32: n/a | T32: 78 x 41 footprint | U32: Bracket to hold to wall and tamper proof | W32: Battery | X32: 5 years | Y32: Not found | Z32: 30 sec to 4 hours | AA32: ±0.4°C (+5 to +40°C) ±1.0°C (-20 to +80°C) | AB32: -30 to 65°C | AC32: 0.1°C | AD32: ±2% (10 to 90%RH) ±4% (0 to 100%RH) | AE32: n/a | AF32: Large case | AG32: 20 | AH32: - | AI32: - | AJ32: - | AK32: - | AL32: 0.1 | AM32: Choose of white or metal colour | AS32: 1 | AY32: 1 | AZ32: 1 | BJ32: 14 | BK32: 0 | BT32: 1 | BU32: 1 | BV32: 14 | BW32: 0 | BX32: 14 | BY32: 0 | CB32: 0 | CC32: 0 | CF32: 0 | CG32: 0 | CJ32: 205 | CK32: 50 | CL32: 32 | CM32: 27 | CN32: 50 | CO32: 0 | CP32: 0.1 | CQ32: 0.3333333333 | CR32: 72.2 | CS32: 20.5 | CT32: 92.7 | CU32: 92.7 | CX32: 0 | CY32: 418.3 | CZ32: 1 | DA32: 511 | DB32: 511 | DE32: 0 | DF32: 0 | DG32: 0 | DM32: 3 | DN32: 3 | DO32: 2 | DP32: 2 | DQ32: 0 | DR32: 0 | DS32: 0 | DT32: 0 | DU32: 0 | DV32: 0 | DW32: 0 | DX32: 0 | DY32: 0 | DZ32: 0 | EA32: 0 | EB32: 0
E33: 13 | F33: Eltek | G33: Eltek GW47 CO2 sensor | H33: Sensor | I33: CO2, Temperature, Humdity | J33: RX250AL Logger | K33: 475 | L33: 150 | M33: 100 | N33: 90 | O33: n/a | P33: n/a | Q33: Prop. (433 MHz) | R33: n/a | S33: n/a | T33: 78 x 41 footprint | U33: Wall mounting screw on a backplate | W33: plug | X33: Backup battery 100 hours | Y33: Not found | Z33: 30 sec to 4 hours | AA33: ±0.4°C (+5 to +40°C) ±1.0°C (-20 to +80°C) | AB33: -30 to 65°C | AC33: 0.1°C | AD33: ±2% (10 to 90%RH) ±4% (0 to 100%RH) | AE33: ±50ppm | AF33: Needs plug, large case | AG33: 20 | AH33: - | AI33: - | AJ33: - | AK33: - | AL33: 0.1 | AS33: 1 | AX33: 1 | AY33: 1 | AZ33: 1 | BJ33: 14 | BK33: 0 | BT33: 1 | BU33: 1 | BV33: 14 | BW33: 0 | BX33: 14 | BY33: 0 | CB33: 0 | CC33: 0 | CF33: 0 | CG33: 0 | CJ33: 475 | CK33: 150 | CL33: 100 | CM33: 90 | CN33: 150 | CO33: 0 | CP33: 0.1 | CQ33: 0.3333333333 | CR33: 172.2 | CS33: 47.5 | CT33: 219.7 | CU33: 219.7 | CX33: 0 | CY33: 418.3 | CZ33: 1 | DA33: 638 | DB33: 638 | DE33: 0 | DF33: 0 | DG33: 0 | DM33: 0 | DN33: 0 | DO33: 0 | DP33: 1 | DQ33: 0 | DR33: 0 | DS33: 0 | DT33: 0 | DU33: 0 | DV33: 0 | DW33: 0 | DX33: 0 | DY33: 0 | DZ33: 0 | EA33: 0 | EB33: 0
E34: 14 | F34: Eltek | G34: RX250AL logger | H34: Logger | I34: Logger only | J34: Darca software | K34: 850 | L34: 300 | M34: 120 | N34: 100 | O34: n/a | P34: 3g modem with SIM built in to logger /GSM/to PC via serial | Q34: Prop. (433 MHz) | R34: 250,000 readings | S34: 3rd party website or database set up specifically by Eltek (cost to this) | T34: 180 x 120 x 60 | U34: metal bracket that screws on to the wall and holds the logger - Eltek can make more screw | W34: plug | X34: Backup battery 24 hours | Y34: Not found | Z34: 30 sec to 4 hours | AA34: n/a | AB34: n/a | AC34: n/a | AD34: n/a | AE34: n/a | AG34: 30 | AH34: - | AI34: - | AJ34: - | AK34: - | AL34: 0.1 | AT34: 1 | BT34: 0 | BU34: 1 | BV34: 0 | BW34: 0 | BX34: 0 | BY34: 0 | CB34: 0 | CC34: 0 | CF34: 0 | CG34: 0 | CJ34: 850 | CK34: 300 | CL34: 120 | CM34: 100 | CN34: 300 | CO34: 0 | CP34: 0.1 | CQ34: 0.5 | CR34: 333.3 | CS34: 85 | CT34: 418.3 | CU34: 418.3 | CX34: 0 | CY34: 0 | CZ34: 0 | DA34: - | DB34: - | DE34: 0 | DF34: 0 | DG34: 0 | DM34: 1 | DN34: 1 | DO34: 1 | DP34: 1 | DQ34: 0 | DR34: 0 | DS34: 0 | DT34: 0 | DU34: 0 | DV34: 0 | DW34: 0 | DX34: 0 | DY34: 0 | DZ34: 0 | EA34: 0 | EB34: 0
E35: 15 | F35: Eltek | G35: Individual appliance plug | H35: Sensor | I35: IAM including transmitter | J35: RX250AL Logger | K35: 250 | L35: 50 | M35: 30 | N35: 25 | O35: n/a | P35: n/a | Q35: Prop. (433 MHz) | R35: n/a | S35: n/a | T35: 50 x 90 x 35 | U35: plug in | W35: plug | X35: n/a | Y35: Not found | Z35: 30 sec to 4 hours | AA35: n/a | AB35: n/a | AC35: n/a | AD35: n/a | AE35: n/a | AG35: 5 | AH35: - | AI35: - | AJ35: - | AK35: - | AL35: 0.1 | AS35: 1 | AW35: 1 | BJ35: 14 | BK35: 0 | BT35: 1 | BU35: 1 | BV35: 14 | BW35: 0 | BX35: 14 | BY35: 0 | CB35: 0 | CC35: 0 | CF35: 0 | CG35: 0 | CJ35: 250 | CK35: 50 | CL35: 30 | CM35: 25 | CN35: 50 | CO35: 0 | CP35: 0.1 | CQ35: 0.08333333333 | CR35: 55.55 | CS35: 25 | CT35: 80.55 | CU35: 80.55 | CX35: 0 | CY35: 418.3 | CZ35: 0 | DA35: - | DB35: - | DE35: 0 | DF35: 0 | DG35: 0 | DM35: 0 | DN35: 0 | DO35: 0 | DP35: 0 | DQ35: 0 | DR35: 0 | DS35: 0 | DT35: 0 | DU35: 0 | DV35: 0 | DW35: 0 | DX35: 0 | DY35: 0 | DZ35: 0 | EA35: 0 | EB35: 0
E36: 16 | F36: HOBO | G36: HOBO UA001 08 | H36: Sensor | I36: External Temperature (Waterproof) | J36: A HOBOware Software Starter Kit, HOBO BASE-U-1 Optic Base Station (£63) and Coupler | K36: 38 | L36: =K36-(K36*5/100) -> 36.1 | M36: =K36-(K36*10/100) -> 34.2 | N36: =K36-(K36*15/100) -> 32.3 | O36: n/a | P36: n/a | Q36: n/a | R36: 8K memory 6.5K readings | S36: Data download via Optic USB (IR) Base Station and Pendant Coupler | T36: 58 x 33 x 23 | U36: Integral eyelet (3mm hole) for easy mounting & securing | W36: Battery | X36: 1 year | Y36: Not found | Z36: 32 sec to 4 hours | AA36: 0.47ºC at 25ºC | AB36: -20° to 70°C | AC36: 0.1°C | AD36: n/a | AE36: n/a | AG36: 15 | AH36: - | AI36: - | AJ36: 5 | AK36: 10 | AL36: 0.1 | AM36: Programmable Start time/date or Trigger Start onsite with magnet | AS36: 1 | AY36: 1 | BJ36: 45 | BK36: 0 | BT36: 1 | BU36: 1 | BV36: 45 | BW36: 0 | BX36: 45 | BY36: 0 | CB36: 0 | CC36: 0 | CF36: 0 | CG36: 0 | CJ36: 38 | CK36: 36.1 | CL36: 34.2 | CM36: 32.3 | CN36: 36.1 | CO36: 0 | CP36: 0.1 | CQ36: 0.25 | CR36: 52.75 | CS36: 20.45 | CT36: 73.2 | CU36: 73.2 | CX36: 0 | CY36: 63 | CZ36: 1 | DA36: 136.2 | DB36: 136.2 | DE36: 0 | DF36: 0 | DG36: 0 | DM36: 0 | DN36: 0 | DO36: 0 | DP36: 0 | DQ36: 3 | DR36: 2 | DS36: 0 | DT36: 0 | DU36: 0 | DV36: 0 | DW36: 0 | DX36: 0 | DY36: 0 | DZ36: 0 | EA36: 0 | EB36: 0
E37: 17 | F37: HOBO | G37: HOBO UA001 64 | H37: Sensor | I37: External Temperature (Waterproof) | J37: A HOBOware Software Starter Kit, HOBO BASE-U-1 Optic Base Station (£63) and Coupler | K37: 53 | L37: =K37-(K37*5/100) -> 50.35 | M37: =K37-(K37*10/100) -> 47.7 | N37: =K37-(K37*15/100) -> 45.05 | O37: n/a | P37: n/a | Q37: n/a | R37: 64K memory 52K readings | S37: Data download via Optic USB (IR) Base Station and Pendant Coupler | T37: 58 x 33 x 23 | U37: Integral eyelet (3mm hole) for easy mounting & securing | W37: Battery | X37: 1 year | Y37: Not found | Z37: 33 sec to 4 hours | AA37: 0.47ºC at 25ºC | AB37: -20° to 70°C | AC37: 0.1°C | AD37: n/a | AE37: n/a | AG37: 15 | AH37: - | AI37: - | AJ37: 5 | AK37: 10 | AL37: 0.1 | AM37: Programmable Start time/date or Trigger Start onsite with magnet | AS37: 1 | AY37: 1 | BJ37: 45 | BK37: 0 | BT37: 1 | BU37: 1 | BV37: 45 | BW37: 0 | BX37: 45 | BY37: 0 | CB37: 0 | CC37: 0 | CF37: 0 | CG37: 0 | CJ37: 53 | CK37: 50.35 | CL37: 47.7 | CM37: 45.05 | CN37: 50.35 | CO37: 0 | CP37: 0.1 | CQ37: 0.25 | CR37: 67 | CS37: 21.95 | CT37: 88.95 | CU37: 88.95 | CX37: 0 | CY37: 63 | CZ37: 1 | DA37: 151.95 | DB37: 151.95 | DE37: 0 | DF37: 0 | DG37: 0 | DM37: 0 | DN37: 0 | DO37: 0 | DP37: 0 | DQ37: 0 | DR37: 1 | DS37: 0 | DT37: 0 | DU37: 0 | DV37: 0 | DW37: 0 | DX37: 0 | DY37: 0 | DZ37: 0 | EA37: 0 | EB37: 0
E38: 18 | F38: HOBO | G38: HOBO UX100-001 | H38: All-in-one | I38: Room Temperature | J38: HOBOware (PC software) | K38: 67 | L38: =K38-(K38*5/100) -> 63.65 | M38: =K38-(K38*10/100) -> 60.3 | N38: =K38-(K38*15/100) -> 56.95 | O38: n/a | P38: n/a | Q38: n/a | R38: 128 KB 84,650 measurements | S38: PC software and usb connector | T38: 36.6 x 59.4 x 15.2 | U38: Built-in magnets Command strip Double sided tape Hook and Loop strap to mount to curved surface | W38: Battery | X38: 1 year @ log rate of 1 min and sampling interval of 15secs or > | Y38: Not found | Z38: 1 sec to 18 hours | AA38: ±0.21°C from 0° to 50°C | AB38: -20° to 70°C | AC38: 0.024°C | AD38: n/a | AE38: n/a | AF38: - | AG38: 15 | AH38: - | AI38: - | AJ38: 5 | AK38: 5 | AL38: 0.1 | AM38: Reported monitioring interval drift, 5min interval can drift from 3 to 7 mins Software Pro £88 Software Lite £40 | AS38: 1 | AT38: 1 | AY38: 1 | BT38: 0 | BU38: 1 | BV38: 0 | BW38: 0 | BX38: 0 | BY38: 0 | CB38: 0 | CC38: 0 | CF38: 0 | CG38: 0 | CJ38: 67 | CK38: 63.65 | CL38: 60.3 | CM38: 56.95 | CN38: 63.65 | CO38: 0 | CP38: 0.1 | CQ38: 0.25 | CR38: 80.3 | CS38: 17.8 | CT38: 98.1 | CU38: 98.1 | CX38: 0 | CY38: 0 | CZ38: 1 | DA38: 98.1 | DB38: 98.1 | DE38: 0 | DF38: 0 | DG38: 0 | DM38: 0 | DN38: 0 | DO38: 0 | DP38: 0 | DQ38: 0 | DR38: 0 | DS38: 3 | DT38: 2 | DU38: 2 | DV38: 0 | DW38: 0 | DX38: 0 | DY38: 0 | DZ38: 0 | EA38: 0 | EB38: 0
E39: 19 | F39: HOBO | G39: HOBO UX100-003 | H39: All-in-one | I39: Room Temperature, Humidity | J39: HOBOware (PC software) | K39: 79 | L39: =K39-(K39*5/100) -> 75.05 | M39: =K39-(K39*10/100) -> 71.1 | N39: =K39-(K39*15/100) -> 67.15 | O39: n/a | P39: n/a | Q39: n/a | R39: 128 KB 84,650 measurements | S39: PC software and usb connector | T39: 36.6 x 84.8 x 15.2 | U39: Built-in magnets Command strip Double sided tape Hook and Loop strap to mount to curved surface | W39: Battery | X39: 1 year @ log rate of 1 min and sampling interval of 15secs or > | Y39: Not found | Z39: 1 sec to 18 hours | AA39: ±0.21°C from 0° to 50°C | AB39: -20° to 70°C | AC39: 0.024°C | AD39: ±3.5% from 25% to 85% | AE39: n/a | AF39: - | AG39: 15 | AH39: - | AI39: - | AJ39: 5 | AK39: 5 | AL39: 0.1 | AM39: Reported monitoring interval drift, 5min interval can drift from 3 to 7 mins Software Pro £88 Software Lite £40 | AS39: 1 | AT39: 1 | AY39: 1 | AZ39: 1 | BT39: 0 | BU39: 1 | BV39: 0 | BW39: 0 | BX39: 0 | BY39: 0 | CB39: 0 | CC39: 0 | CF39: 0 | CG39: 0 | CJ39: 79 | CK39: 75.05 | CL39: 71.1 | CM39: 67.15 | CN39: 75.05 | CO39: 0 | CP39: 0.1 | CQ39: 0.25 | CR39: 91.7 | CS39: 19 | CT39: 110.7 | CU39: 110.7 | CX39: 0 | CY39: 0 | CZ39: 1 | DA39: 110.7 | DB39: 110.7 | DE39: 0 | DF39: 0 | DG39: 0 | DM39: 0 | DN39: 0 | DO39: 0 | DP39: 0 | DQ39: 0 | DR39: 0 | DS39: 0 | DT39: 1 | DU39: 0 | DV39: 0 | DW39: 0 | DX39: 0 | DY39: 0 | DZ39: 0 | EA39: 0 | EB39: 0
E40: 20 | F40: HOBO | G40: HOBO UX100-011 | H40: All-in-one | I40: Room Temperature, Humidity | J40: HOBOware (PC software) | K40: 111 | L40: =K40-(K40*5/100) -> 105.45 | M40: =K40-(K40*10/100) -> 99.9 | N40: =K40-(K40*15/100) -> 94.35 | O40: n/a | P40: n/a | Q40: n/a | R40: 128 KB 84,650 measurements | S40: PC software and usb connector | T40: 36.6 x 84.8 x 15.2 | U40: Built-in magnets Command strip Double sided tape Hook and Loop strap to mount to curved surface | W40: Battery | X40: 1 year @ log rate of 1 min and sampling interval of 15secs or > | Y40: Not found | Z40: n/a | AA40: ±0.21°C from 0° to 50°C | AB40: -20° to 70°C | AC40: 0.024°C | AD40: ±2.5% from 10% to 90% | AE40: n/a | AF40: - | AG40: 15 | AH40: - | AI40: - | AJ40: 5 | AK40: 5 | AL40: 0.1 | AM40: Software Pro £88 Software Lite £40 | AS40: 1 | AT40: 1 | AY40: 1 | AZ40: 1 | BT40: 0 | BU40: 1 | BV40: 0 | BW40: 0 | BX40: 0 | BY40: 0 | CB40: 0 | CC40: 0 | CF40: 0 | CG40: 0 | CJ40: 111 | CK40: 105.45 | CL40: 99.9 | CM40: 94.35 | CN40: 105.45 | CO40: 0 | CP40: 0.1 | CQ40: 0.25 | CR40: 122.1 | CS40: 22.2 | CT40: 144.3 | CU40: 144.3 | CX40: 0 | CY40: 0 | CZ40: 1 | DA40: 144.3 | DB40: 144.3 | DE40: 0 | DF40: 0 | DG40: 0 | DM40: 0 | DN40: 0 | DO40: 0 | DP40: 0 | DQ40: 0 | DR40: 0 | DS40: 0 | DT40: 0 | DU40: 1 | DV40: 0 | DW40: 0 | DX40: 0 | DY40: 0 | DZ40: 0 | EA40: 0 | EB40: 0
E41: 21 | F41: Magpeye | G41: Magpeye Ferro | H41: Sensor | I41: Gas (mechanical) Atex approved | J41: Data logger or BMS digital uploads data to cloud | K41: 159.75 | L41: =K41-(K41*18/100) -> 130.995 | M41: =K41-(K41*21/100) -> 126.2025 | N41: =K41-(K41*26/100) -> 118.215 | O41: n/a | P41: n/a | Q41: Hard wired to the gateway or hardwired to interface to give a modbus signal | R41: n/a | S41: CSV | T41: 65x82x30 | U41: Self adhesive pads reader head, Device screwed to the wall | W41: Battery | X41: 10 years | Y41: n/a | Z41: 1 sec to 273 hrs | AA41: n/a | AB41: n/a | AC41: n/a | AD41: n/a | AE41: n/a | AF41: Atex approval must not cut output wire | AG41: 5 | AH41: 30 | AI41: n/a | AJ41: - | AK41: - | AL41: 0.1 | AM41: Reads the numerical disc/dial on the gas meter 99% accuracy Not suitable for smart meter | AS41: 1 | BA41: 1 | BJ41: 11 | BK41: 14 | BT41: 1 | BU41: 1 | BV41: 11 | BW41: 14 | BX41: 11 | BY41: 14 | CB41: 0 | CC41: 0 | CF41: 0 | CG41: 0 | CJ41: 159.75 | CK41: 130.995 | CL41: 126.2025 | CM41: 118.215 | CN41: 130.995 | CO41: 0 | CP41: 0.1 | CQ41: 0.5833333333 | CR41: 169.845 | CS41: 15.975 | CT41: 185.82 | CU41: 185.82 | CX41: 0 | CY41: 517.5 | CZ41: 1 | DA41: 703.32 | DB41: 703.32 | DE41: 0 | DF41: 0 | DG41: 0 | DM41: 0 | DN41: 0 | DO41: 0 | DP41: 0 | DQ41: 0 | DR41: 0 | DS41: 0 | DT41: 0 | DU41: 0 | DV41: 0 | DW41: 0 | DX41: 0 | DY41: 0 | DZ41: 0 | EA41: 0 | EB41: 0
E42: 22 | F42: Magpeye | G42: Magpeye Opto | H42: Sensor | I42: Gas (pulse) Atex approved | J42: Data logger or BMS digital uploads data to cloud | K42: 159.75 | L42: =K42-(K42*18/100) -> 130.995 | M42: =K42-(K42*21/100) -> 126.2025 | N42: =K42-(K42*26/100) -> 118.215 | O42: n/a | P42: n/a | Q42: Hard wired to the gateway or hardwired to interface to give a modbus signal | R42: n/a | S42: CSV | T42: 65x82x30 | U42: Self adhesive pads reader head, Device screwed to the wall | W42: Battery | X42: 10 years | Y42: n/a | Z42: 1 sec to 273 hrs | AA42: n/a | AB42: n/a | AC42: n/a | AD42: n/a | AE42: n/a | AF42: Atex approval must not cut output wire | AG42: 5 | AH42: 30 | AI42: n/a | AJ42: - | AK42: - | AL42: 0.1 | AM42: Reads the numerical disc/dial on the gas meter 99% accuracy Not suitable for smart meter | AS42: 1 | BA42: 1 | BJ42: 11 | BK42: 14 | BT42: 1 | BU42: 1 | BV42: 11 | BW42: 14 | BX42: 11 | BY42: 14 | CB42: 0 | CC42: 0 | CF42: 0 | CG42: 0 | CJ42: 159.75 | CK42: 130.995 | CL42: 126.2025 | CM42: 118.215 | CN42: 130.995 | CO42: 0 | CP42: 0.1 | CQ42: 0.5833333333 | CR42: 169.845 | CS42: 15.975 | CT42: 185.82 | CU42: 185.82 | CX42: 0 | CY42: 517.5 | CZ42: 1 | DA42: 703.32 | DB42: 703.32 | DE42: 0 | DF42: 0 | DG42: 0 | DM42: 0 | DN42: 0 | DO42: 0 | DP42: 0 | DQ42: 0 | DR42: 0 | DS42: 0 | DT42: 0 | DU42: 0 | DV42: 0 | DW42: 0 | DX42: 0 | DY42: 0 | DZ42: 0 | EA42: 0 | EB42: 0
E43: 23 | F43: Netatmo | G43: Netatmo weather station | H43: All-in-one | I43: External monitor Temperature and humidity and Internal monitor (room) temperature, humidity, CO2 and noise | J43: Internet-connected house | K43: 139 | L43: =K43-(K43*20/100) -> 111.2 | M43: =K43-(K43*20/100) -> 111.2 | N43: =K43-(K43*25/100) -> 104.25 | O43: n/a | P43: ethernet | Q43: wifi 2.4GHz range 100m | R43: n/a | S43: 3rd party website & public API | T43: Indoor - 45 x 45 x 155 outdoor - 45 x 45 x105 | U43: free standing or nail to wall for outside monitor | W43: 2 x AAA batteries outside monitor, indoor usb wall adaptor | X43: 1 year | Y43: n/a | Z43: trigger | AA43: +- 0.3°C | AB43: Indoor 0°C to 50°C Outdoor -40°C to 65°C | AC43: 0.1°C | AD43: ±3% | AE43: ± 50ppm or ± 5% | AF43: Amazon reviewer - Cons Sometimes disconnect for no reason and require resetting Some readings slightly off on the sensors, Pros, works over a good distance, netatmo calibrate it, temp spot on to their mercury thermometer | AG43: 10 | AH43: n/a | AI43: - | AJ43: - | AL43: 0.1 | AS43: 1 | AT43: 1 | AX43: 1 | AY43: 1 | AZ43: 1 | BB43: 1 | BT43: 0 | BU43: 1 | BV43: 0 | BW43: 0 | BX43: 0 | BY43: 0 | CB43: 1 | CC43: 0 | CF43: 1 | CG43: 1 | CJ43: 139 | CK43: 111.2 | CL43: 111.2 | CM43: 104.25 | CN43: 111.2 | CO43: 0 | CP43: 0.1 | CQ43: 0.1666666667 | CR43: 122.3 | CS43: 13.9 | CT43: 136.2 | CU43: 136.2 | CX43: 0 | CY43: 0 | CZ43: 0 | DA43: - | DB43: - | DE43: 0 | DF43: 0 | DG43: 0 | DM43: 0 | DN43: 0 | DO43: 0 | DP43: 0 | DQ43: 0 | DR43: 0 | DS43: 0 | DT43: 0 | DU43: 0 | DV43: 0 | DW43: 0 | DX43: 0 | DY43: 0 | DZ43: 0 | EA43: 0 | EB43: 0
E44: 24 | F44: Netatmo | G44: Netatmo weather station additional Internal monitors (room) | H44: All-in-one | I44: Temperature, humidity, CO2 and noise | J44: Internet-connected house | K44: 59 | L44: =K44-(K44*20/100) -> 47.2 | M44: =K44-(K44*20/100) -> 47.2 | N44: =K44-(K44*25/100) -> 44.25 | O44: n/a | P44: n/a | Q44: wifi 2.4GHz range 100m | R44: n/a | S44: n/a | U44: free standing | W44: Battery only | X44: 1 year | Y44: n/a | Z44: trigger | AA44: +- 0.3°C | AB44: Indoor 0°C to 50°C | AC44: 0.1°C | AD44: ±3% | AE44: ± 50ppm or ± 5% | AG44: 10 | AH44: n/a | AS44: 1 | AT44: 1 | AX44: 1 | AY44: 1 | AZ44: 1 | BB44: 1 | BT44: 0 | BU44: 1 | BV44: 0 | BW44: 0 | BX44: 0 | BY44: 0 | CB44: 1 | CC44: 0 | CF44: 1 | CG44: 1 | CJ44: 59 | CK44: 47.2 | CL44: 47.2 | CM44: 44.25 | CN44: 47.2 | CO44: 0 | CP44: 0 | CQ44: 0.1666666667 | CR44: 58.3 | CS44: 0 | CT44: 58.3 | CU44: 58.3 | CX44: 0 | CY44: 0 | CZ44: 0 | DA44: - | DB44: - | DE44: 0 | DF44: 0 | DG44: 0 | DM44: 0 | DN44: 0 | DO44: 0 | DP44: 0 | DQ44: 0 | DR44: 0 | DS44: 0 | DT44: 0 | DU44: 0 | DV44: 0 | DW44: 0 | DX44: 0 | DY44: 0 | DZ44: 0 | EA44: 0 | EB44: 0
E45: 25 | F45: Radio-tech | G45: Radio-tech CO2 sensor | H45: Sensor | I45: CO2 | J45: Radio-tech Wi5 | K45: 117.5 | L45: 94.5 | M45: 85.05 | N45: 80.79 | O45: n/a | P45: n/a | Q45: 434MHz, | R45: n/a | S45: n/a | T45: Not found | U45: wall mount | V45: ASL Holdings system company have a CAD and do bespoke systems | W45: Battery | X45: 5 years | Y45: Reports battery levels via gateway | Z45: 1 min to 24 hours | AA45: n/a | AB45: n/a | AC45: n/a | AD45: n/a | AE45: Not found | AF45: plug and play with some wifi setup programming | AG45: 15 | AH45: n/a | AI45: n/a | AJ45: 0 | AK45: Return to HMW for change | AL45: 0.1 | AM45: Strict on battery life so expect to give what it says | AS45: 1 | AX45: 1 | BJ45: 33 | BK45: 0 | BT45: 1 | BU45: 1 | BV45: 33 | BW45: 0 | BX45: 33 | BY45: 0 | CB45: 0 | CC45: 0 | CF45: 0 | CG45: 0 | CJ45: 117.5 | CK45: 94.5 | CL45: 85.05 | CM45: 80.79 | CN45: 94.5 | CO45: 0 | CP45: 0.1 | CQ45: 0.25 | CR45: 111.15 | CS45: 11.75 | CT45: 122.9 | CU45: 122.9 | CX45: 0 | CY45: 535.8 | CZ45: 0 | DA45: - | DB45: - | DE45: 0 | DF45: 0 | DG45: 0 | DM45: 0 | DN45: 0 | DO45: 0 | DP45: 0 | DQ45: 0 | DR45: 0 | DS45: 0 | DT45: 0 | DU45: 0 | DV45: 0 | DW45: 0 | DX45: 0 | DY45: 0 | DZ45: 0 | EA45: 0 | EB45: 0
E46: 26 | F46: Radio-tech | G46: Radio-tech door/window sensor | H46: Sensor | I46: Contact | J46: Radio-tech Wi5 | K46: 80 | L46: 70 | M46: 65 | N46: 60 | O46: n/a | P46: n/a | Q46: 434MHz, | R46: n/a | S46: n/a | T46: Not found | U46: self adhesive pads | V46: ASL Holdings system company have a CAD and do bespoke systems | W46: Battery | X46: 5 years | Y46: Reports battery levels via gateway | Z46: 1 min to 24 hours | AA46: n/a | AB46: n/a | AC46: n/a | AD46: n/a | AE46: n/a | AF46: plug and play with some wifi setup programming | AG46: 15 | AH46: n/a | AI46: n/a | AJ46: 0 | AK46: Return to HMW for change | AL46: 0.1 | AM46: Strict on battery life so expect to give what it says | AS46: 1 | BF46: 1 | BJ46: 33 | BK46: 0 | BT46: 1 | BU46: 1 | BV46: 33 | BW46: 0 | BX46: 33 | BY46: 0 | CB46: 0 | CC46: 0 | CF46: 0 | CG46: 0 | CJ46: 80 | CK46: 70 | CL46: 65 | CM46: 60 | CN46: 70 | CO46: 0 | CP46: 0.1 | CQ46: 0.25 | CR46: 86.65 | CS46: 8 | CT46: 94.65 | CU46: 94.65 | CX46: 0 | CY46: 535.8 | CZ46: 0 | DA46: - | DB46: - | DE46: 0 | DF46: 0 | DG46: 0 | DM46: 0 | DN46: 0 | DO46: 0 | DP46: 0 | DQ46: 0 | DR46: 0 | DS46: 0 | DT46: 0 | DU46: 0 | DV46: 0 | DW46: 0 | DX46: 0 | DY46: 0 | DZ46: 0 | EA46: 0 | EB46: 0
E47: 27 | F47: Radio-tech | G47: Radio-tech ecochirp | H47: Sensor | I47: Gas (pulse) | J47: Radio-tech Wi5 | K47: 111.56 | L47: 105.98 | M47: 100.4 | N47: 94.82 | O47: n/a | P47: n/a | Q47: 434MHz, | R47: n/a | S47: n/a | T47: Not found | U47: Mounting bracket | V47: ASL Holdings system company have a CAD and do bespoke systems | W47: Battery | X47: 10years | Y47: Reports battery levels via gateway | Z47: 1 min to 24 hours | AA47: n/a | AB47: n/a | AC47: n/a | AD47: n/a | AE47: n/a | AF47: Ecosafe VHF versin available in Zone 2 Atex acreditation | AG47: 5 | AH47: 15 | AI47: n/a | AJ47: 0 | AK47: Return to HMW for change | AL47: 0.1 | AM47: Strict on battery life so expect to give what it says | AS47: 1 | BA47: 1 | BJ47: 33 | BK47: 0 | BT47: 1 | BU47: 1 | BV47: 33 | BW47: 0 | BX47: 33 | BY47: 0 | CB47: 0 | CC47: 0 | CF47: 0 | CG47: 0 | CJ47: 111.56 | CK47: 105.98 | CL47: 100.4 | CM47: 94.82 | CN47: 105.98 | CO47: 0 | CP47: 0.1 | CQ47: 0.3333333333 | CR47: 128.18 | CS47: 11.156 | CT47: 139.336 | CU47: 139.336 | CX47: 0 | CY47: 535.8 | CZ47: 1 | DA47: 675.136 | DB47: 675.136 | DE47: 0 | DF47: 0 | DG47: 0 | DM47: 0 | DN47: 0 | DO47: 0 | DP47: 0 | DQ47: 0 | DR47: 0 | DS47: 0 | DT47: 0 | DU47: 0 | DV47: 1 | DW47: 0 | DX47: 0 | DY47: 0 | DZ47: 0 | EA47: 0 | EB47: 0
E48: 28 | F48: Radio-tech | G48: Radio-tech ecochirp | H48: Sensor | I48: Electricity (pulse) | J48: Radio-tech Wi5 | K48: 45 | L48: 36 | M48: 32.4 | N48: 30.78 | O48: n/a | P48: n/a | Q48: 434MHz, | R48: n/a | S48: n/a | T48: 55 x 67 x 180 | U48: Clamp - Mounting bracket | V48: ASL Holdings system company have a CAD and do bespoke systems | W48: Battery | X48: 5 years | Y48: Reports battery levels via gateway | Z48: 1 min to 24 hours | AA48: n/a | AB48: n/a | AC48: n/a | AD48: n/a | AE48: n/a | AF48: plug and play with some wifi setup programming | AG48: 15 | AH48: n/a | AI48: n/a | AJ48: 0 | AK48: Return to HMW for change | AL48: 0.1 | AM48: Strict on battery life so expect to give what it says | AS48: 1 | AV48: 1 | BJ48: 33 | BK48: 0 | BT48: 1 | BU48: 1 | BV48: 33 | BW48: 0 | BX48: 33 | BY48: 0 | CB48: 0 | CC48: 0 | CF48: 0 | CG48: 0 | CJ48: 45 | CK48: 36 | CL48: 32.4 | CM48: 30.78 | CN48: 36 | CO48: 0 | CP48: 0.1 | CQ48: 0.25 | CR48: 52.65 | CS48: 4.5 | CT48: 57.15 | CU48: 57.15 | CX48: 0 | CY48: 535.8 | CZ48: 1 | DA48: 592.95 | DB48: 592.95 | DE48: 0 | DF48: 0 | DG48: 0 | DM48: 0 | DN48: 0 | DO48: 0 | DP48: 0 | DQ48: 0 | DR48: 0 | DS48: 0 | DT48: 0 | DU48: 0 | DV48: 1 | DW48: 1 | DX48: 1 | DY48: 1 | DZ48: 0 | EA48: 0 | EB48: 0
E49: 29 | F49: Radio-tech | G49: Radio-tech ecosense external | H49: Sensor | I49: External Temperature, Humidity | J49: Radio-tech Wi5 | K49: 154 | L49: 121 | M49: 108.9 | N49: 103.45 | O49: n/a | P49: n/a | Q49: 434MHz, | R49: n/a | S49: n/a | T49: Not found | V49: ASL Holdings system company have a CAD and do bespoke systems | W49: Battery | X49: 5 years | Y49: Reports battery levels via gateway | Z49: 1 min to 24 hours | AA49: 0.3C | AB49: -20 C to 65 C | AC49: Not found | AD49: 0.018 | AE49: n/a | AF49: plug and play with some wifi setup programming | AG49: 15 | AH49: n/a | AI49: n/a | AJ49: 0 | AK49: Return to HMW for change | AL49: 0.1 | AM49: Strict on battery life so expect to give what it says | AS49: 1 | AY49: 1 | AZ49: 1 | BJ49: 33 | BK49: 0 | BT49: 1 | BU49: 1 | BV49: 33 | BW49: 0 | BX49: 33 | BY49: 0 | CB49: 0 | CC49: 0 | CF49: 0 | CG49: 0 | CJ49: 154 | CK49: 121 | CL49: 108.9 | CM49: 103.45 | CN49: 121 | CO49: 0 | CP49: 0.1 | CQ49: 0.25 | CR49: 137.65 | CS49: 15.4 | CT49: 153.05 | CU49: 153.05 | CX49: 0 | CY49: 535.8 | CZ49: 1 | DA49: 688.85 | DB49: 688.85 | DE49: 0 | DF49: 0 | DG49: 0 | DM49: 0 | DN49: 0 | DO49: 0 | DP49: 0 | DQ49: 0 | DR49: 0 | DS49: 0 | DT49: 0 | DU49: 0 | DV49: 0 | DW49: 0 | DX49: 1 | DY49: 0 | DZ49: 0 | EA49: 0 | EB49: 0
E50: 30 | F50: Radio-tech | G50: Radio-tech ecosense internal | H50: Sensor | I50: Room Temperature, Humidity | J50: Radio-tech Wi5 | K50: 140 | L50: 110 | M50: 99 | N50: 94.05 | O50: n/a | P50: n/a | Q50: 434MHz, | R50: n/a | S50: n/a | T50: Not found | V50: ASL Holdings system company have a CAD and do bespoke systems | W50: Battery | X50: 5 years | Y50: Reports battery levels via gateway | Z50: 1 min to 24 hours | AA50: 0.3C | AB50: -20 C to 65 C | AC50: Not found | AD50: 0.018 | AE50: n/a | AF50: plug and play with some wifi setup programming | AG50: 15 | AH50: n/a | AI50: n/a | AJ50: 0 | AK50: Return to HMW for change | AL50: 0.1 | AM50: Strict on battery life so expect to give what it says | AS50: 1 | AY50: 1 | AZ50: 1 | BJ50: 33 | BK50: 0 | BT50: 1 | BU50: 1 | BV50: 33 | BW50: 0 | BX50: 33 | BY50: 0 | CB50: 0 | CC50: 0 | CF50: 0 | CG50: 0 | CJ50: 140 | CK50: 110 | CL50: 99 | CM50: 94.05 | CN50: 110 | CO50: 0 | CP50: 0.1 | CQ50: 0.25 | CR50: 126.65 | CS50: 14 | CT50: 140.65 | CU50: 140.65 | CX50: 0 | CY50: 535.8 | CZ50: 1 | DA50: 676.45 | DB50: 676.45 | DE50: 0 | DF50: 0 | DG50: 0 | DM50: 0 | DN50: 0 | DO50: 0 | DP50: 0 | DQ50: 0 | DR50: 0 | DS50: 0 | DT50: 0 | DU50: 0 | DV50: 0 | DW50: 0 | DX50: 0 | DY50: 1 | DZ50: 0 | EA50: 0 | EB50: 0
E51: 31 | F51: Radio-tech | G51: Radio-tech ecosense surface | H51: Sensor | I51: Wall Temperature | J51: Radio-tech Wi5 | K51: 78.75 | L51: 67 | M51: 63 | N51: 59 | O51: n/a | P51: n/a | Q51: 434MHz, | R51: n/a | S51: n/a | T51: Not found | V51: ASL Holdings system company have a CAD and do bespoke systems | W51: Battery | X51: 5 years | Y51: Reports battery levels via gateway | Z51: 1 min to 24 hours | AA51: 0.3C | AB51: Not found | AC51: Not found | AD51: n/a | AE51: n/a | AF51: plug and play with some wifi setup programming | AG51: 15 | AH51: n/a | AI51: n/a | AJ51: 0 | AK51: Return to HMW for change | AL51: 0.1 | AM51: Strict on battery life so expect to give what it says | AS51: 1 | AY51: 1 | BJ51: 33 | BK51: 0 | BT51: 1 | BU51: 1 | BV51: 33 | BW51: 0 | BX51: 33 | BY51: 0 | CB51: 0 | CC51: 0 | CF51: 0 | CG51: 0 | CJ51: 78.75 | CK51: 67 | CL51: 63 | CM51: 59 | CN51: 67 | CO51: 0 | CP51: 0.1 | CQ51: 0.25 | CR51: 83.65 | CS51: 7.875 | CT51: 91.525 | CU51: 91.525 | CX51: 0 | CY51: 535.8 | CZ51: 1 | DA51: 627.325 | DB51: 627.325 | DE51: 0 | DF51: 0 | DG51: 0 | DM51: 0 | DN51: 0 | DO51: 0 | DP51: 0 | DQ51: 0 | DR51: 0 | DS51: 0 | DT51: 0 | DU51: 0 | DV51: 3 | DW51: 3 | DX51: 2 | DY51: 2 | DZ51: 0 | EA51: 0 | EB51: 0
E52: 32 | F52: Radio-tech | G52: Radio-tech motion sensor | H52: Sensor | I52: Motion | J52: Radio-tech Wi5 | K52: 120 | L52: 100 | M52: 95 | N52: 90 | O52: n/a | P52: n/a | Q52: 434MHz, | R52: n/a | S52: n/a | T52: Not found | V52: ASL Holdings system company have a CAD and do bespoke systems | W52: Battery | X52: Not found | Y52: Reports battery levels via gateway | Z52: 1 min to 24 hours | AA52: n/a | AB52: n/a | AC52: n/a | AD52: n/a | AE52: n/a | AF52: plug and play with some wifi setup programming | AG52: 15 | AH52: n/a | AI52: n/a | AJ52: 0 | AK52: Return to HMW for change | AL52: 0.1 | AM52: Strict on battery life so expect to give what it says | AS52: 1 | BD52: 1 | BJ52: 33 | BK52: 0 | BT52: 1 | BU52: 1 | BV52: 33 | BW52: 0 | BX52: 33 | BY52: 0 | CB52: 0 | CC52: 0 | CF52: 0 | CG52: 0 | CJ52: 120 | CK52: 100 | CL52: 95 | CM52: 90 | CN52: 100 | CO52: 0 | CP52: 0.1 | CQ52: 0.25 | CR52: 116.65 | CS52: 12 | CT52: 128.65 | CU52: 128.65 | CX52: 0 | CY52: 535.8 | CZ52: 0 | DA52: - | DB52: - | DE52: 0 | DF52: 0 | DG52: 0 | DM52: 0 | DN52: 0 | DO52: 0 | DP52: 0 | DQ52: 0 | DR52: 0 | DS52: 0 | DT52: 0 | DU52: 0 | DV52: 0 | DW52: 0 | DX52: 0 | DY52: 0 | DZ52: 0 | EA52: 0 | EB52: 0
E53: 33 | F53: Radio-tech | G53: Radio-tech Wi5 | H53: Logger | I53: Central data concentrator logger and transmitter | J53: Third party FTP (sim card) | K53: 575 | L53: 445 | M53: 400 | N53: 380 | O53: n/a | P53: ethernet or GPRS | Q53: 434MHz, | R53: 2GB | S53: Configurable to 3rd party website by the the company, have own front end Portal for viewing the data and can export from this. Can store and make accessible. | T53: 220 x 200 x 45 | U53: Wall mountable | V53: No | W53: Plug | X53: back up battery 24 hours for logging only, need mains for transmission. | Y53: Reports battery levels via gateway | Z53: 1 min to 24 hours | AA53: n/a | AB53: n/a | AC53: n/a | AD53: n/a | AE53: n/a | AF53: plug and play with some wifi setup programming | AG53: 30 | AH53: n/a | AI53: n/a | AJ53: 0 | AK53: n/a | AL53: 0.1 | AM53: GPRS sim card cost of the SIM tariff, bulk of 2 or 5 years | AT53: 1 | BT53: 0 | BU53: 1 | BV53: 0 | BW53: 0 | BX53: 0 | BY53: 0 | CB53: =IF(OR(AND(ISERROR(FIND("INTERNET",UPPER(J53))),UPPER(P53)<>"ETHERNET"),CB$13=1),0,1) -> 0 | CC53: =IF(OR(CC$13=1,ISERROR(FIND("SMART METER",UPPER(F53)))),0,1) -> 0 | CF53: 0 | CG53: 0 | CJ53: =IF(ISNUMBER(K53),K53,0) -> 575 | CK53: =IF(ISNUMBER(L53),L53,CJ53) -> 445 | CL53: =IF(ISNUMBER(M53),M53,CK53) -> 400 | CM53: =IF(ISNUMBER(N53),N53,CL53) -> 380 | CN53: =INDEX($CJ53:$CM53,0,MATCH($E$12,$CJ$19:$CM$19,1)) -> 445 | CO53: =IF(ISNUMBER(O53),O53,0) -> 0 | CP53: =IF(ISNUMBER(AL53),AL53,0) -> 0.1 | CQ53: =SUMIF(AG53:AI53,">0")/60 -> 0.5 | CR53: 478.3 | CS53: 57.5 | CT53: 535.8 | CU53: 535.8 | CX53: 0 | CY53: 0 | CZ53: 0 | DA53: =IF(CZ53<>0,CU53+CY53,"-") -> - | DB53: - | DE53: 0 | DF53: 0 | DG53: 0 | DM53: 0 | DN53: 0 | DO53: 0 | DP53: 0 | DQ53: 0 | DR53: 0 | DS53: 0 | DT53: 0 | DU53: 0 | DV53: 1 | DW53: 1 | DX53: 1 | DY53: 1 | DZ53: 0 | EA53: 0 | EB53: 0
E54: 34 | F54: Smart Monitoring Systems | G54: AMR | H54: All-in-one | I54: Gas (pulse) | J54: none | K54: No charge for device, which still belongs to Smart Monitoring Systems | L54: No charge for device, which still belongs to Smart Monitoring Systems | M54: No charge for device, which still belongs to Smart Monitoring Systems | N54: No charge for device, which still belongs to Smart Monitoring Systems | O54: 40 | P54: GPRS | Q54: n/a | R54: n/a | S54: 3rd party email | T54: n/a | U54: Replacement meter | W54: Not found | X54: Not found | Y54: Not found | Z54: 30 mins | AA54: n/a | AB54: n/a | AC54: n/a | AD54: n/a | AE54: n/a | AF54: Carried out by Smart metering company charge £40 per year this includes installation cost | AG54: 0 | AH54: 0 | AI54: 0 | AJ54: 0 | AK54: n/a | AL54: 0.1 | AM54: Fitted own meters | AS54: 1 | AT54: 1 | BA54: 1 | BT54: 0 | BU54: 1 | BV54: 0 | BW54: 0 | BX54: 0 | BY54: 0 | CB54: 0 | CC54: 0 | CF54: 0 | CG54: 0 | CJ54: 0 | CK54: 0 | CL54: 0 | CM54: 0 | CN54: 0 | CO54: 40 | CP54: 0.1 | CQ54: 0 | CR54: 40 | CS54: 40 | CT54: 80 | CU54: 80 | CX54: 0 | CY54: 0 | CZ54: 1 | DA54: 80 | DB54: 80 | DE54: 0 | DF54: 0 | DG54: 0 | DM54: 0 | DN54: 0 | DO54: 0 | DP54: 0 | DQ54: 1 | DR54: 1 | DS54: 1 | DT54: 1 | DU54: 1 | DV54: 0 | DW54: 1 | DX54: 1 | DY54: 1 | DZ54: 1 | EA54: 1 | EB54: 1
E55: 35 | F55: Zigbee HA | G55: ZigBee HA Single Phase Power Clamp | H55: Sensor | I55: Electricity (clamp) | J55: Zigbee HA Gateway | K55: 120 | L55: Not found | M55: Not found | N55: Not found | P55: n/a | Q55: Zigbee | R55: n/a | S55: n/a | T55: Not found | U55: Not found | W55: din rail | X55: Not found | Y55: Not found | Z55: Not found | AA55: n/a | AB55: n/a | AC55: n/a | AD55: n/a | AE55: n/a | AG55: 5 | AH55: - | AI55: 15 | AJ55: - | AK55: - | AL55: 0.1 | AS55: 1 | AV55: 1 | BJ55: 39 | BK55: 0 | BT55: 1 | BU55: 1 | BV55: 39 | BW55: 0 | BX55: 39 | BY55: 0 | CB55: 0 | CC55: 0 | CF55: 0 | CG55: 0 | CJ55: 120 | CK55: 120 | CL55: 120 | CM55: 120 | CN55: 120 | CO55: 0 | CP55: 0.1 | CQ55: 0.3333333333 | CR55: 142.2 | CS55: 12 | CT55: 154.2 | CU55: 154.2 | CX55: 0 | CY55: 324.745 | CZ55: 1 | DA55: 478.945 | DB55: 478.945 | DE55: 0 | DF55: 0 | DG55: 0 | DM55: 0 | DN55: 0 | DO55: 0 | DP55: 0 | DQ55: 1 | DR55: 1 | DS55: 1 | DT55: 1 | DU55: 1 | DV55: 0 | DW55: 0 | DX55: 0 | DY55: 0 | DZ55: 1 | EA55: 1 | EB55: 1
E56: 36 | F56: Zigbee HA | G56: Zigbee Smartplug ZHWR202-UK | H56: Sensor | I56: Individual appliance | J56: Zigbee HA Gateway | K56: 81 | L56: Not found | M56: Not found | N56: Not found | O56: n/a | P56: n/a | Q56: Zigbee | R56: n/a | S56: n/a | T56: 106 x 61 x 54 | U56: Plugs in to wall | W56: Plug | X56: n/a | Y56: Not found | Z56: trigger | AA56: n/a | AB56: n/a | AC56: n/a | AD56: n/a | AE56: n/a | AG56: 5 | AH56: - | AI56: - | AJ56: - | AK56: - | AL56: 0.1 | AS56: 1 | AW56: 1 | BJ56: 39 | BK56: 0 | BT56: 1 | BU56: 1 | BV56: 39 | BW56: 0 | BX56: 39 | BY56: 0 | CB56: 0 | CC56: 0 | CF56: 0 | CG56: 0 | CJ56: 81 | CK56: 81 | CL56: 81 | CM56: 81 | CN56: 81 | CO56: 0 | CP56: 0.1 | CQ56: 0.08333333333 | CR56: 86.55 | CS56: 8.1 | CT56: 94.65 | CU56: 94.65 | CX56: 0 | CY56: 324.745 | CZ56: 0 | DA56: - | DB56: - | DE56: 0 | DF56: 0 | DG56: 0 | DM56: 0 | DN56: 0 | DO56: 0 | DP56: 0 | DQ56: 0 | DR56: 0 | DS56: 0 | DT56: 0 | DU56: 0 | DV56: 0 | DW56: 0 | DX56: 0 | DY56: 0 | DZ56: 0 | EA56: 0 | EB56: 0
E57: 37 | F57: Zigbee HA | G57: ZigBee magnetic sensor ZHMS101 | H57: Sensor | I57: Open close doors and windows Temperature | J57: Zigbee HA Gateway | K57: 55 | L57: Not found | M57: Not found | N57: Not found | O57: n/a | P57: n/a | Q57: Zigbee | R57: n/a | S57: n/a | T57: 65 x 25 x 17 sensor 65 x 17 x 17 magnet | U57: screws or self adhesive pads | W57: Battery 2 x AAA | X57: 2 years reporting every 2 mins | Y57: Not found | Z57: Not found | AA57: Not found | AB57: 0 to +50°C | AC57: 0.1°C | AD57: n/a | AE57: n/a | AG57: 15 | AH57: - | AI57: - | AJ57: - | AK57: 10 | AL57: 0.1 | AS57: 1 | AY57: 1 | BF57: 1 | BJ57: 39 | BK57: 0 | BT57: 1 | BU57: 1 | BV57: 39 | BW57: 0 | BX57: 39 | BY57: 0 | CB57: 0 | CC57: 0 | CF57: 0 | CG57: 0 | CJ57: 55 | CK57: 55 | CL57: 55 | CM57: 55 | CN57: 55 | CO57: 0 | CP57: 0.1 | CQ57: 0.25 | CR57: 71.65 | CS57: 16.6 | CT57: 88.25 | CU57: 88.25 | CX57: 0 | CY57: 324.745 | CZ57: 1 | DA57: 412.995 | DB57: 412.995 | DE57: 0 | DF57: 0 | DG57: 0 | DM57: 0 | DN57: 0 | DO57: 0 | DP57: 0 | DQ57: 0 | DR57: 0 | DS57: 0 | DT57: 0 | DU57: 0 | DV57: 0 | DW57: 0 | DX57: 0 | DY57: 0 | DZ57: 0 | EA57: 1 | EB57: 0
E58: 38 | F58: Zigbee HA | G58: ZigBee multisensor ZHOT101 | H58: Sensor | I58: Occupancy, Temperature & Light Sensor | J58: Zigbee HA Gateway | K58: 64 | L58: Not found | M58: Not found | N58: Not found | O58: n/a | P58: n/a | Q58: Zigbee | R58: n/a | S58: n/a | T58: 106 x 61 x 54 | U58: free standing or use self adhesive pads? | W58: Battery CR123 | X58: 5 yrs hourly reporting | Y58: Not found | Z58: Not found | AA58: ± 0.5°C | AB58: 0 to +50°C | AC58: 0.1°C | AD58: n/a | AE58: n/a | AG58: 10 | AH58: - | AI58: - | AJ58: - | AK58: - | AL58: 0.1 | AS58: 1 | AY58: 1 | BD58: 1 | BE58: 1 | BJ58: 39 | BK58: 0 | BT58: 1 | BU58: 1 | BV58: 39 | BW58: 0 | BX58: 39 | BY58: 0 | CB58: 0 | CC58: 0 | CF58: 0 | CG58: 0 | CJ58: 64 | CK58: 64 | CL58: 64 | CM58: 64 | CN58: 64 | CO58: 0 | CP58: 0.1 | CQ58: 0.1666666667 | CR58: 75.1 | CS58: 6.4 | CT58: 81.5 | CU58: 81.5 | CX58: 0 | CY58: 324.745 | CZ58: 1 | DA58: 406.245 | DB58: 406.245 | DE58: 0 | DF58: 0 | DG58: 0 | DM58: 0 | DN58: 0 | DO58: 0 | DP58: 0 | DQ58: 0 | DR58: 0 | DS58: 0 | DT58: 0 | DU58: 0 | DV58: 0 | DW58: 0 | DX58: 0 | DY58: 0 | DZ58: 3 | EA58: 2 | EB58: 3
E59: 39 | F59: Zigbee HA | G59: Greenbox zigbee data logger ZC-GB-EM-UK | H59: Logger | I59: logger only | J59: Ethernet or sim card for GPRS | K59: 485.75 | L59: 242.87 | M59: 194.28 | N59: 145.71 | O59: n/a | P59: Ethernet & GPRS | Q59: Zigbee | R59: 4Gb | S59: FTP/EMAIL CSV | T59: 152 x 128 x 40 | U59: Din Rail | Y59: Not found | Z59: min every 5 minutes | AA59: n/a | AB59: n/a | AC59: n/a | AD59: n/a | AE59: n/a | AG59: 30 | AH59: - | AI59: - | AJ59: - | AK59: - | AL59: 0.1 | AT59: 1 | BT59: 0 | BU59: 1 | BV59: 0 | BW59: 0 | BX59: 0 | BY59: 0 | CB59: 0 | CC59: 0 | CF59: 0 | CG59: 0 | CJ59: 485.75 | CK59: 242.87 | CL59: 194.28 | CM59: 145.71 | CN59: 242.87 | CO59: 0 | CP59: 0.1 | CQ59: 0.5 | CR59: 276.17 | CS59: 48.575 | CT59: 324.745 | CU59: 324.745 | CX59: 0 | CY59: 0 | CZ59: 0 | DA59: - | DB59: - | DE59: 0 | DF59: 0 | DG59: 0 | DM59: 0 | DN59: 0 | DO59: 0 | DP59: 0 | DQ59: 1 | DR59: 1 | DS59: 1 | DT59: 1 | DU59: 1 | DV59: 0 | DW59: 0 | DX59: 0 | DY59: 0 | DZ59: 1 | EA59: 1 | EB59: 1
E60: 40 | F60: Zwave | G60: Aeon MultiSensor (AEOEZW074) | H60: Sensor | I60: Temperature,humidity, light and motion | J60: Vera Edge | K60: 49 | L60: 39.2 | M60: 35.28 | N60: 35.28 | O60: n/a | P60: n/a | Q60: Zwave 868Mhz | R60: n/a | S60: n/a | T60: 75 (dia) x 57 | U60: Bracket | W60: Plug USB power supply not supplied or Battery | X60: 1 year | Y60: Not found | Z60: reporting configurable sample 2 secs to 18 hours | AA60: not known | AB60: -20 to +50°C | AC60: ± 1°C | AD60: ±5% | AE60: n/a | AG60: 5 | AH60: n/a | AI60: n/a | AJ60: - | AK60: 5 | AL60: 0.1 | AM60: IP43 wet and dry conditions | AS60: 1 | AY60: 1 | AZ60: 1 | BD60: 1 | BE60: 1 | BJ60: 43 | BK60: 0 | BT60: 1 | BU60: 1 | BV60: 43 | BW60: 0 | BX60: 43 | BY60: 0 | CB60: 0 | CC60: 0 | CF60: 0 | CG60: 1 | CJ60: 49 | CK60: 39.2 | CL60: 35.28 | CM60: 35.28 | CN60: 39.2 | CO60: 0 | CP60: 0.1 | CQ60: 0.08333333333 | CR60: 44.75 | CS60: 10.45 | CT60: 55.2 | CU60: 55.2 | CX60: 0 | CY60: 161.66 | CZ60: 0 | DA60: - | DB60: - | DE60: 0 | DF60: 0 | DG60: 0 | DM60: 0 | DN60: 0 | DO60: 0 | DP60: 0 | DQ60: 0 | DR60: 0 | DS60: 0 | DT60: 0 | DU60: 0 | DV60: 0 | DW60: 0 | DX60: 0 | DY60: 0 | DZ60: 0 | EA60: 0 | EB60: 0
E61: 41 | F61: Zwave | G61: TKB TZ88 UK Home Zwave smart plug | H61: Sensor | I61: Plug - Indiviudal Appliance | J61: Vera Edge | K61: 38 | L61: 30.4 | M61: 27.36 | N61: 27.36 | O61: n/a | P61: n/a | Q61: Zwave 868.4 MHz | R61: n/a | S61: n/a | T61: 50 x 50 x 18mm | U61: n/a | W61: Plug | X61: n/a | Y61: Not found | Z61: reporting configurable sample 2 secs to 18 hours | AA61: n/a | AB61: n/a | AC61: n/a | AD61: n/a | AE61: n/a | AG61: 5 | AH61: n/a | AI61: n/a | AJ61: - | AK61: n/a | AL61: 0.1 | AS61: 1 | AW61: 1 | BJ61: 43 | BK61: 0 | BT61: 1 | BU61: 1 | BV61: 43 | BW61: 0 | BX61: 43 | BY61: 0 | CB61: 0 | CC61: 0 | CF61: 0 | CG61: 1 | CJ61: 38 | CK61: 30.4 | CL61: 27.36 | CM61: 27.36 | CN61: 30.4 | CO61: 0 | CP61: 0.1 | CQ61: 0.08333333333 | CR61: 35.95 | CS61: 3.8 | CT61: 39.75 | CU61: 39.75 | CX61: 0 | CY61: 161.66 | CZ61: 0 | DA61: - | DB61: - | DE61: 0 | DF61: 0 | DG61: 0 | DM61: 0 | DN61: 0 | DO61: 0 | DP61: 0 | DQ61: 0 | DR61: 0 | DS61: 0 | DT61: 0 | DU61: 0 | DV61: 0 | DW61: 0 | DX61: 0 | DY61: 0 | DZ61: 0 | EA61: 0 | EB61: 0
E62: 42 | F62: Zwave | G62: Philio Multisensor - PIR / Light / Temp - Gen5 | H62: Sensor | I62: Temperature, light, motion | J62: Vera Edge | K62: 49 | L62: 39.2 | M62: 35.28 | N62: 35.28 | O62: n/a | P62: n/a | Q62: Zwave 868.42MHz - v6.02 | R62: n/a | S62: n/a | T62: 96 x 28 x 23 | U62: self adhesive pads | W62: Battery 1 x CR 123A | X62: 2 years | Y62: Not found | Z62: reporting configurable sample 2 secs to 18 hours | AA62: Not found | AB62: -10 to +70°C | AC62: Not found | AD62: n/a | AE62: n/a | AG62: 5 | AH62: n/a | AI62: n/a | AJ62: - | AK62: 5 | AL62: 0.1 | AM62: One review on Domotics website says temp seems to be recording high | AS62: 1 | AY62: 1 | BD62: 1 | BE62: 1 | BJ62: 43 | BK62: 0 | BT62: 1 | BU62: 1 | BV62: 43 | BW62: 0 | BX62: 43 | BY62: 0 | CB62: 0 | CC62: 0 | CF62: 0 | CG62: 1 | CJ62: 49 | CK62: 39.2 | CL62: 35.28 | CM62: 35.28 | CN62: 39.2 | CO62: 0 | CP62: 0.1 | CQ62: 0.08333333333 | CR62: 44.75 | CS62: 10.45 | CT62: 55.2 | CU62: 55.2 | CX62: 0 | CY62: 161.66 | CZ62: 0 | DA62: - | DB62: - | DE62: 0 | DF62: 0 | DG62: 0 | DM62: 0 | DN62: 0 | DO62: 0 | DP62: 0 | DQ62: 0 | DR62: 0 | DS62: 0 | DT62: 0 | DU62: 0 | DV62: 0 | DW62: 0 | DX62: 0 | DY62: 0 | DZ62: 0 | EA62: 0 | EB62: 0
E63: 43 | F63: Zwave | G63: Vera Edge (Zwave Plus 500 Series) | H63: Logger | I63: Logger only | J63: Zwave sensors, Internet connected house | K63: 149 | L63: 113.46 | M63: 102.11 | N63: 102.11 | O63: n/a | P63: ethernet | Q63: Z-Wave: | R63: Flash Memory: 128 MB RAM Memory: 128 MB | S63: API for data upload | T63: 116 x 95 x 44mm | U63: Free standing | W63: Plug | X63: back up battery 4 x AA | Y63: Not found | Z63: n/a | AA63: n/a | AB63: n/a | AC63: n/a | AD63: n/a | AE63: n/a | AF63: uk plug adaptor needed (provided) | AG63: 30 | AH63: n/a | AI63: n/a | AJ63: - | AK63: n/a | AL63: 0.1 | AM63: Researcher from Defacto says very reliable | AT63: 1 | BT63: 0 | BU63: 1 | BV63: 0 | BW63: 0 | BX63: 0 | BY63: 0 | CB63: 1 | CC63: 0 | CF63: 1 | CG63: 1 | CJ63: 149 | CK63: 113.46 | CL63: 102.11 | CM63: 102.11 | CN63: 113.46 | CO63: 0 | CP63: 0.1 | CQ63: 0.5 | CR63: 146.76 | CS63: 14.9 | CT63: 161.66 | CU63: 161.66 | CX63: 0 | CY63: 0 | CZ63: 0 | DA63: - | DB63: - | DE63: 0 | DF63: 0 | DG63: 0 | DM63: 0 | DN63: 0 | DO63: 0 | DP63: 0 | DQ63: 0 | DR63: 0 | DS63: 0 | DT63: 0 | DU63: 0 | DV63: 0 | DW63: 0 | DX63: 0 | DY63: 0 | DZ63: 0 | EA63: 0 | EB63: 0
E64: 44 | F64: Zwave | G64: Aeon Labs Clamp Power Meter one (100A) | H64: Sensor | I64: Electricity mains | J64: Vera edge | K64: 76 | L64: 59.8 | M64: 54.72 | N64: 54.72 | O64: n/a | P64: n/a | Q64: Zwave 868.42MHz | R64: n/a | S64: n/a | T64: 108 x 67 x 30mm | U64: n/a | W64: plug | X64: n/a | Y64: Not found | Z64: instant (W) accumulated (KWh) | AA64: n/a | AB64: n/a | AC64: n/a | AD64: n/a | AE64: n/a | AF64: will need mains supply available next to the meter | AG64: 10 | AH64: n/a | AI64: 15 | AJ64: - | AK64: n/a | AL64: 0.1 | AM64: install time for electrician is to fit an electricity socket near the meter | AS64: 1 | AV64: 1 | BJ64: 43 | BK64: 0 | BT64: 1 | BU64: 1 | BV64: 43 | BW64: 0 | BX64: 43 | BY64: 0 | CB64: 0 | CC64: 0 | CF64: 0 | CG64: 1 | CJ64: 76 | CK64: 59.8 | CL64: 54.72 | CM64: 54.72 | CN64: 59.8 | CO64: 0 | CP64: 0.1 | CQ64: 0.4166666667 | CR64: 87.55 | CS64: 7.6 | CT64: 95.15 | CU64: 95.15 | CX64: 0 | CY64: 161.66 | CZ64: 0 | DA64: - | DB64: - | DE64: 0 | DF64: 0 | DG64: 0 | DM64: 0 | DN64: 0 | DO64: 0 | DP64: 0 | DQ64: 0 | DR64: 0 | DS64: 0 | DT64: 0 | DU64: 0 | DV64: 0 | DW64: 0 | DX64: 0 | DY64: 0 | DZ64: 0 | EA64: 0 | EB64: 0
E65: 45 | F65: HOBO | G65: A HOBOware Software Starter Kit, HOBO BASE-U-1 Optic Base Station (£63) and Coupler | H65: Logger | J65: HOBO sensors | K65: 63 | L65: Not found | M65: Not found | N65: Not found | AT65: 1 | BT65: 0 | BU65: 1 | BV65: 0 | BW65: 0 | BX65: 0 | BY65: 0 | CB65: 0 | CC65: 0 | CF65: 0 | CG65: 0 | CJ65: 63 | CK65: 63 | CL65: 63 | CM65: 63 | CN65: 63 | CO65: 0 | CP65: 0 | CQ65: 0 | CR65: 63 | CS65: 0 | CT65: 63 | CU65: 63 | CX65: 0 | CY65: 0 | CZ65: 0 | DA65: - | DB65: - | DE65: 0 | DF65: 0 | DG65: 0 | DM65: 0 | DN65: 0 | DO65: 0 | DP65: 0 | DQ65: 1 | DR65: 1 | DS65: 0 | DT65: 0 | DU65: 0 | DV65: 0 | DW65: 0 | DX65: 0 | DY65: 0 | DZ65: 0 | EA65: 0 | EB65: 0
E66: 47 | F66: Smart meters | G66: Gas through DCC | H66: Sensor | I66: Gas | K66: n/a | L66: n/a | M66: n/a | N66: n/a | O66: 25 | P66: n/a | Q66: n/a | R66: n/a | S66: from Data Communications Company | T66: n/a | U66: n/a | Z66: 30 minutes | AA66: n/a | AB66: n/a | AC66: n/a | AD66: n/a | AE66: n/a | AF66: n/a | AH66: n/a | AI66: n/a | AL66: n/a | AM66: Data provided through the planned Data Communications Company. Charges are unknown, ESTIMATED here at £25 per home. | AS66: 1 | BA66: 1 | BT66: 0 | BU66: 1 | BV66: 0 | BW66: 0 | BX66: 0 | BY66: 0 | CB66: 0 | CC66: 1 | CF66: 1 | CG66: 1 | CJ66: 0 | CK66: 0 | CL66: 0 | CM66: 0 | CN66: 0 | CO66: 25 | CP66: 0 | CQ66: 0 | CR66: 25 | CS66: 25 | CT66: 50 | CU66: 50 | CX66: 0 | CY66: 0 | CZ66: 0 | DA66: - | DB66: =IF(CZ66<>0,DA66/CZ66,"-") -> - | DE66: 0 | DF66: 0 | DG66: 0 | DM66: 0 | DN66: 0 | DO66: 0 | DP66: 0 | DQ66: 0 | DR66: 0 | DS66: 0 | DT66: 0 | DU66: 0 | DV66: 0 | DW66: 0 | DX66: 0 | DY66: 0 | DZ66: 0 | EA66: 0 | EB66: 0
E67: 48 | F67: Smart meters | G67: Electricity through DCC | H67: Sensor | I67: Electricity mains | K67: n/a | L67: n/a | M67: n/a | N67: n/a | O67: 25 | P67: n/a | Q67: n/a | R67: n/a | S67: from Data Communications Company | T67: n/a | U67: n/a | Z67: 30 minutes | AA67: n/a | AB67: n/a | AC67: n/a | AD67: n/a | AE67: n/a | AF67: n/a | AH67: n/a | AI67: n/a | AL67: n/a | AM67: Data provided through the planned Data Communications Company. Charges are unknown, ESTIMATED here at £25 per home. | AS67: 1 | AV67: 1 | BT67: 0 | BU67: 1 | BV67: 0 | BW67: 0 | BX67: 0 | BY67: 0 | CB67: 0 | CC67: 1 | CF67: 1 | CG67: 1 | CJ67: 0 | CK67: 0 | CL67: 0 | CM67: 0 | CN67: 0 | CO67: 25 | CP67: 0 | CQ67: 0 | CR67: 25 | CS67: 25 | CT67: 50 | CU67: 50 | CX67: 0 | CY67: 0 | CZ67: 0 | DA67: - | DB67: =IF(CZ67<>0,DA67/CZ67,"-") -> - | DE67: 0 | DF67: 0 | DG67: 0 | DM67: 0 | DN67: 0 | DO67: 0 | DP67: 0 | DQ67: 0 | DR67: 0 | DS67: 0 | DT67: 0 | DU67: 0 | DV67: 0 | DW67: 0 | DX67: 0 | DY67: 0 | DZ67: 0 | EA67: 0 | EB67: 0
E68: 49 | F68: Smart meters | G68: Electricity and gas through smart meter and CAD | H68: Sensor | I68: Electricity mains, gas | K68: 25 | L68: 25 | M68: 25 | N68: 25 | O68: n/a | P68: n/a | Q68: Zigbee | R68: unknown | S68: From 3rd party logging service | T68: unknown | U68: unknown | V68: Yes | W68: Unknown | X68: Unknown | Y68: Unknown | Z68: Electricity 10 second, gas 30 minutes | AA68: n/a | AB68: n/a | AC68: n/a | AD68: n/a | AE68: n/a | AF68: Unknown | AG68: n/a | AH68: n/a | AI68: n/a | AL68: n/a | AM68: There are no devices of this type available yet. **The cost here is an ESTIMATED cost, unlike other figures in the table.** | AS68: 1 | AV68: 1 | BA68: 1 | BT68: =IF(SUM(BL68:BM68)>0,1,0)+IF(SUM(BN68:BO68)>0,1,0)+IF(SUM(BP68:BQ68)>0,1,0)+IF(SUM(BJ68:BK68)>0,1,0)+IF(SUM(BR68:BS68)>0,1,0) -> 0 | BU68: 1 | BV68: =INDEX($BJ68:$BS68,0,($BU68*2)-1) -> 0 | BW68: =INDEX($BJ68:$BS68,0,($BU68*2)) -> 0 | BX68: 0 | BY68: 0 | CB68: 0 | CC68: 1 | CF68: 1 | CG68: 1 | CJ68: 25 | CK68: 25 | CL68: 25 | CM68: 25 | CN68: 25 | CO68: 0 | CP68: 0 | CQ68: 0 | CR68: 25 | CS68: 0 | CT68: 25 | CU68: 25 | CX68: 0 | CY68: 0 | CZ68: 0 | DA68: - | DB68: =IF(CZ68<>0,DA68/CZ68,"-") -> - | DE68: 0 | DF68: 0 | DG68: 0 | DM68: 0 | DN68: 0 | DO68: 0 | DP68: 0 | DQ68: 0 | DR68: 0 | DS68: 0 | DT68: 0 | DU68: 0 | DV68: 0 | DW68: 0 | DX68: 0 | DY68: 0 | DZ68: 0 | EA68: 0 | EB68: 0
E69: 50 | BU69: 1 | CX69: 0 | DM69: 0 | DN69: 0 | DO69: 0 | DP69: 0 | DQ69: 0 | DR69: 0 | DS69: 0 | DT69: 0 | DU69: 0 | DV69: 0 | DW69: 0 | DX69: 0 | DY69: 0 | DZ69: 0 | EA69: 0 | EB69: 0
